Workbook

Sheet III Tool Overview
C2: Informing Investment to tackle health Inequalities in Scotland (III) - Alcohol Brief Interventions (ABI)
C3: What is the nature of the intervention? A time-limited (between approximately 5 and 30 minutes) interaction/conversation between a practitioner and patient focused on addressing hazardous and harmful alcohol use. The model assumes that hazardous/harmful drinkers are adults reporting they drink >14/21 units of alcohol per week, and that a maximum of 39% of this group could be reached (all hazardous/harmful drinkers who want to reduce their drinking). (Source: Knowledge Attitudes and Motivations to health module of the Scottish Health Survey, 2008-2011).
G7: Geography | H7: Scotland | Y7: Geographies
G8: Intervention | H8: Alcohol Brief Interventions | Y8: Scotland
G9: Number of alcohol brief interventions | H9: 200000 | I9: =IF(H9>D24,"Too high - please check & re-enter","") ->  | Y9: Ayrshire & Arran Health Board
G10: Number treated at baseline | H10: 0 | Y10: Borders Health Board
G11: Targeting strategy | H11: Proportionate to need | I11: =IF(H11="Even distribution","Interventions are divided evenly across all quintiles",IF(H11="Targeting to Q1","Interventions are targeted at Q1 only",IF(H11="Targeting to Q1 & Q2","Interventions are targeted to Q1 & Q2",IF(H11="Proportionate to need","Interventions target the pop. distribution")))) -> Interventions target the pop. distribution | Y11: Dumfries & Galloway Health Board
G12: Total direct cost of intervention (£m, 2012 prices) | H12: =SUM(D35*H9)/1000000 -> 5 | Y12: Fife Health Board
Y13: Forth Valley Health Board
Y14: Grampian Health Board
Y15: Greater Glasgow & Clyde Health Board
C16: Baseline Stats: Alcohol Brief Interventions | G16: Model Outcomes (whole population) | H16: 2 years | I16: 10 years | J16: 20 years | Y16: Highland Health Board
C17: Baseline year | D17: =Calculations!C1 -> 2012 | Y17: Lanarkshire Health Board
C18: Age group | D18: 16+ | G18: Years of life gained | H18: =Calculations!S86+Calculations!S107+Calculations!S129+Calculations!S150+Calculations!S172+Calculations!S193+Calculations!S215+Calculations!S236+Calculations!S258+Calculations!S279 -> 843.9096631 | I18: =Calculations!Y86+Calculations!Y107+Calculations!Y129+Calculations!Y150+Calculations!Y172+Calculations!Y193+Calculations!Y215+Calculations!Y236+Calculations!Y258+Calculations!Y279 -> 2538.142277 | J18: =Calculations!AB86+Calculations!AB107+Calculations!AB129+Calculations!AB150+Calculations!AB172+Calculations!AB193+Calculations!AB215+Calculations!AB236+Calculations!AB258+Calculations!AB279 -> 2293.938311 | Y18: Lothian Health Board
C19: Number of hazardous/harmful drinkers in pop. (2012) | D19: =HLOOKUP('III Tool Overview'!$H$7,Baseline_Data_2012!$B$2:$AV$277,Baseline_Data_2012!AW271,FALSE) -> 1004905.794 | G19: Continuous inpatient stays prevented | H19: =Calculations!AE86+Calculations!AE107+Calculations!AE129+Calculations!AE150+Calculations!AE172+Calculations!AE193+Calculations!AE215+Calculations!AE236+Calculations!AE258+Calculations!AE279 -> 1407.516999 | I19: =Calculations!AK86+Calculations!AK107+Calculations!AK129+Calculations!AK150+Calculations!AK172+Calculations!AK193+Calculations!AK215+Calculations!AK236+Calculations!AK258+Calculations!AK279 -> 4599.035803 | J19: =Calculations!AN86+Calculations!AN107+Calculations!AN129+Calculations!AN150+Calculations!AN172+Calculations!AN193+Calculations!AN215+Calculations!AN236+Calculations!AN258+Calculations!AN279 -> 4506.612359 | Y19: Orkney Health Board
C20: Of which, Q1 only: | D20: =HLOOKUP('III Tool Overview'!$H$7,Baseline_Data_2012!$B$2:$AV$277,Baseline_Data_2012!AW272,FALSE) -> 169895.92 | Y20: Shetland Health Board
C21: Of which, Q1 & Q2: | D21: =HLOOKUP('III Tool Overview'!$H$7,Baseline_Data_2012!$B$2:$AV$277,Baseline_Data_2012!AW273,FALSE) -> 347196.2125 | G21: Model Outcomes (Most deprived SIMD quintile) | H21: 2 years | I21: 10 years | J21: 20 years | Y21: Tayside Health Board
G22: Years of life gained | H22: =Calculations!S86+Calculations!S107 -> 219.6851343 | I22: =Calculations!Y86+Calculations!Y107 -> 629.0446529 | J22: =Calculations!AB86+Calculations!AB107 -> 533.273741 | Y22: Western Isles Health Board
G23: Continuous inpatient stays prevented | H23: =Calculations!AE86+Calculations!AE107 -> 301.6533149 | I23: =Calculations!AK86+Calculations!AK107 -> 963.1789054 | J23: =Calculations!AN86+Calculations!AN107 -> 929.2141324 | Y23: Aberdeen City Local Authority
C24: Hazardous/harmful drinkers who want to cut down | D24: =HLOOKUP('III Tool Overview'!$H$7,Baseline_Data_2012!$B$2:$AV$277,Baseline_Data_2012!AW275,FALSE) -> 391913.2598 | Y24: Aberdeenshire Local Authority
C25: Of which, Q1 only: | D25: =HLOOKUP('III Tool Overview'!$H$7,Baseline_Data_2012!$B$2:$AV$277,Baseline_Data_2012!AW276,FALSE) -> 66259.40881 | G25: Model Outcomes (comparative health inequalities) | H25: 2 years | I25: 10 years | J25: 20 years | Y25: Angus Local Authority
C26: Of which, Q1 & Q2: | D26: =HLOOKUP('III Tool Overview'!$H$7,Baseline_Data_2012!$B$2:$AV$277,Baseline_Data_2012!AW277,FALSE) -> 135406.5229 | G26: RII: Years of life lost (without intervention) | H26: =RII!H20 -> 1.212946587 | I26: =RII!H39 -> 1.107961121 | J26: =RII!H58 -> 1.023468333 | Y26: Argyll & Bute Local Authority
G27: RII: Years of life lost (with intervention) | H27: =RII!S20 -> 1.213410992 | I27: =RII!S39 -> 1.108122945 | J27: =RII!S58 -> 1.023546974 | Y27: Clackmannanshire Local Authority
C28: Annual continuous inpatient stays (2012) | D28: =HLOOKUP('III Tool Overview'!$H$7,Baseline_Data_2012!$B$2:$AW$284,Baseline_Data_2012!AW281,FALSE) -> 1082362 | G28: RII: years of life lost (difference) | H28: =H27-H26 -> 0.0004644052862 | I28: =I27-I26 -> 0.0001618234865 | J28: 7.864128497e-05 | Y28: Dumfries & Galloway Local Authority
C29: Of which, Q1 only: | D29: =HLOOKUP('III Tool Overview'!$H$7,Baseline_Data_2012!$B$2:$AW$284,Baseline_Data_2012!AW282,FALSE) -> 270251 | G29: RII: continuous inpatient stays (without intervention) | H29: =RII!H77 -> 0.6987966794 | I29: =RII!H96 -> 0.5905853392 | J29: =RII!H115 -> 0.4761204557 | Y29: Dundee City Local Authority
C30: Of which, Q1 & Q2: | D30: =HLOOKUP('III Tool Overview'!$H$7,Baseline_Data_2012!$B$2:$AW$284,Baseline_Data_2012!AW283,FALSE) -> 508745 | G30: RII: continuous inpatient stays (with intervention) | H30: =RII!S77 -> 0.699639077 | I30: =RII!S96 -> 0.5908570755 | J30: =RII!S115 -> 0.4762262809 | Y30: East Ayrshire Local Authority
G31: RII: continuous inpatient stays (difference) | H31: =H30-H29 -> 0.0008423975868 | I31: =I30-I29 -> 0.0002717362408 | J31: 0.0001058251624 | Y31: East Dunbartonshire Local Authority
C32: No. of ABI delivered in a primary care setting: 2013/14 | D32: =HLOOKUP('III Tool Overview'!$H$7,Baseline_Data_2012!$B$2:$AW$288,Baseline_Data_2012!AW279,FALSE) -> 65360 | H32: =H31*100 -> 0.08423975868 | I32: =I31*100 -> 0.02717362408 | J32: 0.01058251624 | Y32: East Lothian Local Authority
G33: Direct financial savings | H33: 2 years | I33: 10 years | J33: 20 years | Y33: East Renfrewshire Local Authority
C34: Direct financial costs of intervention | G34: Reduced continuous inpatient stays (£m) - all | H34: =(H19*2445)/1000000 -> 3.441379061 | I34: =(I19*2445)/1000000 -> 11.24464254 | J34: =(J19*2445)/1000000 -> 11.01866722 | Y34: Edinburgh, City of Local Authority
C35: Cost per intervention (£, 2012 prices) | D35: 25 | G35: Reduced continuous inpatient stays (£m) - MDQ | H35: =(H23*2445)/1000000 -> 0.737542355 | I35: =(I23*2445)/1000000 -> 2.354972424 | J35: 2.271928554 | Y35: Eilean Siar Local Authority
Y36: Falkirk Local Authority
C37: =IF(H7="Argyll & Bute Local Authority","Based on prevalence for Argyll & Bute & Perth & Kinross - see notes",IF(H7="Clackmannanshire Local Authority","Based on prevalence for Clackmannanshire & Falkirk", IF(H7="East Dunbartonshire Local Authority","Based on prevalence for East Renfrewshire & East Dunbartonshire", IF(H7="East Lothian Local Authority","Based on prevalence for East Lothian & Midlothian", IF(H7="East Renfrewshire Local Authority","Based on prevalence for East Renfrewshire & East Dunbartonshire", IF(H7="Inverclyde Local Authority","Based on prevalence for West Dunbartonshire & Inverclyde", IF(H7="Midlothian Local Authority","Based on prevalence for East Lothian & Midlothian", IF(H7="Stirling Local Authority","Based on prevalence for Stirling & Perth & Kinross", IF(H7="West Dunbartonshire Local Authority","Based on prevalence for West Dunbartonshire & Inverclyde",""))))))))) ->  | G37: How are costs and financial savings estimated? | Y37: Fife Local Authority
G38: The cost of an alcohol brief intervention was estimated at £25 in 2011 - this remains unchanged allowing for inflation. Geue et al. (2012) estimated the cost of a continuous inpatient stay at £2113 in 2006/07 - this has been adjusted to 2012/13 prices. | Y38: Glasgow City Local Authority
Y39: Highland Local Authority
Y40: Inverclyde Local Authority
Y41: Midlothian Local Authority
Y42: Moray Local Authority
Y43: North Ayrshire Local Authority
Y44: North Lanarkshire Local Authority
Y45: Orkney Islands Local Authority
Y46: Perth & Kinross Local Authority
Y47: Renfrewshire Local Authority
Y48: Scottish Borders Local Authority
Y49: Shetland Islands Local Authority
Y50: South Ayrshire Local Authority
Y51: South Lanarkshire Local Authority
Y52: Stirling Local Authority
Y53: West Dunbartonshire Local Authority
Y54: West Lothian Local Authority
Y62: Even distribution
Y63: Targeting to Q1
Y64: Targeting to Q1 & Q2
Y65: Proportionate to need

Sheet Notes
A1: Worksheet name | B1: What it does
A2: III Tool Overview | B2: • Gives the nature of the intervention (e.g. smoking cessation, changes in income distribution) and relevant baseline information (size of the target population, maximum number who might feasibly gain, hospitalisation data). Where appropriate it also provides cost per intervention and historic statistics on service provision. • Allows users to modify inputs (e.g. the geography being targeted, and where appropriate, the number of interventions and targeting strategy). • Reports on key outcomes: years of life gained and hospitalisations prevented due to the intervention; and changes in the relative index of inequality (for years of life lost and hospitalisations).
A3: Calculations | B3: Based on user inputs, the prevalence and population data in this workbook, and macros that run behind the scenes (incorporating assumptions about mortality, hospitalisations and the impact of interventions), this sheet calculates years of life lost and hospitalisations before and after the intervention, and the difference between the two scenarios.
A4: Targeting | B4: Provides the background information for allocating the total number of interventions by age group, sex and deprivation quintile. The current options are for even distribution, targeting to Q1 only, targeting to Q1 & Q2 only, and targeting according to the distribution of ‘need’ (e.g. the population distribution of smokers).
A5: Baseline_Data_2012 | B5: Provides baseline data on the size of the target population, maximum number who might feasibly gain, hospitalisation data and historic statistics on service provision where available. The size of the target population is calculated for Scotland by applying age/sex/SIMD decile prevalence rates (e.g. for smoking) to the age/sex/SIMD distribution of the total population. Local estimates are derived by weighting national age/sex/SIMD decile prevalence rates by the difference between local and national prevalence rates (separately for men and women). The number who might feasibly gain (as a proportion of the target population) varies between information – see commentary for more details.
A6: Prevalence | B6: Provides national and local prevalence rates of the at risk population by age/sex/SIMD decile, used in the calculations and baseline data. National estimates come from relevant national surveys (see commentary). Local estimates are derived by weighting national age/sex/SIMD decile prevalence rates by the difference between local and national prevalence rates (separately for men and women). Please note: For nine local authority areas the sample size was not considered large enough to produce robust results for hazardous/harmful drinking and obesity. As a second-best solution, and for completeness, we used prevalence rates for ‘aggregate geographies’ for these local authorities. These aggregate areas combined results from the relevant local authority with a second local authority defined as most similar to it according to the ONS 2001 Census classification. The aggregate geographies were as follows: • Argyll & Bute Local Authority: Argyll & Bute & Perth & Kinross • Clackmannanshire Local Authority: Clackmannanshire & Falkirk • East Dunbartonshire Local Authority: East Renfrewshire & East Dunbartonshire • East Lothian Local Authority: East Lothian & Midlothian • East Renfrewshire Local Authority: East Renfrewshire & East Dunbartonshire • Inverclyde Local Authority: West Dunbartonshire & Inverclyde • Midlothian Local Authority: East Lothian & Midlothian • Stirling Local Authority: Stirling & Perth & Kinross • West Dunbartonshire Local Authority: West Dunbartonshire & Inverclyde Users should note that the prevalence estimates shown are indicative only and included to inform modelling at a local level. As such, they should not be considered as representative of the ‘true’ prevalence of obesity and/or hazardous or harmful drinking for individual local authorities within each aggregate geography. Users should note that the prevalence estimates shown are indicative only and included to inform modelling at a local level. As such, they should not be considered as representative of the ‘true’ prevalence of obesity and/or hazardous or harmful drinking for individual local authorities within each aggregate geography.
A7: LookUpData_Pop | B7: Provides aggregate five-year population data by age/sex/SIMD quintile for 2007-2011, used to calculate the before and after impact of interventions. Five years of data was used to improve robustness of results and avoid disclosure issues.
A8: RII | B8: Calculates the Relative Index of Inequality for the III Tool Overview page. For more information on measuring inequalities in health, please see: http://www.scotpho.org.uk/downloads/scotphoreports/scotpho071009_measuringinequalities_rep.pdf

Sheet Calculations
A1: USING Scotland AS EXAMPLE. NEED TO ADD LOOKUP FOR MORTALITY WHEN UPDATE | B1: YEAR START | C1: 2012 | D1: AGE GROUP | E1: 16+ | I1: Cumulative incidence: years 2, 5, 10 and 20 | Q1: Years of life lost: years 2,5,10 and 20 | AC1: Hospitalisations: years 2,5,10 and 20 | AP1: LE Calculation
A2: Population Group | B2: mid-age | C2: Sex | D2: SIMD | E2: Prevalence exposure (hazardous or harmful drinkers) | F2: Population aged 16+ 2007-11 | G2: Number treated at base | H2: Additional number treated under policy | I2: Baseline-2 | J2: Policy-2 | K2: Baseline-5 | L2: Policy-5 | M2: Baseline-10 | N2: Policy-10 | O2: Baseline-20 | P2: Policy-20 | Q2: Baseline-2 | R2: Policy-2 | S2: Diff YLL-2 | T2: Baseline-5 | U2: Policy-5 | V2: Diff YLL-5 | W2: Baseline-10 | X2: Policy-10 | Y2: Diff YLL-10 | Z2: Baseline-20 | AA2: Policy-20 | AB2: Diff YLL-20 | AC2: Baseline-2 | AD2: Policy-2 | AE2: Diff hosp-2 years | AF2: Baseline-5 | AG2: Policy-5 | AH2: Diff hosp - 5 years | AI2: Baseline-10 | AJ2: Policy-10 | AK2: Diff hosp - 10 years | AL2: Baseline-20 | AM2: Policy-20 | AN2: Diff hosp - 20 years | AP2: Ax | AQ2: Width of interval | AR2: LE
A3: All, by SIMD
A4: Total | F4: =SUM(F5:F9) -> 4354062 | G4: =SUM(G5:G9) -> 0 | H4: =SUM(H5:H9) -> 200000 | I4: =SUM(I5:I9) -> 45172.25632 | J4: =SUM(J5:J9) -> 45146.67917 | K4: =SUM(K5:K9) -> 183915.1348 | L4: =SUM(L5:L9) -> 183851.8864 | M4: =SUM(M5:M9) -> 425795.5646 | N4: =SUM(N5:N9) -> 425724.5079 | O4: =SUM(O5:O9) -> 945069.4167 | P4: =SUM(P5:P9) -> 945019.467 | Q4: =SUM(Q5:Q9) -> 1197330.061 | R4: =SUM(R5:R9) -> 1196486.151 | S4: =SUM(S5:S9) -> 843.9096631 | T4: =SUM(T5:T9) -> 4766012.829 | U4: =SUM(U5:U9) -> 4763892.36 | V4: =SUM(V5:V9) -> 2120.469007 | W4: =SUM(W5:W9) -> 10609654.42 | X4: =SUM(X5:X9) -> 10607116.28 | Y4: =SUM(Y5:Y9) -> 2538.142277 | Z4: =SUM(Z5:Z9) -> 21671582.2 | AA4: =SUM(AA5:AA9) -> 21669288.26 | AB4: =SUM(AB5:AB9) -> 2293.938311 | AC4: =SUM(AC5:AC9) -> 1071976.149 | AD4: =SUM(AD5:AD9) -> 1070568.632 | AE4: =SUM(AE5:AE9) -> 1407.516999 | AF4: =SUM(AF5:AF9) -> 4342198.728 | AG4: =SUM(AG5:AG9) -> 4338546.223 | AH4: 3652.504977 | AI4: =SUM(AI5:AI9) -> 9963663.144 | AJ4: =SUM(AJ5:AJ9) -> 9959064.108 | AK4: =SUM(AK5:AK9) -> 4599.035803 | AL4: =SUM(AL5:AL9) -> 21731210.01 | AM4: =SUM(AM5:AM9) -> 21726703.4 | AN4: =SUM(AN5:AN9) -> 4506.612359
A5: Q 1 | B5: n/a | C5: both | D5: 1 | E5: =HLOOKUP('III Tool Overview'!$H$7,Prevalence!$B$2:$AV$268,Prevalence!AW3,FALSE) -> 0.2057918552 | F5: =F12+F19 -> 860202.6 | G5: =G12+G19 -> 0 | H5: =H12+H19 -> 33813.3029 | I5: =I12+I19 -> 14126.65482 | J5: =J12+J19 -> 14120.71628 | K5: 55481.04048 | L5: 55466.78791 | M5: 121873.1247 | N5: 121857.7237 | O5: 248432.6771 | P5: 248422.6261 | Q5: 374613.2018 | R5: 374393.5166 | S5: =S12+S19 -> 219.6851343 | T5: 1465941.031 | U5: 1465398.722 | V5: 542.3085001 | W5: 3189717.384 | X5: 3189088.339 | Y5: 629.0446529 | Z5: 6318561.921 | AA5: 6318028.647 | AB5: 533.273741 | AC5: 280668.453 | AD5: 280366.7997 | AE5: 301.6533149 | AF5: 1116095.592 | AG5: 1115320.809 | AH5: =AH12+AH19 -> 774.7829012 | AI5: 2492037.478 | AJ5: 2491074.299 | AK5: 963.1789054 | AL5: 5195908.725 | AM5: 5194979.511 | AN5: 929.2141324
A6: Q 2 | B6: n/a | C6: both | D6: 2 | E6: =HLOOKUP('III Tool Overview'!$H$7,Prevalence!$B$2:$AV$268,Prevalence!AW4,FALSE) -> 0.2056990205 | F6: =F13+F20 -> 879548.2 | G6: =G13+G20 -> 0 | H6: 35286.94798 | I6: =I13+I20 -> 10618.06348 | J6: 10613.23525 | K6: 43222.72495 | L6: 43210.92296 | M6: 99524.61125 | N6: 99511.56426 | O6: 216405.6366 | P6: 216396.6673 | Q6: 278535.5865 | R6: 278370.2873 | S6: 165.2991968 | T6: 1106743.224 | U6: 1106329.25 | V6: 413.9746066 | W6: 2453539.136 | X6: 2453046.478 | Y6: 492.65767 | Z6: 4969778.785 | AA6: 4969339.978 | AB6: 438.8077005 | AC6: 240453.6347 | AD6: 240189.1925 | AE6: 264.4421937 | AF6: 971620.7404 | AG6: 970936.186 | AH6: =AH13+AH20 -> 684.554482 | AI6: 2217108.532 | AJ6: 2216249.159 | AK6: 859.373767 | AL6: 4768668.906 | AM6: 4767829.419 | AN6: 839.4864134
A7: Q 3 | B7: n/a | C7: both | D7: 3 | E7: =HLOOKUP('III Tool Overview'!$H$7,Prevalence!$B$2:$AV$268,Prevalence!AW5,FALSE) -> 0.2227191413 | F7: =F14+F21 -> 877001 | G7: 0 | H7: 40502.70662 | I7: =I14+I21 -> 8637.650626 | J7: 8632.256371 | K7: 35652.97956 | L7: 35639.69226 | M7: 83980.23432 | N7: 83965.4442 | O7: 190332.2744 | P7: 190322.0129 | Q7: 229635.105 | R7: 229463.3262 | S7: 171.7788234 | T7: 920222.1058 | U7: 919790.0453 | V7: 432.0605718 | W7: 2065874.983 | X7: 2065356.132 | Y7: 518.850781 | Z7: 4264788.15 | AA7: 4264315.396 | AB7: 472.7544086 | AC7: 208416.0027 | AD7: 208132.1692 | AE7: 283.8335127 | AF7: 848152.7484 | AG7: 847417.0378 | AH7: =AH14+AH21 -> 735.7105763 | AI7: 1957685.327 | AJ7: 1956760.406 | AK7: 924.9207771 | AL7: 4299152.233 | AM7: 4298246.881 | AN7: 905.351759
A8: Q 4 | B8: n/a | C8: both | D8: 4 | E8: =HLOOKUP('III Tool Overview'!$H$7,Prevalence!$B$2:$AV$268,Prevalence!AW6,FALSE) -> 0.2381664175 | F8: =F15+F22 -> 868666.6 | G8: 0 | H8: 43444.70053 | I8: =I15+I22 -> 6925.881242 | J8: 6920.705553 | K8: 28946.34435 | L8: 28933.38055 | M8: 69621.3082 | N8: 69606.5525 | O8: 164111.8452 | P8: 164101.3134 | Q8: 184375.8772 | R8: 184217.9371 | S8: 157.9401106 | T8: 743887.0593 | U8: 743487.1017 | V8: 399.9575903 | W8: 1686708.071 | X8: 1686222.538 | Y8: 485.5330431 | Z8: 3532880.51 | AA8: 3532428.238 | AB8: 452.2718745 | AC8: 183647.6798 | AD8: 183366.8789 | AE8: 280.8008532 | AF8: 751848.7433 | AG8: 751117.8669 | AH8: =AH15+AH22 -> 730.8764608 | AI8: 1752834.626 | AJ8: 1751911.46 | AK8: 923.1658358 | AL8: 3923813.018 | AM8: 3922905.726 | AN8: 907.2927093
A9: Q 5 | B9: n/a | C9: both | D9: 5 | E9: =HLOOKUP('III Tool Overview'!$H$7,Prevalence!$B$2:$AV$268,Prevalence!AW7,FALSE) -> 0.266142014 | F9: =F16+F23 -> 868643.6 | G9: 0 | H9: 46952.34197 | I9: =I16+I23 -> 4864.006154 | J9: 4859.76572 | K9: 20612.04545 | L9: 20601.10271 | M9: 50796.28611 | N9: 50783.22317 | O9: 125786.9834 | P9: 125776.8472 | Q9: 130170.2902 | R9: 130041.0838 | S9: 129.2063981 | T9: 529219.4084 | U9: 528887.2407 | V9: 332.1677381 | W9: 1213814.851 | X9: 1213402.795 | Y9: 412.0561301 | Z9: 2585572.833 | AA9: 2585176.003 | AB9: 396.8305866 | AC9: 158790.379 | AD9: 158513.5919 | AE9: 276.787124 | AF9: 654480.9042 | AG9: 653754.3237 | AH9: =AH16+AH23 -> 726.5805567 | AI9: 1543997.181 | AJ9: 1543068.784 | AK9: 928.3965176 | AL9: 3543667.126 | AM9: 3542741.859 | AN9: 925.2673452
A10: Males, by SIMD
A11: Males | F11: =SUM(F12:F16) -> 2084462.2 | G11: =SUM(G12:G16) -> 0 | H11: =SUM(H12:H16) -> 114289.6692 | I11: =SUM(I12:I16) -> 22559.70157 | J11: =SUM(J12:J16) -> 22541.58731 | K11: =SUM(K12:K16) -> 91935.63044 | L11: =SUM(L12:L16) -> 91891.12874 | M11: =SUM(M12:M16) -> 212956.3259 | N11: =SUM(N12:N16) -> 212906.8475 | O11: =SUM(O12:O16) -> 472374.0885 | P11: =SUM(P12:P16) -> 472340.0859 | Q11: =SUM(Q12:Q16) -> 672070.9192 | R11: =SUM(R12:R16) -> 671462.1272 | S11: =SUM(S12:S16) -> 608.7920079 | T11: =SUM(T12:T16) -> 2678134.067 | U11: =SUM(U12:U16) -> 2676617.006 | V11: =SUM(V12:V16) -> 1517.060652 | W11: =SUM(W12:W16) -> 5967957.224 | X11: =SUM(X12:X16) -> 5966164.158 | Y11: =SUM(Y12:Y16) -> 1793.06564 | Z11: =SUM(Z12:Z16) -> 12192241.19 | AA11: =SUM(AA12:AA16) -> 12190650.62 | AB11: =SUM(AB12:AB16) -> 1590.57118 | AC11: =SUM(AC12:AC16) -> 500361.2533 | AD11: =SUM(AD12:AD16) -> 499529.1912 | AE11: =SUM(AE12:AE16) -> 832.0621522 | AF11: =SUM(AF12:AF16) -> 2037744.522 | AG11: =SUM(AG12:AG16) -> 2035594.355 | AH11: =SUM(AH12:AH16) -> 2150.166712 | AI11: =SUM(AI12:AI16) -> 4715088.484 | AJ11: =SUM(AJ12:AJ16) -> 4712405.511 | AK11: =SUM(AK12:AK16) -> 2682.97357 | AL11: =SUM(AL12:AL16) -> 10439325.98 | AM11: =SUM(AM12:AM16) -> 10436749.88 | AN11: =SUM(AN12:AN16) -> 2576.09705 | AR11: =LE(#REF!,AQ25:AQ43,AP25:AP43,19) -> 
A12: Q 1 | B12: n/a | C12: male | D12: 1 | E12: =HLOOKUP('III Tool Overview'!$H$7,Prevalence!$B$2:$AV$268,Prevalence!AW10,FALSE) -> 0 | F12: =F86 -> 400792.6 | G12: =G86 -> 0 | H12: =H86 -> 20240.92646 | I12: =I86 -> 6816.371548 | J12: =J86 -> 6811.774772 | K12: 26954.40356 | L12: 26943.45395 | M12: 59580.23903 | N12: 59568.60262 | O12: 121843.7767 | P12: 121836.4763 | Q12: 205555.3814 | R12: 205386.0964 | S12: 169.284993 | T12: 805935.213 | U12: 805521.6118 | V12: 413.601258 | W12: 1754841.719 | X12: 1754369.42 | Y12: 472.2988999 | Z12: 3468918.744 | AA12: 3468526.94 | AB12: 391.8034622 | AC12: 126108.9628 | AD12: 125920.2836 | AE12: 188.6792696 | AF12: 504163.9548 | AG12: 503683.1997 | AH12: 480.7550874 | AI12: 1133342.16 | AJ12: 1132752.986 | AK12: 589.173981 | AL12: 2385054.666 | AM12: 2384501.116 | AN12: 553.5503155 | AR12: =LE(#REF!,AQ66:AQ84,AP66:AP84,19) -> 
A13: Q 2 | B13: n/a | C13: male | D13: 2 | E13: =HLOOKUP('III Tool Overview'!$H$7,Prevalence!$B$2:$AV$268,Prevalence!AW11,FALSE) -> 0 | F13: =F129 -> 418269.8 | G13: =G129 -> 0 | H13: =H129 -> 21165.52228 | I13: =I129 -> 5243.81403 | J13: 5240.174832 | K13: 21314.51281 | L13: 21305.66566 | M13: 49030.97485 | N13: 49021.28781 | O13: 106608.2494 | P13: 106601.7492 | Q13: 154786.2879 | R13: 154661.0974 | S13: 125.1904691 | T13: 615612.5692 | U13: 615301.4438 | V13: 311.1253676 | W13: 1366637.257 | X13: 1366271.235 | Y13: 366.0215447 | Z13: 2771595.994 | AA13: 2771275.176 | AB13: 320.8181488 | AC13: 111540.0446 | AD13: 111375.3544 | AE13: 164.6901748 | AF13: 452687.2245 | AG13: 452263.1386 | AH13: 424.0859422 | AI13: 1040446.115 | AJ13: 1039919.176 | AK13: 526.9390139 | AL13: 2268193.667 | AM13: 2267689.827 | AN13: 503.8404731 | AR13: =LE(#REF!,AQ109:AQ127,AP109:AP127,19) -> 
A14: Q 3 | B14: n/a | C14: male | D14: 3 | E14: =HLOOKUP('III Tool Overview'!$H$7,Prevalence!$B$2:$AV$268,Prevalence!AW12,FALSE) -> 0 | F14: =F172 -> 423944.2 | G14: =G172 -> 0 | H14: =H172 -> 23082.28899 | I14: 4421.04915 | J14: 4417.397971 | K14: 18201.32309 | L14: 18192.36028 | M14: 42744.94784 | N14: 42735.02214 | O14: 96510.52109 | P14: 96503.73856 | Q14: 130960.933 | R14: 130841.6031 | S14: 119.3299427 | T14: 524862.5879 | U14: 524564.4282 | V14: 298.1596854 | W14: 1178500.906 | X14: 1178146.533 | Y14: 354.3726074 | Z14: 2430608.684 | AA14: 2430290.584 | AB14: 318.1005205 | AC14: 99119.28862 | AD14: 98955.61636 | AE14: 163.672263 | AF14: 405226.3066 | AG14: 404803.3828 | AH14: 422.9237794 | AI14: 942416.2739 | AJ14: 941888.6825 | AK14: 527.5913906 | AL14: 2098923.134 | AM14: 2098416.342 | AN14: 506.7923672 | AR14: =LE(#REF!,AQ152:AQ170,AP152:AP170,19) -> 
A15: Q 4 | B15: n/a | C15: male | D15: 4 | E15: =HLOOKUP('III Tool Overview'!$H$7,Prevalence!$B$2:$AV$268,Prevalence!AW13,FALSE) -> 0 | F15: =F215 -> 420393.6 | G15: =G215 -> 0 | H15: =H215 -> 24624.76165 | I15: 3572.890334 | J15: 3569.362402 | K15: 14890.28055 | L15: 14881.48184 | M15: 35686.92709 | N15: 35676.96766 | O15: 83734.1405 | P15: 83727.12235 | Q15: 106009.5339 | R15: 105899.5763 | S15: 109.9575637 | T15: 427741.9712 | U15: 427465.2855 | V15: 276.6856992 | W15: 970091.5993 | X15: 969758.9203 | Y15: 332.6790038 | Z15: 2030159.712 | AA15: 2029854.125 | AB15: 305.5872288 | AC15: 87905.04834 | AD15: 87741.48481 | AE15: 163.5635355 | AF15: 361796.8398 | AG15: 361372.1265 | AH15: 424.7132408 | AI15: 850858.3885 | AJ15: 850325.5768 | AK15: 532.8116635 | AL15: 1935941.625 | AM15: 1935427.317 | AN15: 514.3077518 | AR15: =LE(#REF!,AQ195:AQ213,AP195:AP213,19) -> 
A16: Q 5 | B16: n/a | C16: male | D16: 5 | E16: =HLOOKUP('III Tool Overview'!$H$7,Prevalence!$B$2:$AV$268,Prevalence!AW14,FALSE) -> 0 | F16: =F258 -> 421062 | G16: =G258 -> 0 | H16: =H258 -> 25176.16985 | I16: 2505.576511 | J16: 2502.877336 | K16: 10575.11043 | L16: 10568.16701 | M16: 25913.2371 | N16: 25904.96723 | O16: 63677.40082 | P16: 63670.99954 | Q16: 74758.783 | R16: 74673.75396 | S16: 85.02903942 | T16: 303981.7254 | U16: 303764.2368 | V16: 217.4886418 | W16: 697885.7429 | X16: 697618.0493 | Y16: 267.6935844 | Z16: 1490958.06 | AA16: 1490703.799 | AB16: 254.26182 | AC16: 75687.90894 | AD16: 75536.45203 | AE16: 151.4569094 | AF16: 313870.1961 | AG16: 313472.5075 | AH16: 397.688662 | AI16: 748025.5465 | AJ16: 747519.089 | AK16: 506.4575213 | AL16: 1751212.889 | AM16: 1750715.283 | AN16: 497.6061419 | AR16: =LE(#REF!,AQ195:AQ213,AP195:AP213,19) -> 
A17: Females, by SIMD
A18: Females | F18: =SUM(F19:F23) -> 2269599.8 | G18: =SUM(G19:G23) -> 0 | H18: 85710.33077 | I18: 22612.55475 | J18: 22605.09186 | K18: 91979.50435 | L18: 91960.75766 | M18: 212839.2387 | N18: 212817.6604 | O18: 472695.3282 | P18: 472679.381 | Q18: 525259.1415 | R18: 525024.0239 | S18: 235.1176552 | T18: 2087878.762 | U18: 2087275.354 | V18: 603.4083548 | W18: 4641697.201 | X18: 4640952.124 | Y18: 745.076637 | Z18: 9479341.005 | AA18: 9478637.638 | AB18: 703.3671309 | AC18: 571614.8958 | AD18: 571039.441 | AE18: 575.4548464 | AF18: 2304454.206 | AG18: 2302951.868 | AH18: 1502.338265 | AI18: 5248574.66 | AJ18: 5246658.597 | AK18: 1916.062233 | AL18: 11291884.03 | AM18: 11289953.51 | AN18: 1930.51531 | AR18: =LE(#REF!,AQ45:AQ63,AP45:AP63,19) -> 
A19: Q 1 | B19: n/a | C19: female | D19: 1 | E19: =HLOOKUP('III Tool Overview'!$H$7,Prevalence!$B$2:$AV$268,Prevalence!AW17,FALSE) -> 0 | F19: =F107 -> 459410 | G19: =G107 -> 0 | H19: =H107 -> 13572.37644 | I19: 7310.283267 | J19: 7308.941504 | K19: 28526.63692 | L19: =L107 -> 28523.33396 | M19: 62292.88568 | N19: 62289.1211 | O19: 126588.9004 | P19: 126586.1498 | Q19: 169057.8204 | R19: 169007.4202 | S19: 50.40014132 | T19: 660005.8178 | U19: 659877.1106 | V19: 128.7072421 | W19: 1434875.665 | X19: 1434718.919 | Y19: 156.745753 | Z19: 2849643.177 | AA19: 2849501.706 | AB19: 141.4702788 | AC19: 154559.4902 | AD19: 154446.5161 | AE19: 112.9740454 | AF19: 611931.6368 | AG19: 611637.609 | AH19: 294.0278138 | AI19: 1358695.318 | AJ19: 1358321.313 | AK19: 374.0049245 | AL19: 2810854.06 | AM19: 2810478.396 | AN19: 375.6638169 | AR19: =LE(#REF!,AQ87:AQ105,AP87:AP105,19) -> 
A20: Q 2 | B20: n/a | C20: female | D20: 2 | E20: =HLOOKUP('III Tool Overview'!$H$7,Prevalence!$B$2:$AV$268,Prevalence!AW18,FALSE) -> 0 | F20: =F150 -> 461278.4 | G20: =G150 -> 0 | H20: =H150 -> 14121.4257 | I20: 5374.249453 | J20: 5373.060418 | K20: 21908.21214 | L20: 21905.2573 | M20: 50493.6364 | N20: 50490.27645 | O20: 109797.3872 | P20: 109794.9181 | Q20: 123749.2986 | R20: 123709.1899 | S20: 40.1087277 | T20: 491130.6553 | U20: 491027.806 | V20: 102.849239 | W20: 1086901.879 | X20: 1086775.243 | Y20: 126.6361253 | Z20: 2198182.792 | AA20: 2198064.802 | AB20: 117.9895517 | AC20: 128913.5901 | AD20: 128813.8381 | AE20: 99.75201889 | AF20: 518933.5159 | AG20: 518673.0474 | AH20: 260.4685398 | AI20: 1176662.417 | AJ20: 1176329.982 | AK20: 332.4347531 | AL20: 2500475.239 | AM20: 2500139.593 | AN20: 335.6459403 | AR20: =LE(#REF!,AQ130:AQ148,AP130:AP148,19) -> 
A21: Q 3 | B21: n/a | C21: female | D21: 3 | E21: =HLOOKUP('III Tool Overview'!$H$7,Prevalence!$B$2:$AV$268,Prevalence!AW19,FALSE) -> 0 | F21: =F193 -> 453056.8 | G21: =G193 -> 0 | H21: =H193 -> 17420.41763 | I21: 4216.601476 | J21: 4214.8584 | K21: 17451.65647 | L21: 17447.33198 | M21: 41235.28648 | N21: 41230.42206 | O21: 93821.75335 | P21: 93818.27439 | Q21: 98674.17197 | R21: 98621.72309 | S21: 52.44888072 | T21: 395359.5179 | U21: 395225.617 | V21: 133.9008864 | W21: 887374.0774 | X21: 887209.5993 | Y21: 164.4781737 | Z21: 1834179.466 | AA21: 1834024.812 | AB21: 154.6538881 | AC21: 109296.7141 | AD21: 109176.5528 | AE21: 120.1612497 | AF21: 442926.4418 | AG21: 442613.655 | AH21: 312.7867969 | AI21: 1015269.053 | AJ21: 1014871.724 | AK21: 397.3293866 | AL21: 2200229.099 | AM21: 2199830.539 | AN21: 398.5593917 | AR21: =LE(#REF!,AQ173:AQ191,AP173:AP191,19) -> 
A22: Q 4 | B22: n/a | C22: female | D22: 4 | E22: =HLOOKUP('III Tool Overview'!$H$7,Prevalence!$B$2:$AV$268,Prevalence!AW20,FALSE) -> 0 | F22: =F236 -> 448273 | G22: =G236 -> 0 | H22: =H236 -> 18819.93889 | I22: 3352.990907 | J22: 3351.343151 | K22: 14056.0638 | L22: 14051.89871 | M22: 33934.38111 | N22: 33929.58484 | O22: 80377.70471 | P22: 80374.19109 | Q22: 78366.34336 | R22: 78318.36081 | S22: 47.98254686 | T22: 316145.0881 | U22: 316021.8162 | V22: 123.2718911 | W22: 716616.4717 | X22: 716463.6176 | Y22: 152.8540393 | Z22: 1502720.798 | AA22: 1502574.113 | AB22: 146.6846457 | AC22: 95742.63143 | AD22: 95625.39411 | AE22: 117.2373178 | AF22: 390051.9036 | AG22: 389745.7404 | AH22: 306.16322 | AI22: 901976.2374 | AJ22: 901585.8832 | AK22: 390.3541723 | AL22: 1987871.394 | AM22: 1987478.409 | AN22: 392.9849575 | AR22: =LE(#REF!,AQ216:AQ234,AP216:AP234,19) -> 
A23: Q 5 | B23: n/a | C23: female | D23: 5 | E23: =HLOOKUP('III Tool Overview'!$H$7,Prevalence!$B$2:$AV$268,Prevalence!AW21,FALSE) -> 0 | F23: =F279 -> 447581.6 | G23: =G279 -> 0 | H23: =H279 -> 21776.17211 | I23: 2358.429644 | J23: 2356.888384 | K23: 10036.93502 | L23: 10032.9357 | M23: 24883.04901 | N23: 24878.25594 | O23: 62109.58257 | P23: 62105.84766 | Q23: 55411.50717 | R23: 55367.32981 | S23: 44.17735865 | T23: 225237.683 | U23: 225123.0039 | V23: 114.6790962 | W23: 515929.1081 | X23: 515784.7456 | Y23: 144.3625458 | Z23: 1094614.773 | AA23: 1094472.204 | AB23: 142.5687666 | AC23: 83102.47004 | AD23: 82977.13983 | AE23: 125.3302146 | AF23: 340610.7081 | AG23: 340281.8162 | AH23: 328.8918946 | AI23: 795971.6342 | AJ23: 795549.6952 | AK23: 421.9389963 | AL23: 1792454.237 | AM23: 1792026.576 | AN23: 427.6612033 | AR23: =LE(#REF!,AQ259:AQ277,AP259:AP277,19) -> 
A24: age/sex breakdown: All
A25: Male <1 | B25: 0.5 | C25: male | D25: all | F25: =F66+F109+F152+F195+F238 -> 30225.2 | AP25: 0.1 | AQ25: 1
A26: Male 1-4 | B26: 2.5 | C26: male | D26: all | F26: =F67+F110+F153+F196+F239 -> 116561.8 | AP26: 0.5 | AQ26: 4
A27: Male 5-9 | B27: 7.5 | C27: male | D27: all | F27: 138205.6 | AP27: 0.5 | AQ27: 5
A28: Male 10-14 | B28: 12.5 | C28: male | D28: all | F28: 150886.6 | AP28: 0.5 | AQ28: 5
A29: Male 15-19 | B29: 17.5 | C29: male | D29: all | F29: 167219.4 | G29: =G70+G113+G156+G199+G242 -> 0 | H29: 8302.927021 | I29: 100.7521371 | J29: =J70+J113+J156+J199+J242 -> 100.6648131 | K29: 440.3286425 | L29: 440.0878424 | M29: 1154.239967 | N29: 1153.913086 | O29: 3367.684163 | P29: 3367.336583 | Q29: 8160.923107 | R29: 8153.849858 | S29: 7.073248756 | T29: 34974.42974 | U29: 34955.20341 | V29: 19.22632294 | W29: 88435.92401 | X29: 88410.19338 | Y29: 25.73063093 | Z29: 236811.0633 | AA29: 236783.8777 | AB29: 27.1856177 | AC29: 12266.54458 | AD29: 12247.20938 | AE29: 19.33519929 | AF29: 51818.44163 | AG29: 51766.30893 | AH29: 52.13269796 | AI29: 127925.6748 | AJ29: 127856.44 | AK29: 69.23472891 | AL29: 327124.0168 | AM29: 327050.7176 | AN29: 73.29916003 | AP29: 0.5 | AQ29: 5
A30: Male 20-24 | B30: 22.5 | C30: male | D30: all | F30: 180773.2 | G30: =G71+G114+G157+G200+G243 -> 0 | H30: 11584.75181 | I30: 147.2215127 | J30: 147.0566839 | K30: 643.153129 | L30: 642.6990167 | M30: 1684.439801 | N30: 1683.824531 | O30: 4901.326611 | P30: 4900.676276 | Q30: 11336.05648 | R30: 11323.36466 | S30: 12.69182125 | T30: 48511.97855 | U30: 48477.53663 | V30: 34.44192038 | W30: 122324.6653 | X30: 122278.6899 | Y30: 45.97542347 | Z30: 325110.922 | AA30: 325062.6094 | AB30: 48.31267488 | AC30: 15354.52643 | AD30: 15323.26845 | AE30: 31.25798346 | AF30: 64839.20212 | AG30: 64754.96997 | AH30: 84.23214714 | AI30: 159948.8888 | AJ30: 159837.136 | AK30: 111.7528731 | AL30: 408088.0277 | AM30: 407969.9917 | AN30: 118.0359812 | AP30: 0.5 | AQ30: 5
A31: Male 25-29 | B31: 27.5 | C31: male | D31: all | F31: 171198.4 | G31: =G72+G115+G158+G201+G244 -> 0 | H31: 9105.089051 | I31: 219.3034932 | J31: 219.0884298 | K31: 957.1962187 | L31: 956.6050166 | M31: 2502.226265 | N31: 2501.42899 | O31: 7238.564612 | P31: 7237.734118 | Q31: 15570.54802 | R31: 15555.27852 | S31: 15.26950181 | T31: 66457.24438 | U31: 66415.95073 | V31: 41.29365272 | W31: 166710.4423 | X31: 166655.6342 | Y31: 54.8081539 | Z31: 436907.3031 | AA31: 436850.4357 | AB31: 56.86736375 | AC31: 18123.37999 | AD31: 18091.76472 | AE31: 31.61526779 | AF31: 76469.8025 | AG31: 76384.72691 | AH31: 85.0755952 | AI31: 188328.3534 | AJ31: 188215.7607 | AK31: 112.5927074 | AL31: 478141.6319 | AM31: 478023.3953 | AN31: 118.236654 | AP31: 0.5 | AQ31: 5
A32: Male 30-34 | B32: 32.5 | C32: male | D32: all | F32: 152486.2 | G32: =G73+G116+G159+G202+G245 -> 0 | H32: 8684.517239 | I32: 258.3154223 | J32: 258.043315 | K32: 1126.573918 | L32: 1125.827308 | M32: 2940.074573 | N32: 2939.071707 | O32: 8461.272725 | P32: 8460.240911 | Q32: 17307.13329 | R32: 17288.9021 | S32: 18.23118814 | T32: 73711.41176 | U32: 73662.24827 | V32: 49.16349035 | W32: 184133.4334 | X32: 184068.4862 | Y32: 64.94725866 | Z32: 477066.9999 | AA32: 477000.3105 | AB32: 66.68937028 | AC32: 18455.19376 | AD32: 18420.66523 | AE32: 34.52853038 | AF32: 77814.08037 | AG32: 77721.27399 | AH32: 92.80637801 | AI32: 191358.3396 | AJ32: 191235.7687 | AK32: 122.5709486 | AL32: 483732.4361 | AM32: 483604.3329 | AN32: 128.103238 | AP32: 0.5 | AQ32: 5
A33: Male 35-39 | B33: 37.5 | C33: male | D33: all | F33: 169450.4 | G33: =G74+G117+G160+G203+G246 -> 0 | H33: 8307.327314 | I33: 429.9890233 | J33: 429.5984299 | K33: 1872.175249 | L33: 1871.107759 | M33: 4868.951837 | N33: 4867.529837 | O33: 13863.44484 | P33: 13862.01907 | Q33: 26229.33042 | R33: 26205.50422 | S33: =S74+S117+S160+S203+S246 -> 23.82619851 | T33: 111265.3587 | U33: 111201.4658 | V33: 63.89290342 | W33: 275763.4133 | X33: 275679.8021 | Y33: 83.61120029 | Z33: 699168.7621 | AA33: 699084.6824 | AB33: 84.07967836 | AC33: 24854.72929 | AD33: 24814.76557 | AE33: 39.96372529 | AF33: 104642.2362 | AG33: 104535.081 | AH33: 107.1551805 | AI33: 256558.5789 | AJ33: 256417.6574 | AK33: 140.9214589 | AL33: 642825.4801 | AM33: 642679.6134 | AN33: 145.8667408 | AP33: 0.5 | AQ33: 5
A34: Male 40-44 | B34: 42.5 | C34: male | D34: all | F34: 191272 | G34: =G75+G118+G161+G204+G247 -> 0 | H34: 9785.270441 | I34: 638.4752657 | J34: 637.8690236 | K34: 2775.549041 | L34: 2773.898314 | M34: 7194.611989 | N34: 7192.430158 | O34: 20280.46751 | P34: 20278.33199 | Q34: 36393.09015 | R34: 36358.53435 | S34: 34.5558009 | T34: 153855.1695 | U34: 153762.9641 | V34: 92.20541147 | W34: 378760.3235 | X34: 378640.6872 | Y34: 119.6363225 | Z34: 942637.2188 | AA34: 942519.1342 | AB34: 118.0845477 | AC34: 31984.06505 | AD34: 31930.33404 | AE34: 53.73101063 | AF34: 134469.0841 | AG34: 134325.3435 | AH34: 143.740541 | AI34: 328746.9289 | AJ34: 328558.646 | AK34: 188.2829452 | AL34: 816861.4389 | AM34: 816668.2713 | AN34: 193.1676543 | AP34: 0.5 | AQ34: 5
A35: Male 45-49 | B35: 47.5 | C35: male | D35: all | F35: 192157.2 | G35: =G76+G119+G162+G205+G248 -> 0 | H35: 11722.19411 | I35: 983.8628786 | J35: 982.7748077 | K35: 4262.048514 | L35: 4259.108859 | M35: 10967.56718 | N35: 10963.74487 | O35: 30243.29774 | P35: 30239.7398 | Q35: 50177.00681 | R35: 50121.51519 | S35: 55.49161709 | T35: 210695.1337 | U35: 210548.5445 | V35: 146.589195 | W35: 511774.1288 | X35: 511587.1929 | Y35: 186.9358421 | Z35: 1227433.365 | AA35: 1227255.479 | AB35: 177.885496 | AC35: 39490.37646 | AD35: 39412.13637 | AE35: 78.24008617 | AF35: 165509.9753 | AG35: 165301.6636 | AH35: 208.3116814 | AI35: 402081.3547 | AJ35: 401810.7317 | AK35: 270.6230113 | AL35: 980997.8946 | AM35: 980725.1363 | AN35: 272.7582726 | AP35: 0.5 | AQ35: 5
A36: Male 50-54 | B36: 52.5 | C36: male | D36: all | F36: 175029.8 | G36: =G77+G120+G163+G206+G249 -> 0 | H36: 11061.92327 | I36: 1193.507736 | J36: 1192.144173 | K36: 5153.014899 | L36: 5149.358915 | M36: 13169.10734 | N36: 13164.42885 | O36: 35577.54545 | P36: 35573.3966 | Q36: 56094.86361 | R36: 56030.77612 | S36: 64.08749377 | T36: 234142.123 | U36: 233974.4061 | V36: 167.71691 | W36: 562046.4699 | X36: 561836.035 | Y36: 210.4348833 | Z36: 1305161.148 | AA36: 1304967.359 | AB36: 193.7888072 | AC36: 41310.54985 | AD36: 41225.82887 | AE36: 84.72098575 | AF36: 172624.4095 | AG36: 172399.8947 | AH36: 224.5148214 | AI36: 416856.7666 | AJ36: 416567.4179 | AK36: 289.3486436 | AL36: 999865.6883 | AM36: 999578.8297 | AN36: 286.8585207 | AP36: 0.5 | AQ36: 5
A37: Male 55-59 | B37: 57.5 | C37: male | D37: all | F37: 160149.2 | G37: =G78+G121+G164+G207+G250 -> 0 | H37: 9625.612391 | I37: 1679.168344 | J37: 1677.390183 | K37: 7198.346734 | L37: 7193.652963 | M37: 18128.78585 | N37: 18122.9712 | O37: 46940.22304 | P37: 46935.543 | Q37: 68845.90212 | R37: 68772.99749 | S37: 72.90462917 | T37: 283929.4583 | U37: 283742.2136 | V37: 187.2447362 | W37: 665594.944 | X37: 665367.4122 | Y37: 227.5317858 | Z37: 1450294.267 | AA37: 1450096.557 | AB37: 197.7105096 | AC37: 46550.67765 | AD37: 46461.04595 | AE37: 89.63170022 | AF37: 193282.3655 | AG37: 193047.0789 | AH37: 235.2866355 | AI37: 460813.5947 | AJ37: 460515.1605 | AK37: 298.4342153 | AL37: 1066779.262 | AM37: 1066492.328 | AN37: 286.9336631 | AP37: 0.5 | AQ37: 5
A38: Male 60-64 | B38: 62.5 | C38: male | D38: all | F38: 155600.4 | G38: =G79+G122+G165+G208+G251 -> 0 | H38: 9131.923771 | I38: 2177.459495 | J38: 2175.223321 | K38: 9271.539201 | L38: 9265.72491 | M38: 23031.66915 | N38: 23024.68792 | O38: 57376.58375 | P38: 57371.4578 | Q38: 80566.00133 | R38: 80483.26289 | S38: 82.73844151 | T38: 328668.9771 | U38: 328460.1898 | V38: 208.7873304 | W38: 754255.1659 | X38: 754008.861 | Y38: 246.3049301 | Z38: 1554631.403 | AA38: 1554427.119 | AB38: 204.2834775 | AC38: 52038.98632 | AD38: 51941.38992 | AE38: 97.59639866 | AF38: 214759.4507 | AG38: 214505.6076 | AH38: 253.8431498 | AI38: 505887.737 | AJ38: 505570.6148 | AK38: 317.1221612 | AL38: 1133763.242 | AM38: 1133466.359 | AN38: 296.8834377 | AP38: 0.5 | AQ38: 5
A39: Male 65-69 | B39: 67.5 | C39: male | D39: all | F39: 119181.8 | G39: =G80+G123+G166+G209+G252 -> 0 | H39: 6947.902546 | I39: 2602.199611 | J39: 2599.636288 | K39: 10914.61528 | L39: 10908.16313 | M39: 26311.23988 | N39: 26303.98846 | O39: 60476.12036 | P39: 60471.70239 | Q39: 80668.18795 | R39: 80588.72492 | S39: 79.46303362 | T39: 321562.1395 | U39: 321368.9185 | V39: 193.2209314 | W39: 705768.1732 | X39: 705553.4264 | Y39: 214.7467618 | Z39: 1302019.235 | AA39: 1301852.887 | AB39: 166.3477616 | AC39: 49558.88019 | AD39: 49468.23195 | AE39: 90.64824171 | AF39: 201764.5936 | AG39: 201533.3423 | AH39: 231.2513421 | AI39: 462872.6607 | AJ39: 462592.4743 | AK39: 280.1863919 | AL39: 969285.5202 | AM39: 969034.9112 | AN39: 250.6089171 | AP39: 0.5 | AQ39: 5
A40: Male 70-74 | B40: 72.5 | C40: male | D40: all | F40: 98404 | G40: 0 | H40: 5106.069712 | I40: =I81+I124+I167+I210+I253 -> 2881.061023 | J40: 2878.526227 | K40: 11912.38156 | L40: 11906.20811 | M40: 27926.09415 | N40: 27919.60215 | O40: 59850.25122 | P40: 59846.95509 | Q40: 77788.64762 | R40: 77720.20814 | S40: 68.43947671 | T40: 303449.8034 | U40: 303289.3825 | V40: =V81+V124+V167+V210+V253 -> 160.4209051 | W40: 639378.1646 | X40: 639209.5542 | Y40: 168.6103888 | Z40: 1073138.686 | AA40: 1073012.784 | AB40: 125.9022363 | AC40: 47270.53148 | AD40: 47193.21286 | AE40: 77.31862575 | AF40: 189977.3005 | AG40: 189783.9129 | AH40: 193.387616 | AI40: 425253.0651 | AJ40: 425025.6368 | AK40: 227.4283418 | AL40: 839494.7895 | AM40: 839298.4785 | AN40: 196.3110092 | AP40: 0.5 | AQ40: 5
A41: Male 75-79 | B41: 77.5 | C41: male | D41: all | F41: 73923.4 | G41: 0 | H41: 2343.940595 | I41: 3304.007034 | J41: 3302.315679 | K41: 13267.22211 | L41: 13263.32498 | M41: 29435.76335 | N41: 29432.09291 | O41: 55643.2786 | P41: 55641.90109 | Q41: 69384.14771 | R41: 69348.62926 | S41: 35.51845383 | T41: 258684.1284 | U41: 258605.9795 | V41: =V82+V125+V168+V211+V254 -> 78.148914 | W41: 501624.2454 | X41: 501548.5623 | Y41: 75.68316667 | Z41: 707297.7273 | AA41: 707239.7258 | AB41: 58.00141658 | AC41: 43726.0488 | AD41: 43683.44029 | AE41: 42.60851886 | AF41: 171119.8953 | AG41: 171016.841 | AH41: 103.054313 | AI41: 364763.2817 | AJ41: 364647.7302 | AK41: 115.5515268 | AL41: 647078.7308 | AM41: 646983.1086 | AN41: 95.62216893 | AP41: 0.5 | AQ41: 5
A42: Male 80-84 | B42: 82.5 | C42: male | D42: all | F42: 46422.4 | G42: 0 | H42: 1531.116207 | I42: 2730.866969 | J42: 2729.426722 | K42: 10675.64032 | L42: 10672.50834 | M42: 22575.11648 | N42: 22572.47974 | O42: 38765.91259 | P42: 38765.17321 | Q42: 46424.73848 | R42: 46400.25427 | S42: 24.48421026 | T42: 165693.9818 | U42: 165643.4759 | V42: =V83+V126+V169+V212+V255 -> 50.50596164 | W42: 297405.4995 | X42: 297359.734 | Y42: 45.76550356 | Z42: 363232.9116 | AA42: 363194.7508 | AB42: 38.1607694 | AC42: 31462.34615 | AD42: 31430.46122 | AE42: 31.88492734 | AF42: 120163.8186 | AG42: 120089.2672 | AH42: 74.55144388 | AI42: 245435.1411 | AJ42: 245355.1007 | AK42: 80.04046572 | AL42: 400990.8956 | AM42: 400925.9637 | AN42: 64.93193779 | AP42: 0.5 | AQ42: 5
A43: Male 85-89 | B43: 87.5 | C43: male | D43: all | F43: 22922 | G43: 0 | H43: 750.6869938 | I43: 2038.613649 | J43: 2037.572613 | K43: 7531.647597 | L43: 7529.643669 | M43: 14495.5669 | N43: 14494.22591 | O43: 21266.7672 | P43: 21266.55616 | Q43: 22424.75014 | R43: 22413.29874 | S43: 11.45139932 | T43: 72075.6193 | U43: 72055.00018 | V43: =V84+V127+V170+V213+V256 -> 20.61912392 | W43: 107994.222 | X43: 107976.5741 | Y43: 17.64788034 | Z43: 97665.89344 | AA43: 97646.56907 | AB43: 19.32437484 | AC43: 19127.63128 | AD43: 19108.4303 | AE43: 19.20098147 | AF43: 69377.44656 | AG43: 69335.56099 | AH43: 41.88557535 | AI43: 130224.585 | AJ43: 130182.9007 | AK43: 41.68424181 | AL43: 185552.953 | AM43: 185519.1568 | AN43: 33.79626215 | AP43: 0.5 | AQ43: =2/#REF! -> 
A44: Male 90+ | B44: 95 | C44: female | D44: all | F44: 8272.4 | G44: 0 | H44: 298.4167624 | I44: 1174.897977 | J44: 1174.256604 | K44: 3934.198021 | L44: 3933.209605 | M44: 6570.87119 | N44: 6570.427136 | O44: 8121.3481 | P44: 8121.321833 | Q44: 4699.591908 | R44: 4697.026415 | S44: 2.56549327 | T44: 10457.10954 | U44: 10453.5266 | V44: 3.582943091 | W44: 5988.00853 | X44: 5983.313022 | Y44: 4.695507913 | Z44: -6335.710957 | AA44: -6343.658036 | AB44: 7.947078622 | AC44: 8786.786065 | AD44: 8777.006096 | AE44: 9.779969408 | AF44: 29112.41928 | AG44: 29093.48169 | AH44: 18.9375936 | AI44: 48033.53306 | AJ44: 48016.33415 | AK44: 17.19890849 | AL44: 58743.97338 | AM44: 58729.28995 | AN44: 14.68343185
A45: Female <1 | B45: 0.5 | C45: female | D45: all | F45: =F87+F130+F173+F216+F259 -> 28968.2 | AP45: 0.1 | AQ45: 1
A46: Female 1-4 | B46: 2.5 | C46: female | D46: all | F46: =F88+F131+F174+F217+F260 -> 111098.2 | AP46: 0.5 | AQ46: 4
A47: Female 5-9 | B47: 7.5 | C47: female | D47: all | F47: 132179 | AP47: 0.5 | AQ47: 5
A48: Female 10-14 | B48: 12.5 | C48: female | D48: all | F48: 143553.4 | AP48: 0.5 | AQ48: 5
A49: Female 15-19 | B49: 17.5 | C49: female | D49: all | F49: 159488.6 | G49: =G91+G134+G177+G220+G263 -> 0 | H49: 7112.520369 | I49: 39.68374869 | J49: 39.65177598 | K49: 176.1838376 | L49: 176.0945564 | M49: 475.1664723 | N49: 475.0435504 | O49: 1480.06818 | P49: 1479.93542 | Q49: 3214.383644 | R49: 3211.793855 | S49: 2.589789013 | T49: 13991.74322 | U49: 13984.61583 | V49: 7.127380396 | W49: 36375.15745 | X49: 36365.48906 | Y49: 9.668391231 | Z49: 103653.1324 | AA49: 103642.7774 | AB49: 10.35500146 | AC49: 16928.95411 | AD49: 16904.52601 | AE49: 24.42809311 | AF49: 70438.90427 | AG49: 70373.73722 | AH49: 65.16704936 | AI49: 169415.6552 | AJ49: 169329.8928 | AK49: 85.76238775 | AL49: 410033.2688 | AM49: 409942.6008 | AN49: 90.66802568 | AP49: 0.5 | AQ49: 5
A50: Female 20-24 | B50: 22.5 | C50: female | D50: all | F50: 176551.6 | G50: =G92+G135+G178+G221+G264 -> 0 | H50: 10466.73815 | I50: 62.13319425 | J50: 62.0664295 | K50: 275.7961089 | L50: 275.6097609 | M50: 743.4862925 | N50: 743.229993 | O50: 2312.344843 | P50: 2312.068989 | Q50: 4784.255957 | R50: 4779.115072 | S50: 5.14088561 | T50: 20799.37139 | U50: 20785.24039 | V50: 14.13100109 | W50: 53942.52758 | X50: 53923.39247 | Y50: 19.13511136 | Z50: 152705.7297 | AA50: 152685.3053 | AB50: 20.4243752 | AC50: 20912.61028 | AD50: 20872.41426 | AE50: 40.1960163 | AF50: 86998.66726 | AG50: 86891.46648 | AH50: 107.2007803 | AI50: 209165.9268 | AJ50: 209024.9167 | AK50: 141.0101028 | AL50: 505655.4804 | AM50: 505506.5699 | AN50: 148.9105456 | AP50: 0.5 | AQ50: 5
A51: Female 25-29 | B51: 27.5 | C51: female | D51: all | F51: 168390 | G51: =G93+G136+G179+G222+G265 -> 0 | H51: 7075.760428 | I51: 99.0317734 | J51: 98.95467561 | K51: 439.3795749 | L51: 439.164624 | M51: 1183.282477 | N51: 1182.987556 | O51: 3667.761736 | P51: 3667.446907 | Q51: 7031.255912 | R51: 7025.781969 | S51: 5.473943076 | T51: 30500.0264 | U51: 30485.01586 | V51: 15.0105427 | W51: 78754.34749 | X51: 78734.09537 | Y51: 20.25212329 | Z51: 220264.7552 | AA51: 220243.3022 | AB51: 21.45302162 | AC51: 23418.65235 | AD51: 23386.41614 | AE51: 32.23620973 | AF51: 97384.42149 | AG51: 97298.50731 | AH51: 85.91418409 | AI51: 233937.5899 | AJ51: 233824.7136 | AK51: 112.8762134 | AL51: 564066.8506 | AM51: 563947.9629 | AN51: 118.8877081 | AP51: 0.5 | AQ51: 5
A52: Female 30-34 | B52: 32.5 | C52: female | D52: all | F52: 155899.8 | G52: =G94+G137+G180+G223+G266 -> 0 | H52: 6814.159902 | I52: 124.1066488 | J52: 124.0057724 | K52: 550.4022678 | L52: 550.1212982 | M52: 1480.929758 | N52: 1480.54509 | O52: 4576.403709 | P52: 4575.996058 | Q52: 8315.145473 | R52: 8308.386749 | S52: 6.758723427 | T52: 36005.3659 | U52: 35986.86869 | V52: 18.49721653 | W52: 92643.92075 | X52: 92619.04084 | Y52: 24.8799067 | Z52: 256588.7258 | AA52: 256562.5413 | AB52: 26.18445541 | AC52: 23585.77299 | AD52: 23551.92315 | AE52: 33.84983457 | AF52: 98043.79588 | AG52: 97953.63474 | AH52: 90.16113194 | AI52: 235343.9221 | AJ52: 235225.5891 | AK52: 118.3329915 | AL52: 566143.561 | AM52: 566019.2106 | AN52: 124.3504685 | AP52: 0.5 | AQ52: 5
A53: Female 35-39 | B53: 37.5 | C53: female | D53: all | F53: 182100.2 | G53: =G95+G138+G181+G224+G267 -> 0 | H53: 6643.139192 | I53: 231.2750433 | J53: 231.1257899 | K53: 1024.712282 | L53: 1024.297395 | M53: 2751.410351 | N53: 2750.844814 | O53: 8443.71516 | P53: 8443.124552 | Q53: 14107.77764 | R53: 14098.67318 | S53: 9.104457753 | T53: 60885.55506 | U53: 60860.72998 | V53: 24.82507695 | W53: 155627.4142 | X53: 155594.2185 | Y53: 33.19578434 | Z53: 423018.3123 | AA53: 422983.8107 | AB53: 34.50158395 | AC53: 31499.57947 | AD53: 31462.95254 | AE53: 36.62692867 | AF53: 130832.2473 | AG53: 130734.8042 | AH53: 97.44314126 | AI53: 313509.0594 | AJ53: 313381.4317 | AK53: 127.6277525 | AL53: 750212.7323 | AM53: 750079.2137 | AN53: 133.5185782 | AP53: 0.5 | AQ53: 5
A54: Female 40-44 | B54: 42.5 | C54: female | D54: all | F54: 206617 | G54: =G96+G139+G182+G225+G268 -> 0 | H54: 8107.554315 | I54: 360.1244605 | J54: 359.8743781 | K54: 1594.092849 | L54: 1593.399158 | M54: 4271.370622 | N54: 4270.429443 | O54: 13018.22226 | P54: 13017.25459 | Q54: 20527.09425 | R54: 20512.83955 | S54: 14.25469253 | T54: 88341.4125 | U54: 88302.67816 | V54: 38.73434124 | W54: 224535.7671 | X54: 224484.2677 | Y54: 51.49946321 | Z54: 600522.9164 | AA54: 600470.0654 | AB54: 52.85105794 | AC54: 39201.36765 | AD54: 39152.30963 | AE54: 49.05801895 | AF54: 162686.5524 | AG54: 162556.2036 | AH54: 130.3487743 | AI54: 389171.729 | AJ54: 389001.3806 | AK54: 170.3484028 | AL54: 926411.131 | AM54: 926233.7681 | AN54: 177.3628462 | AP54: 0.5 | AQ54: 5
A55: Female 45-49 | B55: 47.5 | C55: female | D55: all | F55: 205406.6 | G55: =G97+G140+G183+G226+G269 -> 0 | H55: 9302.999242 | I55: 580.978833 | J55: 580.5320029 | K55: 2566.130866 | L55: 2564.897005 | M55: 6843.530885 | N55: 6841.873269 | O55: 20534.72574 | P55: 20533.07653 | Q55: 29629.92049 | R55: 29607.13215 | S55: 22.78833944 | T55: 126817.5035 | U55: 126756.0042 | V55: 61.49932697 | W55: 318762.604 | X55: 318681.7767 | Y55: 80.8272601 | Z55: 825490.3581 | AA55: 825409.4701 | AB55: 80.88800007 | AC55: 45011.80168 | AD55: 44948.2209 | AE55: 63.58078373 | AF55: 186445.9353 | AG55: 186277.4472 | AH55: 168.4880344 | AI55: 444261.2956 | AJ55: 444042.1131 | AK55: 219.1824458 | AL55: 1045084.075 | AM55: 1044858.061 | AN55: 226.0137907 | AP55: 0.5 | AQ55: 5
A56: Female 50-54 | B56: 52.5 | C56: female | D56: all | F56: 184153.8 | G56: =G98+G141+G184+G227+G270 -> 0 | H56: 8671.959965 | I56: 719.3899568 | J56: 718.813202 | K56: 3170.666951 | L56: 3169.081857 | M56: 8416.459369 | N56: 8414.351843 | O56: 24873.18199 | P56: 24871.1558 | Q56: 33811.32797 | R56: 33784.22049 | S56: 27.10747513 | T56: 144016.3395 | U56: 143943.6657 | V56: 72.67375722 | W56: 358453.7694 | X56: 358359.3379 | Y56: 94.43153506 | Z56: 902127.3949 | AA56: 902035.1815 | AB56: 92.21340083 | AC56: 44435.33272 | AD56: 44369.94261 | AE56: 65.39011013 | AF56: 183712.4787 | AG56: 183539.685 | AH56: 172.7936942 | AI56: 436055.5806 | AJ56: 435831.8852 | AK56: 223.6954032 | AL56: 1013975.521 | AM56: 1013747.131 | AN56: 228.390436 | AP56: 0.5 | AQ56: 5
A57: Female 55-59 | B57: 57.5 | C57: female | D57: all | F57: 166910 | G57: =G99+G142+G185+G228+G271 -> 0 | H57: 6003.887326 | I57: 1057.703666 | J57: 1057.072275 | K57: 4639.485215 | L57: 4637.766787 | M57: 12188.76087 | N57: 12186.524 | O57: 34844.94687 | P57: 34842.94048 | Q57: 43365.85029 | R57: 43339.96329 | S57: 25.88700822 | T57: 182913.2706 | U57: 182844.7758 | V57: 68.49487432 | W57: 446279.747 | X57: 446192.7288 | Y57: 87.01816926 | Z57: 1060096.172 | AA57: 1060014.911 | AB57: 81.26074663 | AC57: 46533.79676 | AD57: 46482.18898 | AE57: 51.60777779 | AF57: 191578.8691 | AG57: 191443.2872 | AH57: 135.5818799 | AI57: 450814.317 | AJ57: 450640.5233 | AK57: 173.7937595 | AL57: 1022030.711 | AM57: 1021856.665 | AN57: 174.046911 | AP57: 0.5 | AQ57: 5
A58: Female 60-64 | B58: 62.5 | C58: female | D58: all | F58: 163903.4 | G58: =G100+G143+G186+G229+G272 -> 0 | H58: 5731.852736 | I58: 1442.866736 | J58: 1442.035683 | K58: 6298.360053 | L58: 6296.120986 | M58: 16376.13913 | N58: 16373.28775 | O58: 45316.02919 | P58: 45313.64648 | Q58: 53386.06924 | R58: 53355.32028 | S58: 30.74896179 | T58: 223146.2601 | U58: 223065.9441 | V58: 80.31604035 | W58: 534496.6622 | X58: 534396.8589 | Y58: 99.80330445 | Z58: 1204417.206 | AA58: 1204327.648 | AB58: 89.55758891 | AC58: 50505.89098 | AD58: 50451.61481 | AE58: 54.27617457 | AF58: 207045.6873 | AG58: 206903.9533 | AH58: 141.733984 | AI58: 482996.1248 | AJ58: 482816.271 | AK58: 179.8537513 | AL58: 1068078.514 | AM58: 1067901.696 | AN58: 176.8187954 | AP58: 0.5 | AQ58: 5
A59: Female 65-69 | B59: 67.5 | C59: female | D59: all | F59: 133489.8 | G59: =G101+G144+G187+G230+G273 -> 0 | H59: 3736.395975 | I59: 1951.323448 | J59: 1950.471982 | K59: 8421.683453 | L59: 8419.437695 | M59: 21377.44848 | N59: 21374.7162 | O59: 55016.06285 | P59: 55014.08475 | Q59: 60491.02689 | R59: 60464.63144 | S59: 26.39545174 | T59: 247921.7505 | U59: 247854.6151 | V59: 67.13537174 | W59: 570707.3509 | X59: 570627.5218 | Y59: 79.82912115 | Z59: 1151899.887 | AA59: 1151832.544 | AB59: 67.34299992 | AC59: 48201.00183 | AD59: 48160.75779 | AE59: 40.24404276 | AF59: 195620.0891 | AG59: 195516.3101 | AH59: 103.7790022 | AI59: 447220.7606 | AJ59: 447091.7411 | AK59: 129.0194546 | AL59: 935532.719 | AM59: 935410.0692 | AN59: 122.6497953 | AP59: 0.5 | AQ59: 5
A60: Female 70-74 | B60: 72.5 | C60: female | D60: all | F60: 118798 | G60: 0 | H60: 2947.045592 | I60: 2444.793411 | J60: 2443.849235 | K60: 10429.1591 | L60: 10426.72864 | M60: 25840.281 | N60: 25837.47271 | O60: 62058.79444 | P60: 62057.05735 | Q60: 66009.42209 | R60: 65983.92935 | S60: 25.49273508 | T60: 265401.6787 | U60: 265338.676 | V60: =V102+V145+V188+V231+V274 -> 63.00274802 | W60: 588027.0991 | X60: 587955.5665 | Y60: 71.53255874 | Z60: 1073563.223 | AA60: 1073505.545 | AB60: 57.67819133 | AC60: 47823.1277 | AD60: 47787.74345 | AE60: 35.38425425 | AF60: 192093.6731 | AG60: 192003.718 | AH60: 89.9551176 | AI60: 430315.16 | AJ60: 430205.8061 | AK60: 109.3538032 | AL60: 853915.508 | AM60: 853814.7488 | AN60: 100.7592206 | AP60: 0.5 | AQ60: 5
A61: Female 75-79 | B61: 77.5 | C61: female | D61: all | F61: 100919.6 | G61: 0 | H61: 1232.523753 | I61: 3389.150931 | J61: 3388.531467 | K61: 14098.28219 | L61: 14096.75691 | M61: 33203.39165 | N61: 33201.78751 | O61: 69839.63938 | P61: 69838.89649 | Q61: 71172.16956 | R61: 71159.16082 | S61: 13.00874317 | T61: 274477.1088 | U61: 274446.6425 | V61: =V103+V146+V189+V232+V275 -> 30.46629627 | W61: 560630.4203 | X61: 560598.3844 | Y61: 32.03590937 | Z61: 841575.7546 | AA61: 841550.0515 | AB61: 25.70313879 | AC61: 47260.57332 | AD61: 47243.68192 | AE61: 16.89139893 | AF61: 185629.5286 | AG61: 185587.7201 | AH61: 41.80850204 | AI61: 398390.1839 | AJ61: 398341.3681 | AK61: 48.81578497 | AL61: 714382.843 | AM61: 714339.8496 | AN61: 42.993327 | AP61: 0.5 | AQ61: 5
A62: Female 80-84 | B62: 82.5 | C62: female | D62: all | F62: 74982.2 | G62: 0 | H62: 942.8463569 | I62: 3438.777665 | J62: 3438.131705 | K62: 13968.94444 | L62: 13967.42763 | M62: 31423.61327 | N62: 31422.16711 | O62: 59458.07522 | P62: 59457.57204 | Q62: 58459.22031 | R62: 58448.23899 | S62: 10.98131584 | T62: 216360.6573 | U62: 216336.3406 | V62: =V104+V147+V190+V233+V276 -> 24.31675703 | W62: 408678.8663 | X62: 408654.9434 | Y62: 23.92289153 | Z62: 517909.8915 | AA62: 517889.4401 | AB62: 20.45146969 | AC62: 38564.2621 | AD62: 38550.02438 | AE62: 14.23771298 | AF62: 148306.9428 | AG62: 148272.6617 | AH62: 34.28113176 | AI62: 306192.7236 | AJ62: 306154.2019 | AK62: 38.52175279 | AL62: 506458.5054 | AM62: 506425.5055 | AN62: 32.999974 | AP62: 0.5 | AQ62: 5
A63: Female 85-89 | B63: 87.5 | C63: female | D63: all | F63: 47280.2 | G63: 0 | H63: 584.9744027 | I63: 3467.051558 | J63: 3466.419252 | K63: 13361.0113 | L63: 13359.67463 | M63: 27326.7482 | N63: 27325.71759 | O63: 43067.58099 | P63: 43067.38437 | Q63: 38137.56714 | R63: 38130.61177 | S63: 6.95536178 | T63: 127378.0991 | U63: 127364.5116 | V63: =V105+V148+V191+V234+V277 -> 13.58747565 | W63: 198685.6533 | X63: 198673.2965 | Y63: 12.3568083 | Z63: 172603.8925 | AA63: 172590.0743 | AB63: 13.81815512 | AC63: 28101.85131 | AD63: 28091.62282 | AE63: 10.22848598 | AF63: 103103.6293 | AG63: 103080.4332 | AH63: 23.19608165 | AI63: 196332.4933 | AJ63: 196308.2675 | AK63: 24.22583419 | AL63: 282272.9773 | AM63: 282252.6467 | AN63: 20.33064944 | AP63: 0.5 | AQ63: =2/#REF! -> 
A64: Female 90+ | B64: 95 | C64: female | D64: all | F64: 24709 | G64: 0 | H64: 335.9730607 | I64: 3204.163674 | J64: 3203.556231 | K64: 10965.21385 | L64: 10964.17873 | M64: 18937.21986 | N64: 18936.68198 | O64: 24187.77562 | P64: 24187.74024 | Q64: 12816.65469 | R64: 12814.22492 | S64: 2.42977165 | T64: 28922.61943 | U64: 28919.02929 | V64: 3.59014834 | W64: 15095.8939 | X64: 15091.2056 | Y64: 4.688298876 | Z64: -27096.3452 | AA64: -27105.02915 | AB64: 8.683944045 | AC64: 19630.32059 | AD64: 19623.10158 | AE64: 7.219003907 | AF64: 64532.78435 | AG64: 64518.29858 | AH64: 14.48577629 | AI64: 105452.138 | AJ64: 105438.4956 | AK64: 13.64239245 | AL64: 127629.6292 | AM64: 127617.8149 | AN64: 11.81423789
A65: age/sex breakdown: Q1
A66: Male <1 | B66: 0.5 | C66: male | D66: 1 | F66: =HLOOKUP('III Tool Overview'!$H$7,LookUpData_Pop!$B$1:$AV$269,LookUpData_Pop!BB67,FALSE)/5 -> 7679.6 | AP66: 0.1 | AQ66: 1
A67: Male 1-4 | B67: 2.5 | C67: male | D67: 1 | F67: =HLOOKUP('III Tool Overview'!$H$7,LookUpData_Pop!$B$1:$AV$269,LookUpData_Pop!BB68,FALSE)/5 -> 28048.6 | AP67: 0.5 | AQ67: 4
A68: Male 5-9 | B68: 7.5 | C68: male | D68: 1 | F68: =HLOOKUP('III Tool Overview'!$H$7,LookUpData_Pop!$B$1:$AV$269,LookUpData_Pop!BB69,FALSE)/5 -> 30252.6 | AP68: 0.5 | AQ68: 5
A69: Male 10-14 | B69: 12.5 | C69: male | D69: 1 | F69: =HLOOKUP('III Tool Overview'!$H$7,LookUpData_Pop!$B$1:$AV$269,LookUpData_Pop!BB70,FALSE)/5 -> 31220 | AP69: 0.5 | AQ69: 5
A70: Male 15-19 | B70: 17.5 | C70: male | D70: 1 | E70: =HLOOKUP('III Tool Overview'!$H$7,Prevalence!$B$2:$AV$268,Prevalence!AW66,FALSE) -> 0.281616 | F70: =HLOOKUP('III Tool Overview'!$H$7,LookUpData_Pop!$B$1:$AV$269,LookUpData_Pop!BB71,FALSE)/5 -> 35276.8 | G70: ='III Tool Overview'!$H$10/110 -> 0 | H70: =IF('III Tool Overview'!$H$11="Even distribution",Targeting!C68,IF('III Tool Overview'!$H$11="Targeting to Q1",Targeting!D68,IF('III Tool Overview'!$H$11="Targeting to Q1 & Q2",Targeting!E68,IF('III Tool Overview'!$H$11="Proportionate to need",Targeting!F68)))) -> 1438.365954 | I70: =IF('III Tool Overview'!$H$7="Orkney Health Board",0,IF('III Tool Overview'!$H$7="Shetland Health Board",0,IF('III Tool Overview'!$H$7="Western Isles Health Board",0,IF('III Tool Overview'!$H$7="Orkney Islands Local Authority",0,IF('III Tool Overview'!$H$7="Shetland Islands Local Authority",0,IF('III Tool Overview'!$H$7="Eilean Siar Local Authority",0,new_ci(2,B70,C70,D70,$C$1,G70,1,F70,E70*F70))))))) -> 35.04510662 | J70: =IF('III Tool Overview'!$H$7="Orkney Health Board",0,IF('III Tool Overview'!$H$7="Shetland Health Board",0,IF('III Tool Overview'!$H$7="Western Isles Health Board",0,IF('III Tool Overview'!$H$7="Orkney Islands Local Authority",0,IF('III Tool Overview'!$H$7="Shetland Islands Local Authority",0,IF('III Tool Overview'!$H$7="Eilean Siar Local Authority",0,new_ci(2,B70,C70,D70,$C$1,G70+H70,1,F70,E70*F70))))))) -> 35.0189161 | K70: =IF('III Tool Overview'!$H$7="Orkney Health Board",0,IF('III Tool Overview'!$H$7="Shetland Health Board",0,IF('III Tool Overview'!$H$7="Western Isles Health Board",0,IF('III Tool Overview'!$H$7="Orkney Islands Local Authority",0,IF('III Tool Overview'!$H$7="Shetland Islands Local Authority",0,IF('III Tool Overview'!$H$7="Eilean Siar Local Authority",0,new_ci(5,B70,C70,D70,$C$1,G70,1,F70,E70*F70))))))) -> 153.083499 | L70: =IF('III Tool Overview'!$H$7="Orkney Health Board",0,IF('III Tool Overview'!$H$7="Shetland Health Board",0,IF('III Tool Overview'!$H$7="Western Isles Health Board",0,IF('III Tool Overview'!$H$7="Orkney Islands Local Authority",0,IF('III Tool Overview'!$H$7="Shetland Islands Local Authority",0,IF('III Tool Overview'!$H$7="Eilean Siar Local Authority",0,new_ci(5,B70,C70,D70,$C$1,G70+H70,1,F70,E70*F70))))))) -> 153.0113715 | M70: =IF('III Tool Overview'!$H$7="Orkney Health Board",0,IF('III Tool Overview'!$H$7="Shetland Health Board",0,IF('III Tool Overview'!$H$7="Western Isles Health Board",0,IF('III Tool Overview'!$H$7="Orkney Islands Local Authority",0,IF('III Tool Overview'!$H$7="Shetland Islands Local Authority",0,IF('III Tool Overview'!$H$7="Eilean Siar Local Authority",0,new_ci(10,B70,C70,D70,$C$1,G70,1,F70,E70*F70))))))) -> 400.8484378 | N70: =IF('III Tool Overview'!$H$7="Orkney Health Board",0,IF('III Tool Overview'!$H$7="Shetland Health Board",0,IF('III Tool Overview'!$H$7="Western Isles Health Board",0,IF('III Tool Overview'!$H$7="Orkney Islands Local Authority",0,IF('III Tool Overview'!$H$7="Shetland Islands Local Authority",0,IF('III Tool Overview'!$H$7="Eilean Siar Local Authority",0,new_ci(10,B70,C70,D70,$C$1,G70+H70,1,F70,E70*F70))))))) -> 400.750796 | O70: =IF('III Tool Overview'!$H$7="Orkney Health Board",0,IF('III Tool Overview'!$H$7="Shetland Health Board",0,IF('III Tool Overview'!$H$7="Western Isles Health Board",0,IF('III Tool Overview'!$H$7="Orkney Islands Local Authority",0,IF('III Tool Overview'!$H$7="Shetland Islands Local Authority",0,IF('III Tool Overview'!$H$7="Eilean Siar Local Authority",0,new_ci(20,B70,C70,D70,$C$1,G70,1,F70,E70*F70))))))) -> 1165.614546 | P70: =IF('III Tool Overview'!$H$7="Orkney Health Board",0,IF('III Tool Overview'!$H$7="Shetland Health Board",0,IF('III Tool Overview'!$H$7="Western Isles Health Board",0,IF('III Tool Overview'!$H$7="Orkney Islands Local Authority",0,IF('III Tool Overview'!$H$7="Shetland Islands Local Authority",0,IF('III Tool Overview'!$H$7="Eilean Siar Local Authority",0,new_ci(20,B70,C70,D70,$C$1,G70+H70,1,F70,E70*F70))))))) -> 1165.511618 | Q70: =IF('III Tool Overview'!$H$7="Orkney Health Board",0,IF('III Tool Overview'!$H$7="Shetland Health Board",0,IF('III Tool Overview'!$H$7="Western Isles Health Board",0,IF('III Tool Overview'!$H$7="Orkney Islands Local Authority",0,IF('III Tool Overview'!$H$7="Shetland Islands Local Authority",0,IF('III Tool Overview'!$H$7="Eilean Siar Local Authority",0,new_yll(2,B70,C70,D70,$C$1,G70,1,F70,E70*F70))))))) -> 2838.653636 | R70: =IF('III Tool Overview'!$H$7="Orkney Health Board",0,IF('III Tool Overview'!$H$7="Shetland Health Board",0,IF('III Tool Overview'!$H$7="Western Isles Health Board",0,IF('III Tool Overview'!$H$7="Orkney Islands Local Authority",0,IF('III Tool Overview'!$H$7="Shetland Islands Local Authority",0,IF('III Tool Overview'!$H$7="Eilean Siar Local Authority",0,new_yll(2,B70,C70,D70,$C$1,G70+H70,1,F70,E70*F70))))))) -> 2836.532204 | S70: =Q70-R70 -> 2.121432032 | T70: =IF('III Tool Overview'!$H$7="Orkney Health Board",0,IF('III Tool Overview'!$H$7="Shetland Health Board",0,IF('III Tool Overview'!$H$7="Western Isles Health Board",0,IF('III Tool Overview'!$H$7="Orkney Islands Local Authority",0,IF('III Tool Overview'!$H$7="Shetland Islands Local Authority",0,IF('III Tool Overview'!$H$7="Eilean Siar Local Authority",0,new_yll(5,B70,C70,D70,$C$1,G70,1,F70,E70*F70))))))) -> 12159.18158 | U70: =IF('III Tool Overview'!$H$7="Orkney Health Board",0,IF('III Tool Overview'!$H$7="Shetland Health Board",0,IF('III Tool Overview'!$H$7="Western Isles Health Board",0,IF('III Tool Overview'!$H$7="Orkney Islands Local Authority",0,IF('III Tool Overview'!$H$7="Shetland Islands Local Authority",0,IF('III Tool Overview'!$H$7="Eilean Siar Local Authority",0,new_yll(5,B70,C70,D70,$C$1,G70+H70,1,F70,E70*F70))))))) -> 12153.42256 | V70: =T70-U70 -> 5.759019522 | W70: =IF('III Tool Overview'!$H$7="Orkney Health Board",0,IF('III Tool Overview'!$H$7="Shetland Health Board",0,IF('III Tool Overview'!$H$7="Western Isles Health Board",0,IF('III Tool Overview'!$H$7="Orkney Islands Local Authority",0,IF('III Tool Overview'!$H$7="Shetland Islands Local Authority",0,IF('III Tool Overview'!$H$7="Eilean Siar Local Authority",0,new_yll(10,B70,C70,D70,$C$1,G70,1,F70,E70*F70))))))) -> 30713.35715 | X70: =IF('III Tool Overview'!$H$7="Orkney Health Board",0,IF('III Tool Overview'!$H$7="Shetland Health Board",0,IF('III Tool Overview'!$H$7="Western Isles Health Board",0,IF('III Tool Overview'!$H$7="Orkney Islands Local Authority",0,IF('III Tool Overview'!$H$7="Shetland Islands Local Authority",0,IF('III Tool Overview'!$H$7="Eilean Siar Local Authority",0,new_yll(10,B70,C70,D70,$C$1,G70+H70,1,F70,E70*F70))))))) -> 30705.67005 | Y70: =W70-X70 -> 7.687103213 | Z70: =IF('III Tool Overview'!$H$7="Orkney Health Board",0,IF('III Tool Overview'!$H$7="Shetland Health Board",0,IF('III Tool Overview'!$H$7="Western Isles Health Board",0,IF('III Tool Overview'!$H$7="Orkney Islands Local Authority",0,IF('III Tool Overview'!$H$7="Shetland Islands Local Authority",0,IF('III Tool Overview'!$H$7="Eilean Siar Local Authority",0,new_yll(20,B70,C70,D70,$C$1,G70,1,F70,E70*F70))))))) -> 81982.61325 | AA70: =IF('III Tool Overview'!$H$7="Orkney Health Board",0,IF('III Tool Overview'!$H$7="Shetland Health Board",0,IF('III Tool Overview'!$H$7="Western Isles Health Board",0,IF('III Tool Overview'!$H$7="Orkney Islands Local Authority",0,IF('III Tool Overview'!$H$7="Shetland Islands Local Authority",0,IF('III Tool Overview'!$H$7="Eilean Siar Local Authority",0,new_yll(20,B70,C70,D70,$C$1,G70+H70,1,F70,E70*F70))))))) -> 81974.55165 | AB70: =Z70-AA70 -> 8.061596626 | AC70: =IF('III Tool Overview'!$H$7="Orkney Health Board",0,IF('III Tool Overview'!$H$7="Shetland Health Board",0,IF('III Tool Overview'!$H$7="Western Isles Health Board",0,IF('III Tool Overview'!$H$7="Orkney Islands Local Authority",0,IF('III Tool Overview'!$H$7="Shetland Islands Local Authority",0,IF('III Tool Overview'!$H$7="Eilean Siar Local Authority",0,hosp_count(2,B70,C70,D70,$C$1,G70,1,F70,E70*F70))))))) -> 3492.82122 | AD70: =IF('III Tool Overview'!$H$7="Orkney Health Board",0,IF('III Tool Overview'!$H$7="Shetland Health Board",0,IF('III Tool Overview'!$H$7="Western Isles Health Board",0,IF('III Tool Overview'!$H$7="Orkney Islands Local Authority",0,IF('III Tool Overview'!$H$7="Shetland Islands Local Authority",0,IF('III Tool Overview'!$H$7="Eilean Siar Local Authority",0,hosp_count(2,B70,C70,D70,$C$1,G70+H70,1,F70,E70*F70))))))) -> 3488.174897 | AE70: =AC70-AD70 -> 4.646322694 | AF70: =IF('III Tool Overview'!$H$7="Orkney Health Board",0,IF('III Tool Overview'!$H$7="Shetland Health Board",0,IF('III Tool Overview'!$H$7="Western Isles Health Board",0,IF('III Tool Overview'!$H$7="Orkney Islands Local Authority",0,IF('III Tool Overview'!$H$7="Shetland Islands Local Authority",0,IF('III Tool Overview'!$H$7="Eilean Siar Local Authority",0,hosp_count(5,B70,C70,D70,$C$1,G70,1,F70,E70*F70))))))) -> 14746.86896 | AG70: =IF('III Tool Overview'!$H$7="Orkney Health Board",0,IF('III Tool Overview'!$H$7="Shetland Health Board",0,IF('III Tool Overview'!$H$7="Western Isles Health Board",0,IF('III Tool Overview'!$H$7="Orkney Islands Local Authority",0,IF('III Tool Overview'!$H$7="Shetland Islands Local Authority",0,IF('III Tool Overview'!$H$7="Eilean Siar Local Authority",0,hosp_count(5,B70,C70,D70,$C$1,G70+H70,1,F70,E70*F70))))))) -> 14734.3533 | AH70: =AF70-AG70 -> 12.51566152 | AI70: =IF('III Tool Overview'!$H$7="Orkney Health Board",0,IF('III Tool Overview'!$H$7="Shetland Health Board",0,IF('III Tool Overview'!$H$7="Western Isles Health Board",0,IF('III Tool Overview'!$H$7="Orkney Islands Local Authority",0,IF('III Tool Overview'!$H$7="Shetland Islands Local Authority",0,IF('III Tool Overview'!$H$7="Eilean Siar Local Authority",0,hosp_count(10,B70,C70,D70,$C$1,G70,1,F70,E70*F70))))))) -> 36364.98161 | AJ70: =IF('III Tool Overview'!$H$7="Orkney Health Board",0,IF('III Tool Overview'!$H$7="Shetland Health Board",0,IF('III Tool Overview'!$H$7="Western Isles Health Board",0,IF('III Tool Overview'!$H$7="Orkney Islands Local Authority",0,IF('III Tool Overview'!$H$7="Shetland Islands Local Authority",0,IF('III Tool Overview'!$H$7="Eilean Siar Local Authority",0,hosp_count(10,B70,C70,D70,$C$1,G70+H70,1,F70,E70*F70))))))) -> 36348.38848 | AK70: =AI70-AJ70 -> 16.5931241 | AL70: =IF('III Tool Overview'!$H$7="Orkney Health Board",0,IF('III Tool Overview'!$H$7="Shetland Health Board",0,IF('III Tool Overview'!$H$7="Western Isles Health Board",0,IF('III Tool Overview'!$H$7="Orkney Islands Local Authority",0,IF('III Tool Overview'!$H$7="Shetland Islands Local Authority",0,IF('III Tool Overview'!$H$7="Eilean Siar Local Authority",0,hosp_count(20,B70,C70,D70,$C$1,G70,1,F70,E70*F70))))))) -> 92677.60804 | AM70: =IF('III Tool Overview'!$H$7="Orkney Health Board",0,IF('III Tool Overview'!$H$7="Shetland Health Board",0,IF('III Tool Overview'!$H$7="Western Isles Health Board",0,IF('III Tool Overview'!$H$7="Orkney Islands Local Authority",0,IF('III Tool Overview'!$H$7="Shetland Islands Local Authority",0,IF('III Tool Overview'!$H$7="Eilean Siar Local Authority",0,hosp_count(20,B70,C70,D70,$C$1,G70+H70,1,F70,E70*F70))))))) -> 92660.1114 | AN70: =AL70-AM70 -> 17.49664507 | AP70: 0.5 | AQ70: 5
A71: Male 20-24 | B71: 22.5 | C71: male | D71: 1 | E71: =HLOOKUP('III Tool Overview'!$H$7,Prevalence!$B$2:$AV$268,Prevalence!AW67,FALSE) -> 0.281616 | F71: =HLOOKUP('III Tool Overview'!$H$7,LookUpData_Pop!$B$1:$AV$269,LookUpData_Pop!BB72,FALSE)/5 -> 39519.2 | G71: ='III Tool Overview'!$H$10/110 -> 0 | H71: =IF('III Tool Overview'!$H$11="Even distribution",Targeting!C69,IF('III Tool Overview'!$H$11="Targeting to Q1",Targeting!D69,IF('III Tool Overview'!$H$11="Targeting to Q1 & Q2",Targeting!E69,IF('III Tool Overview'!$H$11="Proportionate to need",Targeting!F69)))) -> 2043.855079 | I71: =IF('III Tool Overview'!$H$7="Orkney Health Board",0,IF('III Tool Overview'!$H$7="Shetland Health Board",0,IF('III Tool Overview'!$H$7="Western Isles Health Board",0,IF('III Tool Overview'!$H$7="Orkney Islands Local Authority",0,IF('III Tool Overview'!$H$7="Shetland Islands Local Authority",0,IF('III Tool Overview'!$H$7="Eilean Siar Local Authority",0,new_ci(2,B71,C71,D71,$C$1,G71,1,F71,E71*F71))))))) -> 52.4379617 | J71: =IF('III Tool Overview'!$H$7="Orkney Health Board",0,IF('III Tool Overview'!$H$7="Shetland Health Board",0,IF('III Tool Overview'!$H$7="Western Isles Health Board",0,IF('III Tool Overview'!$H$7="Orkney Islands Local Authority",0,IF('III Tool Overview'!$H$7="Shetland Islands Local Authority",0,IF('III Tool Overview'!$H$7="Eilean Siar Local Authority",0,new_ci(2,B71,C71,D71,$C$1,G71+H71,1,F71,E71*F71))))))) -> 52.38824837 | K71: =IF('III Tool Overview'!$H$7="Orkney Health Board",0,IF('III Tool Overview'!$H$7="Shetland Health Board",0,IF('III Tool Overview'!$H$7="Western Isles Health Board",0,IF('III Tool Overview'!$H$7="Orkney Islands Local Authority",0,IF('III Tool Overview'!$H$7="Shetland Islands Local Authority",0,IF('III Tool Overview'!$H$7="Eilean Siar Local Authority",0,new_ci(5,B71,C71,D71,$C$1,G71,1,F71,E71*F71))))))) -> 228.9283881 | L71: =IF('III Tool Overview'!$H$7="Orkney Health Board",0,IF('III Tool Overview'!$H$7="Shetland Health Board",0,IF('III Tool Overview'!$H$7="Western Isles Health Board",0,IF('III Tool Overview'!$H$7="Orkney Islands Local Authority",0,IF('III Tool Overview'!$H$7="Shetland Islands Local Authority",0,IF('III Tool Overview'!$H$7="Eilean Siar Local Authority",0,new_ci(5,B71,C71,D71,$C$1,G71+H71,1,F71,E71*F71))))))) -> 228.7916591 | M71: =IF('III Tool Overview'!$H$7="Orkney Health Board",0,IF('III Tool Overview'!$H$7="Shetland Health Board",0,IF('III Tool Overview'!$H$7="Western Isles Health Board",0,IF('III Tool Overview'!$H$7="Orkney Islands Local Authority",0,IF('III Tool Overview'!$H$7="Shetland Islands Local Authority",0,IF('III Tool Overview'!$H$7="Eilean Siar Local Authority",0,new_ci(10,B71,C71,D71,$C$1,G71,1,F71,E71*F71))))))) -> 598.7300839 | N71: =IF('III Tool Overview'!$H$7="Orkney Health Board",0,IF('III Tool Overview'!$H$7="Shetland Health Board",0,IF('III Tool Overview'!$H$7="Western Isles Health Board",0,IF('III Tool Overview'!$H$7="Orkney Islands Local Authority",0,IF('III Tool Overview'!$H$7="Shetland Islands Local Authority",0,IF('III Tool Overview'!$H$7="Eilean Siar Local Authority",0,new_ci(10,B71,C71,D71,$C$1,G71+H71,1,F71,E71*F71))))))) -> 598.5455015 | O71: =IF('III Tool Overview'!$H$7="Orkney Health Board",0,IF('III Tool Overview'!$H$7="Shetland Health Board",0,IF('III Tool Overview'!$H$7="Western Isles Health Board",0,IF('III Tool Overview'!$H$7="Orkney Islands Local Authority",0,IF('III Tool Overview'!$H$7="Shetland Islands Local Authority",0,IF('III Tool Overview'!$H$7="Eilean Siar Local Authority",0,new_ci(20,B71,C71,D71,$C$1,G71,1,F71,E71*F71))))))) -> 1734.544887 | P71: =IF('III Tool Overview'!$H$7="Orkney Health Board",0,IF('III Tool Overview'!$H$7="Shetland Health Board",0,IF('III Tool Overview'!$H$7="Western Isles Health Board",0,IF('III Tool Overview'!$H$7="Orkney Islands Local Authority",0,IF('III Tool Overview'!$H$7="Shetland Islands Local Authority",0,IF('III Tool Overview'!$H$7="Eilean Siar Local Authority",0,new_ci(20,B71,C71,D71,$C$1,G71+H71,1,F71,E71*F71))))))) -> 1734.351998 | Q71: =IF('III Tool Overview'!$H$7="Orkney Health Board",0,IF('III Tool Overview'!$H$7="Shetland Health Board",0,IF('III Tool Overview'!$H$7="Western Isles Health Board",0,IF('III Tool Overview'!$H$7="Orkney Islands Local Authority",0,IF('III Tool Overview'!$H$7="Shetland Islands Local Authority",0,IF('III Tool Overview'!$H$7="Eilean Siar Local Authority",0,new_yll(2,B71,C71,D71,$C$1,G71,1,F71,E71*F71))))))) -> 4037.723051 | R71: =IF('III Tool Overview'!$H$7="Orkney Health Board",0,IF('III Tool Overview'!$H$7="Shetland Health Board",0,IF('III Tool Overview'!$H$7="Western Isles Health Board",0,IF('III Tool Overview'!$H$7="Orkney Islands Local Authority",0,IF('III Tool Overview'!$H$7="Shetland Islands Local Authority",0,IF('III Tool Overview'!$H$7="Eilean Siar Local Authority",0,new_yll(2,B71,C71,D71,$C$1,G71+H71,1,F71,E71*F71))))))) -> 4033.895124 | S71: =Q71-R71 -> 3.827926551 | T71: =IF('III Tool Overview'!$H$7="Orkney Health Board",0,IF('III Tool Overview'!$H$7="Shetland Health Board",0,IF('III Tool Overview'!$H$7="Western Isles Health Board",0,IF('III Tool Overview'!$H$7="Orkney Islands Local Authority",0,IF('III Tool Overview'!$H$7="Shetland Islands Local Authority",0,IF('III Tool Overview'!$H$7="Eilean Siar Local Authority",0,new_yll(5,B71,C71,D71,$C$1,G71,1,F71,E71*F71))))))) -> 17267.81371 | U71: =IF('III Tool Overview'!$H$7="Orkney Health Board",0,IF('III Tool Overview'!$H$7="Shetland Health Board",0,IF('III Tool Overview'!$H$7="Western Isles Health Board",0,IF('III Tool Overview'!$H$7="Orkney Islands Local Authority",0,IF('III Tool Overview'!$H$7="Shetland Islands Local Authority",0,IF('III Tool Overview'!$H$7="Eilean Siar Local Authority",0,new_yll(5,B71,C71,D71,$C$1,G71+H71,1,F71,E71*F71))))))) -> 17257.44331 | V71: =T71-U71 -> 10.37040145 | W71: =IF('III Tool Overview'!$H$7="Orkney Health Board",0,IF('III Tool Overview'!$H$7="Shetland Health Board",0,IF('III Tool Overview'!$H$7="Western Isles Health Board",0,IF('III Tool Overview'!$H$7="Orkney Islands Local Authority",0,IF('III Tool Overview'!$H$7="Shetland Islands Local Authority",0,IF('III Tool Overview'!$H$7="Eilean Siar Local Authority",0,new_yll(10,B71,C71,D71,$C$1,G71,1,F71,E71*F71))))))) -> 43482.00636 | X71: =IF('III Tool Overview'!$H$7="Orkney Health Board",0,IF('III Tool Overview'!$H$7="Shetland Health Board",0,IF('III Tool Overview'!$H$7="Western Isles Health Board",0,IF('III Tool Overview'!$H$7="Orkney Islands Local Authority",0,IF('III Tool Overview'!$H$7="Shetland Islands Local Authority",0,IF('III Tool Overview'!$H$7="Eilean Siar Local Authority",0,new_yll(10,B71,C71,D71,$C$1,G71+H71,1,F71,E71*F71))))))) -> 43468.21072 | Y71: =W71-X71 -> 13.79564047 | Z71: =IF('III Tool Overview'!$H$7="Orkney Health Board",0,IF('III Tool Overview'!$H$7="Shetland Health Board",0,IF('III Tool Overview'!$H$7="Western Isles Health Board",0,IF('III Tool Overview'!$H$7="Orkney Islands Local Authority",0,IF('III Tool Overview'!$H$7="Shetland Islands Local Authority",0,IF('III Tool Overview'!$H$7="Eilean Siar Local Authority",0,new_yll(20,B71,C71,D71,$C$1,G71,1,F71,E71*F71))))))) -> 115089.7603 | AA71: =IF('III Tool Overview'!$H$7="Orkney Health Board",0,IF('III Tool Overview'!$H$7="Shetland Health Board",0,IF('III Tool Overview'!$H$7="Western Isles Health Board",0,IF('III Tool Overview'!$H$7="Orkney Islands Local Authority",0,IF('III Tool Overview'!$H$7="Shetland Islands Local Authority",0,IF('III Tool Overview'!$H$7="Eilean Siar Local Authority",0,new_yll(20,B71,C71,D71,$C$1,G71+H71,1,F71,E71*F71))))))) -> 115075.4029 | AB71: =Z71-AA71 -> 14.35740952 | AC71: =IF('III Tool Overview'!$H$7="Orkney Health Board",0,IF('III Tool Overview'!$H$7="Shetland Health Board",0,IF('III Tool Overview'!$H$7="Western Isles Health Board",0,IF('III Tool Overview'!$H$7="Orkney Islands Local Authority",0,IF('III Tool Overview'!$H$7="Shetland Islands Local Authority",0,IF('III Tool Overview'!$H$7="Eilean Siar Local Authority",0,hosp_count(2,B71,C71,D71,$C$1,G71,1,F71,E71*F71))))))) -> 4498.928199 | AD71: =IF('III Tool Overview'!$H$7="Orkney Health Board",0,IF('III Tool Overview'!$H$7="Shetland Health Board",0,IF('III Tool Overview'!$H$7="Western Isles Health Board",0,IF('III Tool Overview'!$H$7="Orkney Islands Local Authority",0,IF('III Tool Overview'!$H$7="Shetland Islands Local Authority",0,IF('III Tool Overview'!$H$7="Eilean Siar Local Authority",0,hosp_count(2,B71,C71,D71,$C$1,G71+H71,1,F71,E71*F71))))))) -> 4491.334629 | AE71: =AC71-AD71 -> 7.593569262 | AF71: =IF('III Tool Overview'!$H$7="Orkney Health Board",0,IF('III Tool Overview'!$H$7="Shetland Health Board",0,IF('III Tool Overview'!$H$7="Western Isles Health Board",0,IF('III Tool Overview'!$H$7="Orkney Islands Local Authority",0,IF('III Tool Overview'!$H$7="Shetland Islands Local Authority",0,IF('III Tool Overview'!$H$7="Eilean Siar Local Authority",0,hosp_count(5,B71,C71,D71,$C$1,G71,1,F71,E71*F71))))))) -> 18984.46368 | AG71: =IF('III Tool Overview'!$H$7="Orkney Health Board",0,IF('III Tool Overview'!$H$7="Shetland Health Board",0,IF('III Tool Overview'!$H$7="Western Isles Health Board",0,IF('III Tool Overview'!$H$7="Orkney Islands Local Authority",0,IF('III Tool Overview'!$H$7="Shetland Islands Local Authority",0,IF('III Tool Overview'!$H$7="Eilean Siar Local Authority",0,hosp_count(5,B71,C71,D71,$C$1,G71+H71,1,F71,E71*F71))))))) -> 18964.02672 | AH71: =AF71-AG71 -> 20.43695137 | AI71: =IF('III Tool Overview'!$H$7="Orkney Health Board",0,IF('III Tool Overview'!$H$7="Shetland Health Board",0,IF('III Tool Overview'!$H$7="Western Isles Health Board",0,IF('III Tool Overview'!$H$7="Orkney Islands Local Authority",0,IF('III Tool Overview'!$H$7="Shetland Islands Local Authority",0,IF('III Tool Overview'!$H$7="Eilean Siar Local Authority",0,hosp_count(10,B71,C71,D71,$C$1,G71,1,F71,E71*F71))))))) -> 46762.93795 | AJ71: =IF('III Tool Overview'!$H$7="Orkney Health Board",0,IF('III Tool Overview'!$H$7="Shetland Health Board",0,IF('III Tool Overview'!$H$7="Western Isles Health Board",0,IF('III Tool Overview'!$H$7="Orkney Islands Local Authority",0,IF('III Tool Overview'!$H$7="Shetland Islands Local Authority",0,IF('III Tool Overview'!$H$7="Eilean Siar Local Authority",0,hosp_count(10,B71,C71,D71,$C$1,G71+H71,1,F71,E71*F71))))))) -> 46735.88413 | AK71: =AI71-AJ71 -> 27.05381211 | AL71: =IF('III Tool Overview'!$H$7="Orkney Health Board",0,IF('III Tool Overview'!$H$7="Shetland Health Board",0,IF('III Tool Overview'!$H$7="Western Isles Health Board",0,IF('III Tool Overview'!$H$7="Orkney Islands Local Authority",0,IF('III Tool Overview'!$H$7="Shetland Islands Local Authority",0,IF('III Tool Overview'!$H$7="Eilean Siar Local Authority",0,hosp_count(20,B71,C71,D71,$C$1,G71,1,F71,E71*F71))))))) -> 118785.6775 | AM71: =IF('III Tool Overview'!$H$7="Orkney Health Board",0,IF('III Tool Overview'!$H$7="Shetland Health Board",0,IF('III Tool Overview'!$H$7="Western Isles Health Board",0,IF('III Tool Overview'!$H$7="Orkney Islands Local Authority",0,IF('III Tool Overview'!$H$7="Shetland Islands Local Authority",0,IF('III Tool Overview'!$H$7="Eilean Siar Local Authority",0,hosp_count(20,B71,C71,D71,$C$1,G71+H71,1,F71,E71*F71))))))) -> 118757.2523 | AN71: =AL71-AM71 -> 28.42519141 | AP71: 0.5 | AQ71: 5
A72: Male 25-29 | B72: 27.5 | C72: male | D72: 1 | E72: =HLOOKUP('III Tool Overview'!$H$7,Prevalence!$B$2:$AV$268,Prevalence!AW68,FALSE) -> 0.255561 | F72: =HLOOKUP('III Tool Overview'!$H$7,LookUpData_Pop!$B$1:$AV$269,LookUpData_Pop!BB73,FALSE)/5 -> 38481.8 | G72: ='III Tool Overview'!$H$10/110 -> 0 | H72: =IF('III Tool Overview'!$H$11="Even distribution",Targeting!C70,IF('III Tool Overview'!$H$11="Targeting to Q1",Targeting!D70,IF('III Tool Overview'!$H$11="Targeting to Q1 & Q2",Targeting!E70,IF('III Tool Overview'!$H$11="Proportionate to need",Targeting!F70)))) -> 1883.801011 | I72: =IF('III Tool Overview'!$H$7="Orkney Health Board",0,IF('III Tool Overview'!$H$7="Shetland Health Board",0,IF('III Tool Overview'!$H$7="Western Isles Health Board",0,IF('III Tool Overview'!$H$7="Orkney Islands Local Authority",0,IF('III Tool Overview'!$H$7="Shetland Islands Local Authority",0,IF('III Tool Overview'!$H$7="Eilean Siar Local Authority",0,new_ci(2,B72,C72,D72,$C$1,G72,1,F72,E72*F72))))))) -> 78.81226894 | J72: =IF('III Tool Overview'!$H$7="Orkney Health Board",0,IF('III Tool Overview'!$H$7="Shetland Health Board",0,IF('III Tool Overview'!$H$7="Western Isles Health Board",0,IF('III Tool Overview'!$H$7="Orkney Islands Local Authority",0,IF('III Tool Overview'!$H$7="Shetland Islands Local Authority",0,IF('III Tool Overview'!$H$7="Eilean Siar Local Authority",0,new_ci(2,B72,C72,D72,$C$1,G72+H72,1,F72,E72*F72))))))) -> 78.74114536 | K72: =IF('III Tool Overview'!$H$7="Orkney Health Board",0,IF('III Tool Overview'!$H$7="Shetland Health Board",0,IF('III Tool Overview'!$H$7="Western Isles Health Board",0,IF('III Tool Overview'!$H$7="Orkney Islands Local Authority",0,IF('III Tool Overview'!$H$7="Shetland Islands Local Authority",0,IF('III Tool Overview'!$H$7="Eilean Siar Local Authority",0,new_ci(5,B72,C72,D72,$C$1,G72,1,F72,E72*F72))))))) -> 343.6481309 | L72: =IF('III Tool Overview'!$H$7="Orkney Health Board",0,IF('III Tool Overview'!$H$7="Shetland Health Board",0,IF('III Tool Overview'!$H$7="Western Isles Health Board",0,IF('III Tool Overview'!$H$7="Orkney Islands Local Authority",0,IF('III Tool Overview'!$H$7="Shetland Islands Local Authority",0,IF('III Tool Overview'!$H$7="Eilean Siar Local Authority",0,new_ci(5,B72,C72,D72,$C$1,G72+H72,1,F72,E72*F72))))))) -> 343.4530798 | M72: =IF('III Tool Overview'!$H$7="Orkney Health Board",0,IF('III Tool Overview'!$H$7="Shetland Health Board",0,IF('III Tool Overview'!$H$7="Western Isles Health Board",0,IF('III Tool Overview'!$H$7="Orkney Islands Local Authority",0,IF('III Tool Overview'!$H$7="Shetland Islands Local Authority",0,IF('III Tool Overview'!$H$7="Eilean Siar Local Authority",0,new_ci(10,B72,C72,D72,$C$1,G72,1,F72,E72*F72))))))) -> 896.4432005 | N72: =IF('III Tool Overview'!$H$7="Orkney Health Board",0,IF('III Tool Overview'!$H$7="Shetland Health Board",0,IF('III Tool Overview'!$H$7="Western Isles Health Board",0,IF('III Tool Overview'!$H$7="Orkney Islands Local Authority",0,IF('III Tool Overview'!$H$7="Shetland Islands Local Authority",0,IF('III Tool Overview'!$H$7="Eilean Siar Local Authority",0,new_ci(10,B72,C72,D72,$C$1,G72+H72,1,F72,E72*F72))))))) -> 896.181487 | O72: =IF('III Tool Overview'!$H$7="Orkney Health Board",0,IF('III Tool Overview'!$H$7="Shetland Health Board",0,IF('III Tool Overview'!$H$7="Western Isles Health Board",0,IF('III Tool Overview'!$H$7="Orkney Islands Local Authority",0,IF('III Tool Overview'!$H$7="Shetland Islands Local Authority",0,IF('III Tool Overview'!$H$7="Eilean Siar Local Authority",0,new_ci(20,B72,C72,D72,$C$1,G72,1,F72,E72*F72))))))) -> 2576.269744 | P72: =IF('III Tool Overview'!$H$7="Orkney Health Board",0,IF('III Tool Overview'!$H$7="Shetland Health Board",0,IF('III Tool Overview'!$H$7="Western Isles Health Board",0,IF('III Tool Overview'!$H$7="Orkney Islands Local Authority",0,IF('III Tool Overview'!$H$7="Shetland Islands Local Authority",0,IF('III Tool Overview'!$H$7="Eilean Siar Local Authority",0,new_ci(20,B72,C72,D72,$C$1,G72+H72,1,F72,E72*F72))))))) -> 2576.001439 | Q72: =IF('III Tool Overview'!$H$7="Orkney Health Board",0,IF('III Tool Overview'!$H$7="Shetland Health Board",0,IF('III Tool Overview'!$H$7="Western Isles Health Board",0,IF('III Tool Overview'!$H$7="Orkney Islands Local Authority",0,IF('III Tool Overview'!$H$7="Shetland Islands Local Authority",0,IF('III Tool Overview'!$H$7="Eilean Siar Local Authority",0,new_yll(2,B72,C72,D72,$C$1,G72,1,F72,E72*F72))))))) -> 5595.671095 | R72: =IF('III Tool Overview'!$H$7="Orkney Health Board",0,IF('III Tool Overview'!$H$7="Shetland Health Board",0,IF('III Tool Overview'!$H$7="Western Isles Health Board",0,IF('III Tool Overview'!$H$7="Orkney Islands Local Authority",0,IF('III Tool Overview'!$H$7="Shetland Islands Local Authority",0,IF('III Tool Overview'!$H$7="Eilean Siar Local Authority",0,new_yll(2,B72,C72,D72,$C$1,G72+H72,1,F72,E72*F72))))))) -> 5590.62132 | S72: 5.049774648 | T72: =IF('III Tool Overview'!$H$7="Orkney Health Board",0,IF('III Tool Overview'!$H$7="Shetland Health Board",0,IF('III Tool Overview'!$H$7="Western Isles Health Board",0,IF('III Tool Overview'!$H$7="Orkney Islands Local Authority",0,IF('III Tool Overview'!$H$7="Shetland Islands Local Authority",0,IF('III Tool Overview'!$H$7="Eilean Siar Local Authority",0,new_yll(5,B72,C72,D72,$C$1,G72,1,F72,E72*F72))))))) -> 23859.44945 | U72: =IF('III Tool Overview'!$H$7="Orkney Health Board",0,IF('III Tool Overview'!$H$7="Shetland Health Board",0,IF('III Tool Overview'!$H$7="Western Isles Health Board",0,IF('III Tool Overview'!$H$7="Orkney Islands Local Authority",0,IF('III Tool Overview'!$H$7="Shetland Islands Local Authority",0,IF('III Tool Overview'!$H$7="Eilean Siar Local Authority",0,new_yll(5,B72,C72,D72,$C$1,G72+H72,1,F72,E72*F72))))))) -> 23845.82522 | V72: 13.6242354 | W72: =IF('III Tool Overview'!$H$7="Orkney Health Board",0,IF('III Tool Overview'!$H$7="Shetland Health Board",0,IF('III Tool Overview'!$H$7="Western Isles Health Board",0,IF('III Tool Overview'!$H$7="Orkney Islands Local Authority",0,IF('III Tool Overview'!$H$7="Shetland Islands Local Authority",0,IF('III Tool Overview'!$H$7="Eilean Siar Local Authority",0,new_yll(10,B72,C72,D72,$C$1,G72,1,F72,E72*F72))))))) -> 59729.89727 | X72: =IF('III Tool Overview'!$H$7="Orkney Health Board",0,IF('III Tool Overview'!$H$7="Shetland Health Board",0,IF('III Tool Overview'!$H$7="Western Isles Health Board",0,IF('III Tool Overview'!$H$7="Orkney Islands Local Authority",0,IF('III Tool Overview'!$H$7="Shetland Islands Local Authority",0,IF('III Tool Overview'!$H$7="Eilean Siar Local Authority",0,new_yll(10,B72,C72,D72,$C$1,G72+H72,1,F72,E72*F72))))))) -> 59711.90015 | Y72: 17.99711555 | Z72: =IF('III Tool Overview'!$H$7="Orkney Health Board",0,IF('III Tool Overview'!$H$7="Shetland Health Board",0,IF('III Tool Overview'!$H$7="Western Isles Health Board",0,IF('III Tool Overview'!$H$7="Orkney Islands Local Authority",0,IF('III Tool Overview'!$H$7="Shetland Islands Local Authority",0,IF('III Tool Overview'!$H$7="Eilean Siar Local Authority",0,new_yll(20,B72,C72,D72,$C$1,G72,1,F72,E72*F72))))))) -> 155578.3457 | AA72: =IF('III Tool Overview'!$H$7="Orkney Health Board",0,IF('III Tool Overview'!$H$7="Shetland Health Board",0,IF('III Tool Overview'!$H$7="Western Isles Health Board",0,IF('III Tool Overview'!$H$7="Orkney Islands Local Authority",0,IF('III Tool Overview'!$H$7="Shetland Islands Local Authority",0,IF('III Tool Overview'!$H$7="Eilean Siar Local Authority",0,new_yll(20,B72,C72,D72,$C$1,G72+H72,1,F72,E72*F72))))))) -> 155559.9187 | AB72: 18.42705911 | AC72: =IF('III Tool Overview'!$H$7="Orkney Health Board",0,IF('III Tool Overview'!$H$7="Shetland Health Board",0,IF('III Tool Overview'!$H$7="Western Isles Health Board",0,IF('III Tool Overview'!$H$7="Orkney Islands Local Authority",0,IF('III Tool Overview'!$H$7="Shetland Islands Local Authority",0,IF('III Tool Overview'!$H$7="Eilean Siar Local Authority",0,hosp_count(2,B72,C72,D72,$C$1,G72,1,F72,E72*F72))))))) -> 5401.033999 | AD72: =IF('III Tool Overview'!$H$7="Orkney Health Board",0,IF('III Tool Overview'!$H$7="Shetland Health Board",0,IF('III Tool Overview'!$H$7="Western Isles Health Board",0,IF('III Tool Overview'!$H$7="Orkney Islands Local Authority",0,IF('III Tool Overview'!$H$7="Shetland Islands Local Authority",0,IF('III Tool Overview'!$H$7="Eilean Siar Local Authority",0,hosp_count(2,B72,C72,D72,$C$1,G72+H72,1,F72,E72*F72))))))) -> 5392.38295 | AE72: 8.651049068 | AF72: =IF('III Tool Overview'!$H$7="Orkney Health Board",0,IF('III Tool Overview'!$H$7="Shetland Health Board",0,IF('III Tool Overview'!$H$7="Western Isles Health Board",0,IF('III Tool Overview'!$H$7="Orkney Islands Local Authority",0,IF('III Tool Overview'!$H$7="Shetland Islands Local Authority",0,IF('III Tool Overview'!$H$7="Eilean Siar Local Authority",0,hosp_count(5,B72,C72,D72,$C$1,G72,1,F72,E72*F72))))))) -> 22764.60048 | AG72: =IF('III Tool Overview'!$H$7="Orkney Health Board",0,IF('III Tool Overview'!$H$7="Shetland Health Board",0,IF('III Tool Overview'!$H$7="Western Isles Health Board",0,IF('III Tool Overview'!$H$7="Orkney Islands Local Authority",0,IF('III Tool Overview'!$H$7="Shetland Islands Local Authority",0,IF('III Tool Overview'!$H$7="Eilean Siar Local Authority",0,hosp_count(5,B72,C72,D72,$C$1,G72+H72,1,F72,E72*F72))))))) -> 22741.36157 | AH72: 23.2389041 | AI72: =IF('III Tool Overview'!$H$7="Orkney Health Board",0,IF('III Tool Overview'!$H$7="Shetland Health Board",0,IF('III Tool Overview'!$H$7="Western Isles Health Board",0,IF('III Tool Overview'!$H$7="Orkney Islands Local Authority",0,IF('III Tool Overview'!$H$7="Shetland Islands Local Authority",0,IF('III Tool Overview'!$H$7="Eilean Siar Local Authority",0,hosp_count(10,B72,C72,D72,$C$1,G72,1,F72,E72*F72))))))) -> 55940.57364 | AJ72: =IF('III Tool Overview'!$H$7="Orkney Health Board",0,IF('III Tool Overview'!$H$7="Shetland Health Board",0,IF('III Tool Overview'!$H$7="Western Isles Health Board",0,IF('III Tool Overview'!$H$7="Orkney Islands Local Authority",0,IF('III Tool Overview'!$H$7="Shetland Islands Local Authority",0,IF('III Tool Overview'!$H$7="Eilean Siar Local Authority",0,hosp_count(10,B72,C72,D72,$C$1,G72+H72,1,F72,E72*F72))))))) -> 55909.91343 | AK72: 30.66020887 | AL72: =IF('III Tool Overview'!$H$7="Orkney Health Board",0,IF('III Tool Overview'!$H$7="Shetland Health Board",0,IF('III Tool Overview'!$H$7="Western Isles Health Board",0,IF('III Tool Overview'!$H$7="Orkney Islands Local Authority",0,IF('III Tool Overview'!$H$7="Shetland Islands Local Authority",0,IF('III Tool Overview'!$H$7="Eilean Siar Local Authority",0,hosp_count(20,B72,C72,D72,$C$1,G72,1,F72,E72*F72))))))) -> 141095.3393 | AM72: =IF('III Tool Overview'!$H$7="Orkney Health Board",0,IF('III Tool Overview'!$H$7="Shetland Health Board",0,IF('III Tool Overview'!$H$7="Western Isles Health Board",0,IF('III Tool Overview'!$H$7="Orkney Islands Local Authority",0,IF('III Tool Overview'!$H$7="Shetland Islands Local Authority",0,IF('III Tool Overview'!$H$7="Eilean Siar Local Authority",0,hosp_count(20,B72,C72,D72,$C$1,G72+H72,1,F72,E72*F72))))))) -> 141063.3741 | AN72: 31.96514201 | AP72: 0.5 | AQ72: 5
A73: Male 30-34 | B73: 32.5 | C73: male | D73: 1 | E73: =HLOOKUP('III Tool Overview'!$H$7,Prevalence!$B$2:$AV$268,Prevalence!AW69,FALSE) -> 0.255561 | F73: =HLOOKUP('III Tool Overview'!$H$7,LookUpData_Pop!$B$1:$AV$269,LookUpData_Pop!BB74,FALSE)/5 -> 32307.4 | G73: ='III Tool Overview'!$H$10/110 -> 0 | H73: =IF('III Tool Overview'!$H$11="Even distribution",Targeting!C71,IF('III Tool Overview'!$H$11="Targeting to Q1",Targeting!D71,IF('III Tool Overview'!$H$11="Targeting to Q1 & Q2",Targeting!E71,IF('III Tool Overview'!$H$11="Proportionate to need",Targeting!F71)))) -> 1765.697872 | I73: =IF('III Tool Overview'!$H$7="Orkney Health Board",0,IF('III Tool Overview'!$H$7="Shetland Health Board",0,IF('III Tool Overview'!$H$7="Western Isles Health Board",0,IF('III Tool Overview'!$H$7="Orkney Islands Local Authority",0,IF('III Tool Overview'!$H$7="Shetland Islands Local Authority",0,IF('III Tool Overview'!$H$7="Eilean Siar Local Authority",0,new_ci(2,B73,C73,D73,$C$1,G73,1,F73,E73*F73))))))) -> 88.36131148 | J73: =IF('III Tool Overview'!$H$7="Orkney Health Board",0,IF('III Tool Overview'!$H$7="Shetland Health Board",0,IF('III Tool Overview'!$H$7="Western Isles Health Board",0,IF('III Tool Overview'!$H$7="Orkney Islands Local Authority",0,IF('III Tool Overview'!$H$7="Shetland Islands Local Authority",0,IF('III Tool Overview'!$H$7="Eilean Siar Local Authority",0,new_ci(2,B73,C73,D73,$C$1,G73+H73,1,F73,E73*F73))))))) -> 88.27232074 | K73: =IF('III Tool Overview'!$H$7="Orkney Health Board",0,IF('III Tool Overview'!$H$7="Shetland Health Board",0,IF('III Tool Overview'!$H$7="Western Isles Health Board",0,IF('III Tool Overview'!$H$7="Orkney Islands Local Authority",0,IF('III Tool Overview'!$H$7="Shetland Islands Local Authority",0,IF('III Tool Overview'!$H$7="Eilean Siar Local Authority",0,new_ci(5,B73,C73,D73,$C$1,G73,1,F73,E73*F73))))))) -> 384.8339559 | L73: =IF('III Tool Overview'!$H$7="Orkney Health Board",0,IF('III Tool Overview'!$H$7="Shetland Health Board",0,IF('III Tool Overview'!$H$7="Western Isles Health Board",0,IF('III Tool Overview'!$H$7="Orkney Islands Local Authority",0,IF('III Tool Overview'!$H$7="Shetland Islands Local Authority",0,IF('III Tool Overview'!$H$7="Eilean Siar Local Authority",0,new_ci(5,B73,C73,D73,$C$1,G73+H73,1,F73,E73*F73))))))) -> 384.5905683 | M73: =IF('III Tool Overview'!$H$7="Orkney Health Board",0,IF('III Tool Overview'!$H$7="Shetland Health Board",0,IF('III Tool Overview'!$H$7="Western Isles Health Board",0,IF('III Tool Overview'!$H$7="Orkney Islands Local Authority",0,IF('III Tool Overview'!$H$7="Shetland Islands Local Authority",0,IF('III Tool Overview'!$H$7="Eilean Siar Local Authority",0,new_ci(10,B73,C73,D73,$C$1,G73,1,F73,E73*F73))))))) -> 1001.412593 | N73: =IF('III Tool Overview'!$H$7="Orkney Health Board",0,IF('III Tool Overview'!$H$7="Shetland Health Board",0,IF('III Tool Overview'!$H$7="Western Isles Health Board",0,IF('III Tool Overview'!$H$7="Orkney Islands Local Authority",0,IF('III Tool Overview'!$H$7="Shetland Islands Local Authority",0,IF('III Tool Overview'!$H$7="Eilean Siar Local Authority",0,new_ci(10,B73,C73,D73,$C$1,G73+H73,1,F73,E73*F73))))))) -> 1001.087898 | O73: =IF('III Tool Overview'!$H$7="Orkney Health Board",0,IF('III Tool Overview'!$H$7="Shetland Health Board",0,IF('III Tool Overview'!$H$7="Western Isles Health Board",0,IF('III Tool Overview'!$H$7="Orkney Islands Local Authority",0,IF('III Tool Overview'!$H$7="Shetland Islands Local Authority",0,IF('III Tool Overview'!$H$7="Eilean Siar Local Authority",0,new_ci(20,B73,C73,D73,$C$1,G73,1,F73,E73*F73))))))) -> 2856.105322 | P73: =IF('III Tool Overview'!$H$7="Orkney Health Board",0,IF('III Tool Overview'!$H$7="Shetland Health Board",0,IF('III Tool Overview'!$H$7="Western Isles Health Board",0,IF('III Tool Overview'!$H$7="Orkney Islands Local Authority",0,IF('III Tool Overview'!$H$7="Shetland Islands Local Authority",0,IF('III Tool Overview'!$H$7="Eilean Siar Local Authority",0,new_ci(20,B73,C73,D73,$C$1,G73+H73,1,F73,E73*F73))))))) -> 2855.778404 | Q73: =IF('III Tool Overview'!$H$7="Orkney Health Board",0,IF('III Tool Overview'!$H$7="Shetland Health Board",0,IF('III Tool Overview'!$H$7="Western Isles Health Board",0,IF('III Tool Overview'!$H$7="Orkney Islands Local Authority",0,IF('III Tool Overview'!$H$7="Shetland Islands Local Authority",0,IF('III Tool Overview'!$H$7="Eilean Siar Local Authority",0,new_yll(2,B73,C73,D73,$C$1,G73,1,F73,E73*F73))))))) -> 5920.207869 | R73: =IF('III Tool Overview'!$H$7="Orkney Health Board",0,IF('III Tool Overview'!$H$7="Shetland Health Board",0,IF('III Tool Overview'!$H$7="Western Isles Health Board",0,IF('III Tool Overview'!$H$7="Orkney Islands Local Authority",0,IF('III Tool Overview'!$H$7="Shetland Islands Local Authority",0,IF('III Tool Overview'!$H$7="Eilean Siar Local Authority",0,new_yll(2,B73,C73,D73,$C$1,G73+H73,1,F73,E73*F73))))))) -> 5914.24549 | S73: 5.962379785 | T73: =IF('III Tool Overview'!$H$7="Orkney Health Board",0,IF('III Tool Overview'!$H$7="Shetland Health Board",0,IF('III Tool Overview'!$H$7="Western Isles Health Board",0,IF('III Tool Overview'!$H$7="Orkney Islands Local Authority",0,IF('III Tool Overview'!$H$7="Shetland Islands Local Authority",0,IF('III Tool Overview'!$H$7="Eilean Siar Local Authority",0,new_yll(5,B73,C73,D73,$C$1,G73,1,F73,E73*F73))))))) -> 25180.00599 | U73: =IF('III Tool Overview'!$H$7="Orkney Health Board",0,IF('III Tool Overview'!$H$7="Shetland Health Board",0,IF('III Tool Overview'!$H$7="Western Isles Health Board",0,IF('III Tool Overview'!$H$7="Orkney Islands Local Authority",0,IF('III Tool Overview'!$H$7="Shetland Islands Local Authority",0,IF('III Tool Overview'!$H$7="Eilean Siar Local Authority",0,new_yll(5,B73,C73,D73,$C$1,G73+H73,1,F73,E73*F73))))))) -> 25163.9783 | V73: 16.02769477 | W73: =IF('III Tool Overview'!$H$7="Orkney Health Board",0,IF('III Tool Overview'!$H$7="Shetland Health Board",0,IF('III Tool Overview'!$H$7="Western Isles Health Board",0,IF('III Tool Overview'!$H$7="Orkney Islands Local Authority",0,IF('III Tool Overview'!$H$7="Shetland Islands Local Authority",0,IF('III Tool Overview'!$H$7="Eilean Siar Local Authority",0,new_yll(10,B73,C73,D73,$C$1,G73,1,F73,E73*F73))))))) -> 62724.22424 | X73: =IF('III Tool Overview'!$H$7="Orkney Health Board",0,IF('III Tool Overview'!$H$7="Shetland Health Board",0,IF('III Tool Overview'!$H$7="Western Isles Health Board",0,IF('III Tool Overview'!$H$7="Orkney Islands Local Authority",0,IF('III Tool Overview'!$H$7="Shetland Islands Local Authority",0,IF('III Tool Overview'!$H$7="Eilean Siar Local Authority",0,new_yll(10,B73,C73,D73,$C$1,G73+H73,1,F73,E73*F73))))))) -> 62703.18664 | Y73: 21.0376015 | Z73: =IF('III Tool Overview'!$H$7="Orkney Health Board",0,IF('III Tool Overview'!$H$7="Shetland Health Board",0,IF('III Tool Overview'!$H$7="Western Isles Health Board",0,IF('III Tool Overview'!$H$7="Orkney Islands Local Authority",0,IF('III Tool Overview'!$H$7="Shetland Islands Local Authority",0,IF('III Tool Overview'!$H$7="Eilean Siar Local Authority",0,new_yll(20,B73,C73,D73,$C$1,G73,1,F73,E73*F73))))))) -> 161154.9867 | AA73: =IF('III Tool Overview'!$H$7="Orkney Health Board",0,IF('III Tool Overview'!$H$7="Shetland Health Board",0,IF('III Tool Overview'!$H$7="Western Isles Health Board",0,IF('III Tool Overview'!$H$7="Orkney Islands Local Authority",0,IF('III Tool Overview'!$H$7="Shetland Islands Local Authority",0,IF('III Tool Overview'!$H$7="Eilean Siar Local Authority",0,new_yll(20,B73,C73,D73,$C$1,G73+H73,1,F73,E73*F73))))))) -> 161133.7645 | AB73: 21.22222953 | AC73: =IF('III Tool Overview'!$H$7="Orkney Health Board",0,IF('III Tool Overview'!$H$7="Shetland Health Board",0,IF('III Tool Overview'!$H$7="Western Isles Health Board",0,IF('III Tool Overview'!$H$7="Orkney Islands Local Authority",0,IF('III Tool Overview'!$H$7="Shetland Islands Local Authority",0,IF('III Tool Overview'!$H$7="Eilean Siar Local Authority",0,hosp_count(2,B73,C73,D73,$C$1,G73,1,F73,E73*F73))))))) -> 5213.594927 | AD73: =IF('III Tool Overview'!$H$7="Orkney Health Board",0,IF('III Tool Overview'!$H$7="Shetland Health Board",0,IF('III Tool Overview'!$H$7="Western Isles Health Board",0,IF('III Tool Overview'!$H$7="Orkney Islands Local Authority",0,IF('III Tool Overview'!$H$7="Shetland Islands Local Authority",0,IF('III Tool Overview'!$H$7="Eilean Siar Local Authority",0,hosp_count(2,B73,C73,D73,$C$1,G73+H73,1,F73,E73*F73))))))) -> 5204.271165 | AE73: 9.323762172 | AF73: =IF('III Tool Overview'!$H$7="Orkney Health Board",0,IF('III Tool Overview'!$H$7="Shetland Health Board",0,IF('III Tool Overview'!$H$7="Western Isles Health Board",0,IF('III Tool Overview'!$H$7="Orkney Islands Local Authority",0,IF('III Tool Overview'!$H$7="Shetland Islands Local Authority",0,IF('III Tool Overview'!$H$7="Eilean Siar Local Authority",0,hosp_count(5,B73,C73,D73,$C$1,G73,1,F73,E73*F73))))))) -> 21950.17531 | AG73: =IF('III Tool Overview'!$H$7="Orkney Health Board",0,IF('III Tool Overview'!$H$7="Shetland Health Board",0,IF('III Tool Overview'!$H$7="Western Isles Health Board",0,IF('III Tool Overview'!$H$7="Orkney Islands Local Authority",0,IF('III Tool Overview'!$H$7="Shetland Islands Local Authority",0,IF('III Tool Overview'!$H$7="Eilean Siar Local Authority",0,hosp_count(5,B73,C73,D73,$C$1,G73+H73,1,F73,E73*F73))))))) -> 21925.174 | AH73: 25.00130697 | AI73: =IF('III Tool Overview'!$H$7="Orkney Health Board",0,IF('III Tool Overview'!$H$7="Shetland Health Board",0,IF('III Tool Overview'!$H$7="Western Isles Health Board",0,IF('III Tool Overview'!$H$7="Orkney Islands Local Authority",0,IF('III Tool Overview'!$H$7="Shetland Islands Local Authority",0,IF('III Tool Overview'!$H$7="Eilean Siar Local Authority",0,hosp_count(10,B73,C73,D73,$C$1,G73,1,F73,E73*F73))))))) -> 53816.84516 | AJ73: =IF('III Tool Overview'!$H$7="Orkney Health Board",0,IF('III Tool Overview'!$H$7="Shetland Health Board",0,IF('III Tool Overview'!$H$7="Western Isles Health Board",0,IF('III Tool Overview'!$H$7="Orkney Islands Local Authority",0,IF('III Tool Overview'!$H$7="Shetland Islands Local Authority",0,IF('III Tool Overview'!$H$7="Eilean Siar Local Authority",0,hosp_count(10,B73,C73,D73,$C$1,G73+H73,1,F73,E73*F73))))))) -> 53783.96318 | AK73: 32.88198037 | AL73: =IF('III Tool Overview'!$H$7="Orkney Health Board",0,IF('III Tool Overview'!$H$7="Shetland Health Board",0,IF('III Tool Overview'!$H$7="Western Isles Health Board",0,IF('III Tool Overview'!$H$7="Orkney Islands Local Authority",0,IF('III Tool Overview'!$H$7="Shetland Islands Local Authority",0,IF('III Tool Overview'!$H$7="Eilean Siar Local Authority",0,hosp_count(20,B73,C73,D73,$C$1,G73,1,F73,E73*F73))))))) -> 134830.2722 | AM73: =IF('III Tool Overview'!$H$7="Orkney Health Board",0,IF('III Tool Overview'!$H$7="Shetland Health Board",0,IF('III Tool Overview'!$H$7="Western Isles Health Board",0,IF('III Tool Overview'!$H$7="Orkney Islands Local Authority",0,IF('III Tool Overview'!$H$7="Shetland Islands Local Authority",0,IF('III Tool Overview'!$H$7="Eilean Siar Local Authority",0,hosp_count(20,B73,C73,D73,$C$1,G73+H73,1,F73,E73*F73))))))) -> 134796.2367 | AN73: 34.03552417 | AP73: 0.5 | AQ73: 5
A74: Male 35-39 | B74: 37.5 | C74: male | D74: 1 | E74: =HLOOKUP('III Tool Overview'!$H$7,Prevalence!$B$2:$AV$268,Prevalence!AW70,FALSE) -> 0.281614 | F74: =HLOOKUP('III Tool Overview'!$H$7,LookUpData_Pop!$B$1:$AV$269,LookUpData_Pop!BB75,FALSE)/5 -> 32289.6 | G74: ='III Tool Overview'!$H$10/110 -> 0 | H74: =IF('III Tool Overview'!$H$11="Even distribution",Targeting!C72,IF('III Tool Overview'!$H$11="Targeting to Q1",Targeting!D72,IF('III Tool Overview'!$H$11="Targeting to Q1 & Q2",Targeting!E72,IF('III Tool Overview'!$H$11="Proportionate to need",Targeting!F72)))) -> 1716.465125 | I74: =IF('III Tool Overview'!$H$7="Orkney Health Board",0,IF('III Tool Overview'!$H$7="Shetland Health Board",0,IF('III Tool Overview'!$H$7="Western Isles Health Board",0,IF('III Tool Overview'!$H$7="Orkney Islands Local Authority",0,IF('III Tool Overview'!$H$7="Shetland Islands Local Authority",0,IF('III Tool Overview'!$H$7="Eilean Siar Local Authority",0,new_ci(2,B74,C74,D74,$C$1,G74,1,F74,E74*F74))))))) -> 136.2556986 | J74: =IF('III Tool Overview'!$H$7="Orkney Health Board",0,IF('III Tool Overview'!$H$7="Shetland Health Board",0,IF('III Tool Overview'!$H$7="Western Isles Health Board",0,IF('III Tool Overview'!$H$7="Orkney Islands Local Authority",0,IF('III Tool Overview'!$H$7="Shetland Islands Local Authority",0,IF('III Tool Overview'!$H$7="Eilean Siar Local Authority",0,new_ci(2,B74,C74,D74,$C$1,G74+H74,1,F74,E74*F74))))))) -> 136.1232215 | K74: =IF('III Tool Overview'!$H$7="Orkney Health Board",0,IF('III Tool Overview'!$H$7="Shetland Health Board",0,IF('III Tool Overview'!$H$7="Western Isles Health Board",0,IF('III Tool Overview'!$H$7="Orkney Islands Local Authority",0,IF('III Tool Overview'!$H$7="Shetland Islands Local Authority",0,IF('III Tool Overview'!$H$7="Eilean Siar Local Authority",0,new_ci(5,B74,C74,D74,$C$1,G74,1,F74,E74*F74))))))) -> 591.9216906 | L74: =IF('III Tool Overview'!$H$7="Orkney Health Board",0,IF('III Tool Overview'!$H$7="Shetland Health Board",0,IF('III Tool Overview'!$H$7="Western Isles Health Board",0,IF('III Tool Overview'!$H$7="Orkney Islands Local Authority",0,IF('III Tool Overview'!$H$7="Shetland Islands Local Authority",0,IF('III Tool Overview'!$H$7="Eilean Siar Local Authority",0,new_ci(5,B74,C74,D74,$C$1,G74+H74,1,F74,E74*F74))))))) -> 591.5614586 | M74: =IF('III Tool Overview'!$H$7="Orkney Health Board",0,IF('III Tool Overview'!$H$7="Shetland Health Board",0,IF('III Tool Overview'!$H$7="Western Isles Health Board",0,IF('III Tool Overview'!$H$7="Orkney Islands Local Authority",0,IF('III Tool Overview'!$H$7="Shetland Islands Local Authority",0,IF('III Tool Overview'!$H$7="Eilean Siar Local Authority",0,new_ci(10,B74,C74,D74,$C$1,G74,1,F74,E74*F74))))))) -> 1532.125539 | N74: =IF('III Tool Overview'!$H$7="Orkney Health Board",0,IF('III Tool Overview'!$H$7="Shetland Health Board",0,IF('III Tool Overview'!$H$7="Western Isles Health Board",0,IF('III Tool Overview'!$H$7="Orkney Islands Local Authority",0,IF('III Tool Overview'!$H$7="Shetland Islands Local Authority",0,IF('III Tool Overview'!$H$7="Eilean Siar Local Authority",0,new_ci(10,B74,C74,D74,$C$1,G74+H74,1,F74,E74*F74))))))) -> 1531.650812 | O74: =IF('III Tool Overview'!$H$7="Orkney Health Board",0,IF('III Tool Overview'!$H$7="Shetland Health Board",0,IF('III Tool Overview'!$H$7="Western Isles Health Board",0,IF('III Tool Overview'!$H$7="Orkney Islands Local Authority",0,IF('III Tool Overview'!$H$7="Shetland Islands Local Authority",0,IF('III Tool Overview'!$H$7="Eilean Siar Local Authority",0,new_ci(20,B74,C74,D74,$C$1,G74,1,F74,E74*F74))))))) -> 4298.851671 | P74: =IF('III Tool Overview'!$H$7="Orkney Health Board",0,IF('III Tool Overview'!$H$7="Shetland Health Board",0,IF('III Tool Overview'!$H$7="Western Isles Health Board",0,IF('III Tool Overview'!$H$7="Orkney Islands Local Authority",0,IF('III Tool Overview'!$H$7="Shetland Islands Local Authority",0,IF('III Tool Overview'!$H$7="Eilean Siar Local Authority",0,new_ci(20,B74,C74,D74,$C$1,G74+H74,1,F74,E74*F74))))))) -> 4298.391693 | Q74: =IF('III Tool Overview'!$H$7="Orkney Health Board",0,IF('III Tool Overview'!$H$7="Shetland Health Board",0,IF('III Tool Overview'!$H$7="Western Isles Health Board",0,IF('III Tool Overview'!$H$7="Orkney Islands Local Authority",0,IF('III Tool Overview'!$H$7="Shetland Islands Local Authority",0,IF('III Tool Overview'!$H$7="Eilean Siar Local Authority",0,new_yll(2,B74,C74,D74,$C$1,G74,1,F74,E74*F74))))))) -> 8311.597614 | R74: =IF('III Tool Overview'!$H$7="Orkney Health Board",0,IF('III Tool Overview'!$H$7="Shetland Health Board",0,IF('III Tool Overview'!$H$7="Western Isles Health Board",0,IF('III Tool Overview'!$H$7="Orkney Islands Local Authority",0,IF('III Tool Overview'!$H$7="Shetland Islands Local Authority",0,IF('III Tool Overview'!$H$7="Eilean Siar Local Authority",0,new_yll(2,B74,C74,D74,$C$1,G74+H74,1,F74,E74*F74))))))) -> 8303.516513 | S74: 8.081100872 | T74: =IF('III Tool Overview'!$H$7="Orkney Health Board",0,IF('III Tool Overview'!$H$7="Shetland Health Board",0,IF('III Tool Overview'!$H$7="Western Isles Health Board",0,IF('III Tool Overview'!$H$7="Orkney Islands Local Authority",0,IF('III Tool Overview'!$H$7="Shetland Islands Local Authority",0,IF('III Tool Overview'!$H$7="Eilean Siar Local Authority",0,new_yll(5,B74,C74,D74,$C$1,G74,1,F74,E74*F74))))))) -> 35179.61641 | U74: =IF('III Tool Overview'!$H$7="Orkney Health Board",0,IF('III Tool Overview'!$H$7="Shetland Health Board",0,IF('III Tool Overview'!$H$7="Western Isles Health Board",0,IF('III Tool Overview'!$H$7="Orkney Islands Local Authority",0,IF('III Tool Overview'!$H$7="Shetland Islands Local Authority",0,IF('III Tool Overview'!$H$7="Eilean Siar Local Authority",0,new_yll(5,B74,C74,D74,$C$1,G74+H74,1,F74,E74*F74))))))) -> 35158.05329 | V74: 21.56311948 | W74: =IF('III Tool Overview'!$H$7="Orkney Health Board",0,IF('III Tool Overview'!$H$7="Shetland Health Board",0,IF('III Tool Overview'!$H$7="Western Isles Health Board",0,IF('III Tool Overview'!$H$7="Orkney Islands Local Authority",0,IF('III Tool Overview'!$H$7="Shetland Islands Local Authority",0,IF('III Tool Overview'!$H$7="Eilean Siar Local Authority",0,new_yll(10,B74,C74,D74,$C$1,G74,1,F74,E74*F74))))))) -> 86792.56647 | X74: =IF('III Tool Overview'!$H$7="Orkney Health Board",0,IF('III Tool Overview'!$H$7="Shetland Health Board",0,IF('III Tool Overview'!$H$7="Western Isles Health Board",0,IF('III Tool Overview'!$H$7="Orkney Islands Local Authority",0,IF('III Tool Overview'!$H$7="Shetland Islands Local Authority",0,IF('III Tool Overview'!$H$7="Eilean Siar Local Authority",0,new_yll(10,B74,C74,D74,$C$1,G74+H74,1,F74,E74*F74))))))) -> 86764.63059 | Y74: 27.9358729 | Z74: =IF('III Tool Overview'!$H$7="Orkney Health Board",0,IF('III Tool Overview'!$H$7="Shetland Health Board",0,IF('III Tool Overview'!$H$7="Western Isles Health Board",0,IF('III Tool Overview'!$H$7="Orkney Islands Local Authority",0,IF('III Tool Overview'!$H$7="Shetland Islands Local Authority",0,IF('III Tool Overview'!$H$7="Eilean Siar Local Authority",0,new_yll(20,B74,C74,D74,$C$1,G74,1,F74,E74*F74))))))) -> 217101.5367 | AA74: =IF('III Tool Overview'!$H$7="Orkney Health Board",0,IF('III Tool Overview'!$H$7="Shetland Health Board",0,IF('III Tool Overview'!$H$7="Western Isles Health Board",0,IF('III Tool Overview'!$H$7="Orkney Islands Local Authority",0,IF('III Tool Overview'!$H$7="Shetland Islands Local Authority",0,IF('III Tool Overview'!$H$7="Eilean Siar Local Authority",0,new_yll(20,B74,C74,D74,$C$1,G74+H74,1,F74,E74*F74))))))) -> 217074.1986 | AB74: 27.33810132 | AC74: =IF('III Tool Overview'!$H$7="Orkney Health Board",0,IF('III Tool Overview'!$H$7="Shetland Health Board",0,IF('III Tool Overview'!$H$7="Western Isles Health Board",0,IF('III Tool Overview'!$H$7="Orkney Islands Local Authority",0,IF('III Tool Overview'!$H$7="Shetland Islands Local Authority",0,IF('III Tool Overview'!$H$7="Eilean Siar Local Authority",0,hosp_count(2,B74,C74,D74,$C$1,G74,1,F74,E74*F74))))))) -> 6424.192664 | AD74: =IF('III Tool Overview'!$H$7="Orkney Health Board",0,IF('III Tool Overview'!$H$7="Shetland Health Board",0,IF('III Tool Overview'!$H$7="Western Isles Health Board",0,IF('III Tool Overview'!$H$7="Orkney Islands Local Authority",0,IF('III Tool Overview'!$H$7="Shetland Islands Local Authority",0,IF('III Tool Overview'!$H$7="Eilean Siar Local Authority",0,hosp_count(2,B74,C74,D74,$C$1,G74+H74,1,F74,E74*F74))))))) -> 6413.051324 | AE74: 11.14133981 | AF74: =IF('III Tool Overview'!$H$7="Orkney Health Board",0,IF('III Tool Overview'!$H$7="Shetland Health Board",0,IF('III Tool Overview'!$H$7="Western Isles Health Board",0,IF('III Tool Overview'!$H$7="Orkney Islands Local Authority",0,IF('III Tool Overview'!$H$7="Shetland Islands Local Authority",0,IF('III Tool Overview'!$H$7="Eilean Siar Local Authority",0,hosp_count(5,B74,C74,D74,$C$1,G74,1,F74,E74*F74))))))) -> 26982.10355 | AG74: =IF('III Tool Overview'!$H$7="Orkney Health Board",0,IF('III Tool Overview'!$H$7="Shetland Health Board",0,IF('III Tool Overview'!$H$7="Western Isles Health Board",0,IF('III Tool Overview'!$H$7="Orkney Islands Local Authority",0,IF('III Tool Overview'!$H$7="Shetland Islands Local Authority",0,IF('III Tool Overview'!$H$7="Eilean Siar Local Authority",0,hosp_count(5,B74,C74,D74,$C$1,G74+H74,1,F74,E74*F74))))))) -> 26952.34151 | AH74: 29.76204769 | AI74: =IF('III Tool Overview'!$H$7="Orkney Health Board",0,IF('III Tool Overview'!$H$7="Shetland Health Board",0,IF('III Tool Overview'!$H$7="Western Isles Health Board",0,IF('III Tool Overview'!$H$7="Orkney Islands Local Authority",0,IF('III Tool Overview'!$H$7="Shetland Islands Local Authority",0,IF('III Tool Overview'!$H$7="Eilean Siar Local Authority",0,hosp_count(10,B74,C74,D74,$C$1,G74,1,F74,E74*F74))))))) -> 65830.38589 | AJ74: =IF('III Tool Overview'!$H$7="Orkney Health Board",0,IF('III Tool Overview'!$H$7="Shetland Health Board",0,IF('III Tool Overview'!$H$7="Western Isles Health Board",0,IF('III Tool Overview'!$H$7="Orkney Islands Local Authority",0,IF('III Tool Overview'!$H$7="Shetland Islands Local Authority",0,IF('III Tool Overview'!$H$7="Eilean Siar Local Authority",0,hosp_count(10,B74,C74,D74,$C$1,G74+H74,1,F74,E74*F74))))))) -> 65791.50153 | AK74: 38.88435274 | AL74: =IF('III Tool Overview'!$H$7="Orkney Health Board",0,IF('III Tool Overview'!$H$7="Shetland Health Board",0,IF('III Tool Overview'!$H$7="Western Isles Health Board",0,IF('III Tool Overview'!$H$7="Orkney Islands Local Authority",0,IF('III Tool Overview'!$H$7="Shetland Islands Local Authority",0,IF('III Tool Overview'!$H$7="Eilean Siar Local Authority",0,hosp_count(20,B74,C74,D74,$C$1,G74,1,F74,E74*F74))))))) -> 162569.7396 | AM74: =IF('III Tool Overview'!$H$7="Orkney Health Board",0,IF('III Tool Overview'!$H$7="Shetland Health Board",0,IF('III Tool Overview'!$H$7="Western Isles Health Board",0,IF('III Tool Overview'!$H$7="Orkney Islands Local Authority",0,IF('III Tool Overview'!$H$7="Shetland Islands Local Authority",0,IF('III Tool Overview'!$H$7="Eilean Siar Local Authority",0,hosp_count(20,B74,C74,D74,$C$1,G74+H74,1,F74,E74*F74))))))) -> 162530.0871 | AN74: 39.65250669 | AP74: 0.5 | AQ74: 5
A75: Male 40-44 | B75: 42.5 | C75: male | D75: 1 | E75: =HLOOKUP('III Tool Overview'!$H$7,Prevalence!$B$2:$AV$268,Prevalence!AW71,FALSE) -> 0.281614 | F75: =HLOOKUP('III Tool Overview'!$H$7,LookUpData_Pop!$B$1:$AV$269,LookUpData_Pop!BB76,FALSE)/5 -> 34672.6 | G75: ='III Tool Overview'!$H$10/110 -> 0 | H75: =IF('III Tool Overview'!$H$11="Even distribution",Targeting!C73,IF('III Tool Overview'!$H$11="Targeting to Q1",Targeting!D73,IF('III Tool Overview'!$H$11="Targeting to Q1 & Q2",Targeting!E73,IF('III Tool Overview'!$H$11="Proportionate to need",Targeting!F73)))) -> 1940.152058 | I75: =IF('III Tool Overview'!$H$7="Orkney Health Board",0,IF('III Tool Overview'!$H$7="Shetland Health Board",0,IF('III Tool Overview'!$H$7="Western Isles Health Board",0,IF('III Tool Overview'!$H$7="Orkney Islands Local Authority",0,IF('III Tool Overview'!$H$7="Shetland Islands Local Authority",0,IF('III Tool Overview'!$H$7="Eilean Siar Local Authority",0,new_ci(2,B75,C75,D75,$C$1,G75,1,F75,E75*F75))))))) -> 195.3167894 | J75: =IF('III Tool Overview'!$H$7="Orkney Health Board",0,IF('III Tool Overview'!$H$7="Shetland Health Board",0,IF('III Tool Overview'!$H$7="Western Isles Health Board",0,IF('III Tool Overview'!$H$7="Orkney Islands Local Authority",0,IF('III Tool Overview'!$H$7="Shetland Islands Local Authority",0,IF('III Tool Overview'!$H$7="Eilean Siar Local Authority",0,new_ci(2,B75,C75,D75,$C$1,G75+H75,1,F75,E75*F75))))))) -> 195.117041 | K75: =IF('III Tool Overview'!$H$7="Orkney Health Board",0,IF('III Tool Overview'!$H$7="Shetland Health Board",0,IF('III Tool Overview'!$H$7="Western Isles Health Board",0,IF('III Tool Overview'!$H$7="Orkney Islands Local Authority",0,IF('III Tool Overview'!$H$7="Shetland Islands Local Authority",0,IF('III Tool Overview'!$H$7="Eilean Siar Local Authority",0,new_ci(5,B75,C75,D75,$C$1,G75,1,F75,E75*F75))))))) -> 846.4501885 | L75: =IF('III Tool Overview'!$H$7="Orkney Health Board",0,IF('III Tool Overview'!$H$7="Shetland Health Board",0,IF('III Tool Overview'!$H$7="Western Isles Health Board",0,IF('III Tool Overview'!$H$7="Orkney Islands Local Authority",0,IF('III Tool Overview'!$H$7="Shetland Islands Local Authority",0,IF('III Tool Overview'!$H$7="Eilean Siar Local Authority",0,new_ci(5,B75,C75,D75,$C$1,G75+H75,1,F75,E75*F75))))))) -> 845.9100524 | M75: =IF('III Tool Overview'!$H$7="Orkney Health Board",0,IF('III Tool Overview'!$H$7="Shetland Health Board",0,IF('III Tool Overview'!$H$7="Western Isles Health Board",0,IF('III Tool Overview'!$H$7="Orkney Islands Local Authority",0,IF('III Tool Overview'!$H$7="Shetland Islands Local Authority",0,IF('III Tool Overview'!$H$7="Eilean Siar Local Authority",0,new_ci(10,B75,C75,D75,$C$1,G75,1,F75,E75*F75))))))) -> 2179.921808 | N75: =IF('III Tool Overview'!$H$7="Orkney Health Board",0,IF('III Tool Overview'!$H$7="Shetland Health Board",0,IF('III Tool Overview'!$H$7="Western Isles Health Board",0,IF('III Tool Overview'!$H$7="Orkney Islands Local Authority",0,IF('III Tool Overview'!$H$7="Shetland Islands Local Authority",0,IF('III Tool Overview'!$H$7="Eilean Siar Local Authority",0,new_ci(10,B75,C75,D75,$C$1,G75+H75,1,F75,E75*F75))))))) -> 2179.218349 | O75: =IF('III Tool Overview'!$H$7="Orkney Health Board",0,IF('III Tool Overview'!$H$7="Shetland Health Board",0,IF('III Tool Overview'!$H$7="Western Isles Health Board",0,IF('III Tool Overview'!$H$7="Orkney Islands Local Authority",0,IF('III Tool Overview'!$H$7="Shetland Islands Local Authority",0,IF('III Tool Overview'!$H$7="Eilean Siar Local Authority",0,new_ci(20,B75,C75,D75,$C$1,G75,1,F75,E75*F75))))))) -> 6023.021185 | P75: =IF('III Tool Overview'!$H$7="Orkney Health Board",0,IF('III Tool Overview'!$H$7="Shetland Health Board",0,IF('III Tool Overview'!$H$7="Western Isles Health Board",0,IF('III Tool Overview'!$H$7="Orkney Islands Local Authority",0,IF('III Tool Overview'!$H$7="Shetland Islands Local Authority",0,IF('III Tool Overview'!$H$7="Eilean Siar Local Authority",0,new_ci(20,B75,C75,D75,$C$1,G75+H75,1,F75,E75*F75))))))) -> 6022.364345 | Q75: =IF('III Tool Overview'!$H$7="Orkney Health Board",0,IF('III Tool Overview'!$H$7="Shetland Health Board",0,IF('III Tool Overview'!$H$7="Western Isles Health Board",0,IF('III Tool Overview'!$H$7="Orkney Islands Local Authority",0,IF('III Tool Overview'!$H$7="Shetland Islands Local Authority",0,IF('III Tool Overview'!$H$7="Eilean Siar Local Authority",0,new_yll(2,B75,C75,D75,$C$1,G75,1,F75,E75*F75))))))) -> 11133.057 | R75: =IF('III Tool Overview'!$H$7="Orkney Health Board",0,IF('III Tool Overview'!$H$7="Shetland Health Board",0,IF('III Tool Overview'!$H$7="Western Isles Health Board",0,IF('III Tool Overview'!$H$7="Orkney Islands Local Authority",0,IF('III Tool Overview'!$H$7="Shetland Islands Local Authority",0,IF('III Tool Overview'!$H$7="Eilean Siar Local Authority",0,new_yll(2,B75,C75,D75,$C$1,G75+H75,1,F75,E75*F75))))))) -> 11121.67134 | S75: 11.38565967 | T75: =IF('III Tool Overview'!$H$7="Orkney Health Board",0,IF('III Tool Overview'!$H$7="Shetland Health Board",0,IF('III Tool Overview'!$H$7="Western Isles Health Board",0,IF('III Tool Overview'!$H$7="Orkney Islands Local Authority",0,IF('III Tool Overview'!$H$7="Shetland Islands Local Authority",0,IF('III Tool Overview'!$H$7="Eilean Siar Local Authority",0,new_yll(5,B75,C75,D75,$C$1,G75,1,F75,E75*F75))))))) -> 46922.83817 | U75: =IF('III Tool Overview'!$H$7="Orkney Health Board",0,IF('III Tool Overview'!$H$7="Shetland Health Board",0,IF('III Tool Overview'!$H$7="Western Isles Health Board",0,IF('III Tool Overview'!$H$7="Orkney Islands Local Authority",0,IF('III Tool Overview'!$H$7="Shetland Islands Local Authority",0,IF('III Tool Overview'!$H$7="Eilean Siar Local Authority",0,new_yll(5,B75,C75,D75,$C$1,G75+H75,1,F75,E75*F75))))))) -> 46892.66338 | V75: 30.17479295 | W75: =IF('III Tool Overview'!$H$7="Orkney Health Board",0,IF('III Tool Overview'!$H$7="Shetland Health Board",0,IF('III Tool Overview'!$H$7="Western Isles Health Board",0,IF('III Tool Overview'!$H$7="Orkney Islands Local Authority",0,IF('III Tool Overview'!$H$7="Shetland Islands Local Authority",0,IF('III Tool Overview'!$H$7="Eilean Siar Local Authority",0,new_yll(10,B75,C75,D75,$C$1,G75,1,F75,E75*F75))))))) -> 114795.9639 | X75: =IF('III Tool Overview'!$H$7="Orkney Health Board",0,IF('III Tool Overview'!$H$7="Shetland Health Board",0,IF('III Tool Overview'!$H$7="Western Isles Health Board",0,IF('III Tool Overview'!$H$7="Orkney Islands Local Authority",0,IF('III Tool Overview'!$H$7="Shetland Islands Local Authority",0,IF('III Tool Overview'!$H$7="Eilean Siar Local Authority",0,new_yll(10,B75,C75,D75,$C$1,G75+H75,1,F75,E75*F75))))))) -> 114757.3445 | Y75: 38.61938379 | Z75: =IF('III Tool Overview'!$H$7="Orkney Health Board",0,IF('III Tool Overview'!$H$7="Shetland Health Board",0,IF('III Tool Overview'!$H$7="Western Isles Health Board",0,IF('III Tool Overview'!$H$7="Orkney Islands Local Authority",0,IF('III Tool Overview'!$H$7="Shetland Islands Local Authority",0,IF('III Tool Overview'!$H$7="Eilean Siar Local Authority",0,new_yll(20,B75,C75,D75,$C$1,G75,1,F75,E75*F75))))))) -> 280528.5467 | AA75: =IF('III Tool Overview'!$H$7="Orkney Health Board",0,IF('III Tool Overview'!$H$7="Shetland Health Board",0,IF('III Tool Overview'!$H$7="Western Isles Health Board",0,IF('III Tool Overview'!$H$7="Orkney Islands Local Authority",0,IF('III Tool Overview'!$H$7="Shetland Islands Local Authority",0,IF('III Tool Overview'!$H$7="Eilean Siar Local Authority",0,new_yll(20,B75,C75,D75,$C$1,G75+H75,1,F75,E75*F75))))))) -> 280491.7952 | AB75: 36.75149251 | AC75: =IF('III Tool Overview'!$H$7="Orkney Health Board",0,IF('III Tool Overview'!$H$7="Shetland Health Board",0,IF('III Tool Overview'!$H$7="Western Isles Health Board",0,IF('III Tool Overview'!$H$7="Orkney Islands Local Authority",0,IF('III Tool Overview'!$H$7="Shetland Islands Local Authority",0,IF('III Tool Overview'!$H$7="Eilean Siar Local Authority",0,hosp_count(2,B75,C75,D75,$C$1,G75,1,F75,E75*F75))))))) -> 7931.513086 | AD75: =IF('III Tool Overview'!$H$7="Orkney Health Board",0,IF('III Tool Overview'!$H$7="Shetland Health Board",0,IF('III Tool Overview'!$H$7="Western Isles Health Board",0,IF('III Tool Overview'!$H$7="Orkney Islands Local Authority",0,IF('III Tool Overview'!$H$7="Shetland Islands Local Authority",0,IF('III Tool Overview'!$H$7="Eilean Siar Local Authority",0,hosp_count(2,B75,C75,D75,$C$1,G75+H75,1,F75,E75*F75))))))) -> 7917.030847 | AE75: 14.48223855 | AF75: =IF('III Tool Overview'!$H$7="Orkney Health Board",0,IF('III Tool Overview'!$H$7="Shetland Health Board",0,IF('III Tool Overview'!$H$7="Western Isles Health Board",0,IF('III Tool Overview'!$H$7="Orkney Islands Local Authority",0,IF('III Tool Overview'!$H$7="Shetland Islands Local Authority",0,IF('III Tool Overview'!$H$7="Eilean Siar Local Authority",0,hosp_count(5,B75,C75,D75,$C$1,G75,1,F75,E75*F75))))))) -> 33236.88401 | AG75: =IF('III Tool Overview'!$H$7="Orkney Health Board",0,IF('III Tool Overview'!$H$7="Shetland Health Board",0,IF('III Tool Overview'!$H$7="Western Isles Health Board",0,IF('III Tool Overview'!$H$7="Orkney Islands Local Authority",0,IF('III Tool Overview'!$H$7="Shetland Islands Local Authority",0,IF('III Tool Overview'!$H$7="Eilean Siar Local Authority",0,hosp_count(5,B75,C75,D75,$C$1,G75+H75,1,F75,E75*F75))))))) -> 33198.33819 | AH75: 38.54581886 | AI75: =IF('III Tool Overview'!$H$7="Orkney Health Board",0,IF('III Tool Overview'!$H$7="Shetland Health Board",0,IF('III Tool Overview'!$H$7="Western Isles Health Board",0,IF('III Tool Overview'!$H$7="Orkney Islands Local Authority",0,IF('III Tool Overview'!$H$7="Shetland Islands Local Authority",0,IF('III Tool Overview'!$H$7="Eilean Siar Local Authority",0,hosp_count(10,B75,C75,D75,$C$1,G75,1,F75,E75*F75))))))) -> 80714.18542 | AJ75: =IF('III Tool Overview'!$H$7="Orkney Health Board",0,IF('III Tool Overview'!$H$7="Shetland Health Board",0,IF('III Tool Overview'!$H$7="Western Isles Health Board",0,IF('III Tool Overview'!$H$7="Orkney Islands Local Authority",0,IF('III Tool Overview'!$H$7="Shetland Islands Local Authority",0,IF('III Tool Overview'!$H$7="Eilean Siar Local Authority",0,hosp_count(10,B75,C75,D75,$C$1,G75+H75,1,F75,E75*F75))))))) -> 80664.14368 | AK75: 50.04173452 | AL75: =IF('III Tool Overview'!$H$7="Orkney Health Board",0,IF('III Tool Overview'!$H$7="Shetland Health Board",0,IF('III Tool Overview'!$H$7="Western Isles Health Board",0,IF('III Tool Overview'!$H$7="Orkney Islands Local Authority",0,IF('III Tool Overview'!$H$7="Shetland Islands Local Authority",0,IF('III Tool Overview'!$H$7="Eilean Siar Local Authority",0,hosp_count(20,B75,C75,D75,$C$1,G75,1,F75,E75*F75))))))) -> 196641.9088 | AM75: =IF('III Tool Overview'!$H$7="Orkney Health Board",0,IF('III Tool Overview'!$H$7="Shetland Health Board",0,IF('III Tool Overview'!$H$7="Western Isles Health Board",0,IF('III Tool Overview'!$H$7="Orkney Islands Local Authority",0,IF('III Tool Overview'!$H$7="Shetland Islands Local Authority",0,IF('III Tool Overview'!$H$7="Eilean Siar Local Authority",0,hosp_count(20,B75,C75,D75,$C$1,G75+H75,1,F75,E75*F75))))))) -> 196591.5819 | AN75: 50.32689722 | AP75: 0.5 | AQ75: 5
A76: Male 45-49 | B76: 47.5 | C76: male | D76: 1 | E76: =HLOOKUP('III Tool Overview'!$H$7,Prevalence!$B$2:$AV$268,Prevalence!AW72,FALSE) -> 0.301657 | F76: =HLOOKUP('III Tool Overview'!$H$7,LookUpData_Pop!$B$1:$AV$269,LookUpData_Pop!BB77,FALSE)/5 -> 34460.8 | G76: ='III Tool Overview'!$H$10/110 -> 0 | H76: =IF('III Tool Overview'!$H$11="Even distribution",Targeting!C74,IF('III Tool Overview'!$H$11="Targeting to Q1",Targeting!D74,IF('III Tool Overview'!$H$11="Targeting to Q1 & Q2",Targeting!E74,IF('III Tool Overview'!$H$11="Proportionate to need",Targeting!F74)))) -> 2175.616148 | I76: =IF('III Tool Overview'!$H$7="Orkney Health Board",0,IF('III Tool Overview'!$H$7="Shetland Health Board",0,IF('III Tool Overview'!$H$7="Western Isles Health Board",0,IF('III Tool Overview'!$H$7="Orkney Islands Local Authority",0,IF('III Tool Overview'!$H$7="Shetland Islands Local Authority",0,IF('III Tool Overview'!$H$7="Eilean Siar Local Authority",0,new_ci(2,B76,C76,D76,$C$1,G76,1,F76,E76*F76))))))) -> 299.2699212 | J76: =IF('III Tool Overview'!$H$7="Orkney Health Board",0,IF('III Tool Overview'!$H$7="Shetland Health Board",0,IF('III Tool Overview'!$H$7="Western Isles Health Board",0,IF('III Tool Overview'!$H$7="Orkney Islands Local Authority",0,IF('III Tool Overview'!$H$7="Shetland Islands Local Authority",0,IF('III Tool Overview'!$H$7="Eilean Siar Local Authority",0,new_ci(2,B76,C76,D76,$C$1,G76+H76,1,F76,E76*F76))))))) -> 298.9268017 | K76: =IF('III Tool Overview'!$H$7="Orkney Health Board",0,IF('III Tool Overview'!$H$7="Shetland Health Board",0,IF('III Tool Overview'!$H$7="Western Isles Health Board",0,IF('III Tool Overview'!$H$7="Orkney Islands Local Authority",0,IF('III Tool Overview'!$H$7="Shetland Islands Local Authority",0,IF('III Tool Overview'!$H$7="Eilean Siar Local Authority",0,new_ci(5,B76,C76,D76,$C$1,G76,1,F76,E76*F76))))))) -> 1290.210369 | L76: =IF('III Tool Overview'!$H$7="Orkney Health Board",0,IF('III Tool Overview'!$H$7="Shetland Health Board",0,IF('III Tool Overview'!$H$7="Western Isles Health Board",0,IF('III Tool Overview'!$H$7="Orkney Islands Local Authority",0,IF('III Tool Overview'!$H$7="Shetland Islands Local Authority",0,IF('III Tool Overview'!$H$7="Eilean Siar Local Authority",0,new_ci(5,B76,C76,D76,$C$1,G76+H76,1,F76,E76*F76))))))) -> 1289.293527 | M76: =IF('III Tool Overview'!$H$7="Orkney Health Board",0,IF('III Tool Overview'!$H$7="Shetland Health Board",0,IF('III Tool Overview'!$H$7="Western Isles Health Board",0,IF('III Tool Overview'!$H$7="Orkney Islands Local Authority",0,IF('III Tool Overview'!$H$7="Shetland Islands Local Authority",0,IF('III Tool Overview'!$H$7="Eilean Siar Local Authority",0,new_ci(10,B76,C76,D76,$C$1,G76,1,F76,E76*F76))))))) -> 3286.895905 | N76: =IF('III Tool Overview'!$H$7="Orkney Health Board",0,IF('III Tool Overview'!$H$7="Shetland Health Board",0,IF('III Tool Overview'!$H$7="Western Isles Health Board",0,IF('III Tool Overview'!$H$7="Orkney Islands Local Authority",0,IF('III Tool Overview'!$H$7="Shetland Islands Local Authority",0,IF('III Tool Overview'!$H$7="Eilean Siar Local Authority",0,new_ci(10,B76,C76,D76,$C$1,G76+H76,1,F76,E76*F76))))))) -> 3285.731546 | O76: =IF('III Tool Overview'!$H$7="Orkney Health Board",0,IF('III Tool Overview'!$H$7="Shetland Health Board",0,IF('III Tool Overview'!$H$7="Western Isles Health Board",0,IF('III Tool Overview'!$H$7="Orkney Islands Local Authority",0,IF('III Tool Overview'!$H$7="Shetland Islands Local Authority",0,IF('III Tool Overview'!$H$7="Eilean Siar Local Authority",0,new_ci(20,B76,C76,D76,$C$1,G76,1,F76,E76*F76))))))) -> 8789.233689 | P76: =IF('III Tool Overview'!$H$7="Orkney Health Board",0,IF('III Tool Overview'!$H$7="Shetland Health Board",0,IF('III Tool Overview'!$H$7="Western Isles Health Board",0,IF('III Tool Overview'!$H$7="Orkney Islands Local Authority",0,IF('III Tool Overview'!$H$7="Shetland Islands Local Authority",0,IF('III Tool Overview'!$H$7="Eilean Siar Local Authority",0,new_ci(20,B76,C76,D76,$C$1,G76+H76,1,F76,E76*F76))))))) -> 8788.229096 | Q76: =IF('III Tool Overview'!$H$7="Orkney Health Board",0,IF('III Tool Overview'!$H$7="Shetland Health Board",0,IF('III Tool Overview'!$H$7="Western Isles Health Board",0,IF('III Tool Overview'!$H$7="Orkney Islands Local Authority",0,IF('III Tool Overview'!$H$7="Shetland Islands Local Authority",0,IF('III Tool Overview'!$H$7="Eilean Siar Local Authority",0,new_yll(2,B76,C76,D76,$C$1,G76,1,F76,E76*F76))))))) -> 15262.76598 | R76: =IF('III Tool Overview'!$H$7="Orkney Health Board",0,IF('III Tool Overview'!$H$7="Shetland Health Board",0,IF('III Tool Overview'!$H$7="Western Isles Health Board",0,IF('III Tool Overview'!$H$7="Orkney Islands Local Authority",0,IF('III Tool Overview'!$H$7="Shetland Islands Local Authority",0,IF('III Tool Overview'!$H$7="Eilean Siar Local Authority",0,new_yll(2,B76,C76,D76,$C$1,G76+H76,1,F76,E76*F76))))))) -> 15245.26689 | S76: 17.49909652 | T76: =IF('III Tool Overview'!$H$7="Orkney Health Board",0,IF('III Tool Overview'!$H$7="Shetland Health Board",0,IF('III Tool Overview'!$H$7="Western Isles Health Board",0,IF('III Tool Overview'!$H$7="Orkney Islands Local Authority",0,IF('III Tool Overview'!$H$7="Shetland Islands Local Authority",0,IF('III Tool Overview'!$H$7="Eilean Siar Local Authority",0,new_yll(5,B76,C76,D76,$C$1,G76,1,F76,E76*F76))))))) -> 63786.82913 | U76: =IF('III Tool Overview'!$H$7="Orkney Health Board",0,IF('III Tool Overview'!$H$7="Shetland Health Board",0,IF('III Tool Overview'!$H$7="Western Isles Health Board",0,IF('III Tool Overview'!$H$7="Orkney Islands Local Authority",0,IF('III Tool Overview'!$H$7="Shetland Islands Local Authority",0,IF('III Tool Overview'!$H$7="Eilean Siar Local Authority",0,new_yll(5,B76,C76,D76,$C$1,G76+H76,1,F76,E76*F76))))))) -> 63741.09844 | V76: 45.73068607 | W76: =IF('III Tool Overview'!$H$7="Orkney Health Board",0,IF('III Tool Overview'!$H$7="Shetland Health Board",0,IF('III Tool Overview'!$H$7="Western Isles Health Board",0,IF('III Tool Overview'!$H$7="Orkney Islands Local Authority",0,IF('III Tool Overview'!$H$7="Shetland Islands Local Authority",0,IF('III Tool Overview'!$H$7="Eilean Siar Local Authority",0,new_yll(10,B76,C76,D76,$C$1,G76,1,F76,E76*F76))))))) -> 153454.7631 | X76: =IF('III Tool Overview'!$H$7="Orkney Health Board",0,IF('III Tool Overview'!$H$7="Shetland Health Board",0,IF('III Tool Overview'!$H$7="Western Isles Health Board",0,IF('III Tool Overview'!$H$7="Orkney Islands Local Authority",0,IF('III Tool Overview'!$H$7="Shetland Islands Local Authority",0,IF('III Tool Overview'!$H$7="Eilean Siar Local Authority",0,new_yll(10,B76,C76,D76,$C$1,G76+H76,1,F76,E76*F76))))))) -> 153397.6926 | Y76: 57.07042989 | Z76: =IF('III Tool Overview'!$H$7="Orkney Health Board",0,IF('III Tool Overview'!$H$7="Shetland Health Board",0,IF('III Tool Overview'!$H$7="Western Isles Health Board",0,IF('III Tool Overview'!$H$7="Orkney Islands Local Authority",0,IF('III Tool Overview'!$H$7="Shetland Islands Local Authority",0,IF('III Tool Overview'!$H$7="Eilean Siar Local Authority",0,new_yll(20,B76,C76,D76,$C$1,G76,1,F76,E76*F76))))))) -> 358038.2882 | AA76: =IF('III Tool Overview'!$H$7="Orkney Health Board",0,IF('III Tool Overview'!$H$7="Shetland Health Board",0,IF('III Tool Overview'!$H$7="Western Isles Health Board",0,IF('III Tool Overview'!$H$7="Orkney Islands Local Authority",0,IF('III Tool Overview'!$H$7="Shetland Islands Local Authority",0,IF('III Tool Overview'!$H$7="Eilean Siar Local Authority",0,new_yll(20,B76,C76,D76,$C$1,G76+H76,1,F76,E76*F76))))))) -> 357986.9266 | AB76: 51.36160734 | AC76: =IF('III Tool Overview'!$H$7="Orkney Health Board",0,IF('III Tool Overview'!$H$7="Shetland Health Board",0,IF('III Tool Overview'!$H$7="Western Isles Health Board",0,IF('III Tool Overview'!$H$7="Orkney Islands Local Authority",0,IF('III Tool Overview'!$H$7="Shetland Islands Local Authority",0,IF('III Tool Overview'!$H$7="Eilean Siar Local Authority",0,hosp_count(2,B76,C76,D76,$C$1,G76,1,F76,E76*F76))))))) -> 9718.866272 | AD76: =IF('III Tool Overview'!$H$7="Orkney Health Board",0,IF('III Tool Overview'!$H$7="Shetland Health Board",0,IF('III Tool Overview'!$H$7="Western Isles Health Board",0,IF('III Tool Overview'!$H$7="Orkney Islands Local Authority",0,IF('III Tool Overview'!$H$7="Shetland Islands Local Authority",0,IF('III Tool Overview'!$H$7="Eilean Siar Local Authority",0,hosp_count(2,B76,C76,D76,$C$1,G76+H76,1,F76,E76*F76))))))) -> 9698.878345 | AE76: 19.9879267 | AF76: =IF('III Tool Overview'!$H$7="Orkney Health Board",0,IF('III Tool Overview'!$H$7="Shetland Health Board",0,IF('III Tool Overview'!$H$7="Western Isles Health Board",0,IF('III Tool Overview'!$H$7="Orkney Islands Local Authority",0,IF('III Tool Overview'!$H$7="Shetland Islands Local Authority",0,IF('III Tool Overview'!$H$7="Eilean Siar Local Authority",0,hosp_count(5,B76,C76,D76,$C$1,G76,1,F76,E76*F76))))))) -> 40526.09683 | AG76: =IF('III Tool Overview'!$H$7="Orkney Health Board",0,IF('III Tool Overview'!$H$7="Shetland Health Board",0,IF('III Tool Overview'!$H$7="Western Isles Health Board",0,IF('III Tool Overview'!$H$7="Orkney Islands Local Authority",0,IF('III Tool Overview'!$H$7="Shetland Islands Local Authority",0,IF('III Tool Overview'!$H$7="Eilean Siar Local Authority",0,hosp_count(5,B76,C76,D76,$C$1,G76+H76,1,F76,E76*F76))))))) -> 40473.30841 | AH76: 52.78841605 | AI76: =IF('III Tool Overview'!$H$7="Orkney Health Board",0,IF('III Tool Overview'!$H$7="Shetland Health Board",0,IF('III Tool Overview'!$H$7="Western Isles Health Board",0,IF('III Tool Overview'!$H$7="Orkney Islands Local Authority",0,IF('III Tool Overview'!$H$7="Shetland Islands Local Authority",0,IF('III Tool Overview'!$H$7="Eilean Siar Local Authority",0,hosp_count(10,B76,C76,D76,$C$1,G76,1,F76,E76*F76))))))) -> 97435.53655 | AJ76: =IF('III Tool Overview'!$H$7="Orkney Health Board",0,IF('III Tool Overview'!$H$7="Shetland Health Board",0,IF('III Tool Overview'!$H$7="Western Isles Health Board",0,IF('III Tool Overview'!$H$7="Orkney Islands Local Authority",0,IF('III Tool Overview'!$H$7="Shetland Islands Local Authority",0,IF('III Tool Overview'!$H$7="Eilean Siar Local Authority",0,hosp_count(10,B76,C76,D76,$C$1,G76+H76,1,F76,E76*F76))))))) -> 97367.91542 | AK76: 67.62113307 | AL76: =IF('III Tool Overview'!$H$7="Orkney Health Board",0,IF('III Tool Overview'!$H$7="Shetland Health Board",0,IF('III Tool Overview'!$H$7="Western Isles Health Board",0,IF('III Tool Overview'!$H$7="Orkney Islands Local Authority",0,IF('III Tool Overview'!$H$7="Shetland Islands Local Authority",0,IF('III Tool Overview'!$H$7="Eilean Siar Local Authority",0,hosp_count(20,B76,C76,D76,$C$1,G76,1,F76,E76*F76))))))) -> 230647.0907 | AM76: =IF('III Tool Overview'!$H$7="Orkney Health Board",0,IF('III Tool Overview'!$H$7="Shetland Health Board",0,IF('III Tool Overview'!$H$7="Western Isles Health Board",0,IF('III Tool Overview'!$H$7="Orkney Islands Local Authority",0,IF('III Tool Overview'!$H$7="Shetland Islands Local Authority",0,IF('III Tool Overview'!$H$7="Eilean Siar Local Authority",0,hosp_count(20,B76,C76,D76,$C$1,G76+H76,1,F76,E76*F76))))))) -> 230580.9622 | AN76: 66.12850701 | AP76: 0.5 | AQ76: 5
A77: Male 50-54 | B77: 52.5 | C77: male | D77: 1 | E77: =HLOOKUP('III Tool Overview'!$H$7,Prevalence!$B$2:$AV$268,Prevalence!AW73,FALSE) -> 0.301657 | F77: =HLOOKUP('III Tool Overview'!$H$7,LookUpData_Pop!$B$1:$AV$269,LookUpData_Pop!BB78,FALSE)/5 -> 31296.6 | G77: ='III Tool Overview'!$H$10/110 -> 0 | H77: =IF('III Tool Overview'!$H$11="Even distribution",Targeting!C75,IF('III Tool Overview'!$H$11="Targeting to Q1",Targeting!D75,IF('III Tool Overview'!$H$11="Targeting to Q1 & Q2",Targeting!E75,IF('III Tool Overview'!$H$11="Proportionate to need",Targeting!F75)))) -> 2025.523969 | I77: =IF('III Tool Overview'!$H$7="Orkney Health Board",0,IF('III Tool Overview'!$H$7="Shetland Health Board",0,IF('III Tool Overview'!$H$7="Western Isles Health Board",0,IF('III Tool Overview'!$H$7="Orkney Islands Local Authority",0,IF('III Tool Overview'!$H$7="Shetland Islands Local Authority",0,IF('III Tool Overview'!$H$7="Eilean Siar Local Authority",0,new_ci(2,B77,C77,D77,$C$1,G77,1,F77,E77*F77))))))) -> 362.5478197 | J77: =IF('III Tool Overview'!$H$7="Orkney Health Board",0,IF('III Tool Overview'!$H$7="Shetland Health Board",0,IF('III Tool Overview'!$H$7="Western Isles Health Board",0,IF('III Tool Overview'!$H$7="Orkney Islands Local Authority",0,IF('III Tool Overview'!$H$7="Shetland Islands Local Authority",0,IF('III Tool Overview'!$H$7="Eilean Siar Local Authority",0,new_ci(2,B77,C77,D77,$C$1,G77+H77,1,F77,E77*F77))))))) -> 362.122486 | K77: =IF('III Tool Overview'!$H$7="Orkney Health Board",0,IF('III Tool Overview'!$H$7="Shetland Health Board",0,IF('III Tool Overview'!$H$7="Western Isles Health Board",0,IF('III Tool Overview'!$H$7="Orkney Islands Local Authority",0,IF('III Tool Overview'!$H$7="Shetland Islands Local Authority",0,IF('III Tool Overview'!$H$7="Eilean Siar Local Authority",0,new_ci(5,B77,C77,D77,$C$1,G77,1,F77,E77*F77))))))) -> 1555.291004 | L77: =IF('III Tool Overview'!$H$7="Orkney Health Board",0,IF('III Tool Overview'!$H$7="Shetland Health Board",0,IF('III Tool Overview'!$H$7="Western Isles Health Board",0,IF('III Tool Overview'!$H$7="Orkney Islands Local Authority",0,IF('III Tool Overview'!$H$7="Shetland Islands Local Authority",0,IF('III Tool Overview'!$H$7="Eilean Siar Local Authority",0,new_ci(5,B77,C77,D77,$C$1,G77+H77,1,F77,E77*F77))))))) -> 1554.167417 | M77: =IF('III Tool Overview'!$H$7="Orkney Health Board",0,IF('III Tool Overview'!$H$7="Shetland Health Board",0,IF('III Tool Overview'!$H$7="Western Isles Health Board",0,IF('III Tool Overview'!$H$7="Orkney Islands Local Authority",0,IF('III Tool Overview'!$H$7="Shetland Islands Local Authority",0,IF('III Tool Overview'!$H$7="Eilean Siar Local Authority",0,new_ci(10,B77,C77,D77,$C$1,G77,1,F77,E77*F77))))))) -> 3921.789845 | N77: =IF('III Tool Overview'!$H$7="Orkney Health Board",0,IF('III Tool Overview'!$H$7="Shetland Health Board",0,IF('III Tool Overview'!$H$7="Western Isles Health Board",0,IF('III Tool Overview'!$H$7="Orkney Islands Local Authority",0,IF('III Tool Overview'!$H$7="Shetland Islands Local Authority",0,IF('III Tool Overview'!$H$7="Eilean Siar Local Authority",0,new_ci(10,B77,C77,D77,$C$1,G77+H77,1,F77,E77*F77))))))) -> 3920.397086 | O77: =IF('III Tool Overview'!$H$7="Orkney Health Board",0,IF('III Tool Overview'!$H$7="Shetland Health Board",0,IF('III Tool Overview'!$H$7="Western Isles Health Board",0,IF('III Tool Overview'!$H$7="Orkney Islands Local Authority",0,IF('III Tool Overview'!$H$7="Shetland Islands Local Authority",0,IF('III Tool Overview'!$H$7="Eilean Siar Local Authority",0,new_ci(20,B77,C77,D77,$C$1,G77,1,F77,E77*F77))))))) -> 10173.06855 | P77: =IF('III Tool Overview'!$H$7="Orkney Health Board",0,IF('III Tool Overview'!$H$7="Shetland Health Board",0,IF('III Tool Overview'!$H$7="Western Isles Health Board",0,IF('III Tool Overview'!$H$7="Orkney Islands Local Authority",0,IF('III Tool Overview'!$H$7="Shetland Islands Local Authority",0,IF('III Tool Overview'!$H$7="Eilean Siar Local Authority",0,new_ci(20,B77,C77,D77,$C$1,G77+H77,1,F77,E77*F77))))))) -> 10171.95482 | Q77: =IF('III Tool Overview'!$H$7="Orkney Health Board",0,IF('III Tool Overview'!$H$7="Shetland Health Board",0,IF('III Tool Overview'!$H$7="Western Isles Health Board",0,IF('III Tool Overview'!$H$7="Orkney Islands Local Authority",0,IF('III Tool Overview'!$H$7="Shetland Islands Local Authority",0,IF('III Tool Overview'!$H$7="Eilean Siar Local Authority",0,new_yll(2,B77,C77,D77,$C$1,G77,1,F77,E77*F77))))))) -> 17039.74753 | R77: =IF('III Tool Overview'!$H$7="Orkney Health Board",0,IF('III Tool Overview'!$H$7="Shetland Health Board",0,IF('III Tool Overview'!$H$7="Western Isles Health Board",0,IF('III Tool Overview'!$H$7="Orkney Islands Local Authority",0,IF('III Tool Overview'!$H$7="Shetland Islands Local Authority",0,IF('III Tool Overview'!$H$7="Eilean Siar Local Authority",0,new_yll(2,B77,C77,D77,$C$1,G77+H77,1,F77,E77*F77))))))) -> 17019.75684 | S77: 19.9906853 | T77: =IF('III Tool Overview'!$H$7="Orkney Health Board",0,IF('III Tool Overview'!$H$7="Shetland Health Board",0,IF('III Tool Overview'!$H$7="Western Isles Health Board",0,IF('III Tool Overview'!$H$7="Orkney Islands Local Authority",0,IF('III Tool Overview'!$H$7="Shetland Islands Local Authority",0,IF('III Tool Overview'!$H$7="Eilean Siar Local Authority",0,new_yll(5,B77,C77,D77,$C$1,G77,1,F77,E77*F77))))))) -> 70677.298 | U77: =IF('III Tool Overview'!$H$7="Orkney Health Board",0,IF('III Tool Overview'!$H$7="Shetland Health Board",0,IF('III Tool Overview'!$H$7="Western Isles Health Board",0,IF('III Tool Overview'!$H$7="Orkney Islands Local Authority",0,IF('III Tool Overview'!$H$7="Shetland Islands Local Authority",0,IF('III Tool Overview'!$H$7="Eilean Siar Local Authority",0,new_yll(5,B77,C77,D77,$C$1,G77+H77,1,F77,E77*F77))))))) -> 70625.73502 | V77: 51.56297883 | W77: =IF('III Tool Overview'!$H$7="Orkney Health Board",0,IF('III Tool Overview'!$H$7="Shetland Health Board",0,IF('III Tool Overview'!$H$7="Western Isles Health Board",0,IF('III Tool Overview'!$H$7="Orkney Islands Local Authority",0,IF('III Tool Overview'!$H$7="Shetland Islands Local Authority",0,IF('III Tool Overview'!$H$7="Eilean Siar Local Authority",0,new_yll(10,B77,C77,D77,$C$1,G77,1,F77,E77*F77))))))) -> 167506.8457 | X77: =IF('III Tool Overview'!$H$7="Orkney Health Board",0,IF('III Tool Overview'!$H$7="Shetland Health Board",0,IF('III Tool Overview'!$H$7="Western Isles Health Board",0,IF('III Tool Overview'!$H$7="Orkney Islands Local Authority",0,IF('III Tool Overview'!$H$7="Shetland Islands Local Authority",0,IF('III Tool Overview'!$H$7="Eilean Siar Local Authority",0,new_yll(10,B77,C77,D77,$C$1,G77+H77,1,F77,E77*F77))))))) -> 167443.9933 | Y77: 62.85237588 | Z77: =IF('III Tool Overview'!$H$7="Orkney Health Board",0,IF('III Tool Overview'!$H$7="Shetland Health Board",0,IF('III Tool Overview'!$H$7="Western Isles Health Board",0,IF('III Tool Overview'!$H$7="Orkney Islands Local Authority",0,IF('III Tool Overview'!$H$7="Shetland Islands Local Authority",0,IF('III Tool Overview'!$H$7="Eilean Siar Local Authority",0,new_yll(20,B77,C77,D77,$C$1,G77,1,F77,E77*F77))))))) -> 375267.6655 | AA77: =IF('III Tool Overview'!$H$7="Orkney Health Board",0,IF('III Tool Overview'!$H$7="Shetland Health Board",0,IF('III Tool Overview'!$H$7="Western Isles Health Board",0,IF('III Tool Overview'!$H$7="Orkney Islands Local Authority",0,IF('III Tool Overview'!$H$7="Shetland Islands Local Authority",0,IF('III Tool Overview'!$H$7="Eilean Siar Local Authority",0,new_yll(20,B77,C77,D77,$C$1,G77+H77,1,F77,E77*F77))))))) -> 375213.8165 | AB77: 53.84905221 | AC77: =IF('III Tool Overview'!$H$7="Orkney Health Board",0,IF('III Tool Overview'!$H$7="Shetland Health Board",0,IF('III Tool Overview'!$H$7="Western Isles Health Board",0,IF('III Tool Overview'!$H$7="Orkney Islands Local Authority",0,IF('III Tool Overview'!$H$7="Shetland Islands Local Authority",0,IF('III Tool Overview'!$H$7="Eilean Siar Local Authority",0,hosp_count(2,B77,C77,D77,$C$1,G77,1,F77,E77*F77))))))) -> 10148.48359 | AD77: =IF('III Tool Overview'!$H$7="Orkney Health Board",0,IF('III Tool Overview'!$H$7="Shetland Health Board",0,IF('III Tool Overview'!$H$7="Western Isles Health Board",0,IF('III Tool Overview'!$H$7="Orkney Islands Local Authority",0,IF('III Tool Overview'!$H$7="Shetland Islands Local Authority",0,IF('III Tool Overview'!$H$7="Eilean Siar Local Authority",0,hosp_count(2,B77,C77,D77,$C$1,G77+H77,1,F77,E77*F77))))))) -> 10127.08617 | AE77: 21.39741975 | AF77: =IF('III Tool Overview'!$H$7="Orkney Health Board",0,IF('III Tool Overview'!$H$7="Shetland Health Board",0,IF('III Tool Overview'!$H$7="Western Isles Health Board",0,IF('III Tool Overview'!$H$7="Orkney Islands Local Authority",0,IF('III Tool Overview'!$H$7="Shetland Islands Local Authority",0,IF('III Tool Overview'!$H$7="Eilean Siar Local Authority",0,hosp_count(5,B77,C77,D77,$C$1,G77,1,F77,E77*F77))))))) -> 42119.34386 | AG77: =IF('III Tool Overview'!$H$7="Orkney Health Board",0,IF('III Tool Overview'!$H$7="Shetland Health Board",0,IF('III Tool Overview'!$H$7="Western Isles Health Board",0,IF('III Tool Overview'!$H$7="Orkney Islands Local Authority",0,IF('III Tool Overview'!$H$7="Shetland Islands Local Authority",0,IF('III Tool Overview'!$H$7="Eilean Siar Local Authority",0,hosp_count(5,B77,C77,D77,$C$1,G77+H77,1,F77,E77*F77))))))) -> 42063.25131 | AH77: 56.09254852 | AI77: =IF('III Tool Overview'!$H$7="Orkney Health Board",0,IF('III Tool Overview'!$H$7="Shetland Health Board",0,IF('III Tool Overview'!$H$7="Western Isles Health Board",0,IF('III Tool Overview'!$H$7="Orkney Islands Local Authority",0,IF('III Tool Overview'!$H$7="Shetland Islands Local Authority",0,IF('III Tool Overview'!$H$7="Eilean Siar Local Authority",0,hosp_count(10,B77,C77,D77,$C$1,G77,1,F77,E77*F77))))))) -> 100312.8753 | AJ77: =IF('III Tool Overview'!$H$7="Orkney Health Board",0,IF('III Tool Overview'!$H$7="Shetland Health Board",0,IF('III Tool Overview'!$H$7="Western Isles Health Board",0,IF('III Tool Overview'!$H$7="Orkney Islands Local Authority",0,IF('III Tool Overview'!$H$7="Shetland Islands Local Authority",0,IF('III Tool Overview'!$H$7="Eilean Siar Local Authority",0,hosp_count(10,B77,C77,D77,$C$1,G77+H77,1,F77,E77*F77))))))) -> 100241.9244 | AK77: 70.95089669 | AL77: =IF('III Tool Overview'!$H$7="Orkney Health Board",0,IF('III Tool Overview'!$H$7="Shetland Health Board",0,IF('III Tool Overview'!$H$7="Western Isles Health Board",0,IF('III Tool Overview'!$H$7="Orkney Islands Local Authority",0,IF('III Tool Overview'!$H$7="Shetland Islands Local Authority",0,IF('III Tool Overview'!$H$7="Eilean Siar Local Authority",0,hosp_count(20,B77,C77,D77,$C$1,G77,1,F77,E77*F77))))))) -> 231201.0616 | AM77: =IF('III Tool Overview'!$H$7="Orkney Health Board",0,IF('III Tool Overview'!$H$7="Shetland Health Board",0,IF('III Tool Overview'!$H$7="Western Isles Health Board",0,IF('III Tool Overview'!$H$7="Orkney Islands Local Authority",0,IF('III Tool Overview'!$H$7="Shetland Islands Local Authority",0,IF('III Tool Overview'!$H$7="Eilean Siar Local Authority",0,hosp_count(20,B77,C77,D77,$C$1,G77+H77,1,F77,E77*F77))))))) -> 231133.3811 | AN77: 67.68052074 | AP77: 0.5 | AQ77: 5
A78: Male 55-59 | B78: 57.5 | C78: male | D78: 1 | E78: =HLOOKUP('III Tool Overview'!$H$7,Prevalence!$B$2:$AV$268,Prevalence!AW74,FALSE) -> 0.27319 | F78: =HLOOKUP('III Tool Overview'!$H$7,LookUpData_Pop!$B$1:$AV$269,LookUpData_Pop!BB79,FALSE)/5 -> 28058.4 | G78: ='III Tool Overview'!$H$10/110 -> 0 | H78: =IF('III Tool Overview'!$H$11="Even distribution",Targeting!C76,IF('III Tool Overview'!$H$11="Targeting to Q1",Targeting!D76,IF('III Tool Overview'!$H$11="Targeting to Q1 & Q2",Targeting!E76,IF('III Tool Overview'!$H$11="Proportionate to need",Targeting!F76)))) -> 1550.179158 | I78: =IF('III Tool Overview'!$H$7="Orkney Health Board",0,IF('III Tool Overview'!$H$7="Shetland Health Board",0,IF('III Tool Overview'!$H$7="Western Isles Health Board",0,IF('III Tool Overview'!$H$7="Orkney Islands Local Authority",0,IF('III Tool Overview'!$H$7="Shetland Islands Local Authority",0,IF('III Tool Overview'!$H$7="Eilean Siar Local Authority",0,new_ci(2,B78,C78,D78,$C$1,G78,1,F78,E78*F78))))))) -> 500.2688793 | J78: =IF('III Tool Overview'!$H$7="Orkney Health Board",0,IF('III Tool Overview'!$H$7="Shetland Health Board",0,IF('III Tool Overview'!$H$7="Western Isles Health Board",0,IF('III Tool Overview'!$H$7="Orkney Islands Local Authority",0,IF('III Tool Overview'!$H$7="Shetland Islands Local Authority",0,IF('III Tool Overview'!$H$7="Eilean Siar Local Authority",0,new_ci(2,B78,C78,D78,$C$1,G78+H78,1,F78,E78*F78))))))) -> 499.7668476 | K78: =IF('III Tool Overview'!$H$7="Orkney Health Board",0,IF('III Tool Overview'!$H$7="Shetland Health Board",0,IF('III Tool Overview'!$H$7="Western Isles Health Board",0,IF('III Tool Overview'!$H$7="Orkney Islands Local Authority",0,IF('III Tool Overview'!$H$7="Shetland Islands Local Authority",0,IF('III Tool Overview'!$H$7="Eilean Siar Local Authority",0,new_ci(5,B78,C78,D78,$C$1,G78,1,F78,E78*F78))))))) -> 2123.354937 | L78: =IF('III Tool Overview'!$H$7="Orkney Health Board",0,IF('III Tool Overview'!$H$7="Shetland Health Board",0,IF('III Tool Overview'!$H$7="Western Isles Health Board",0,IF('III Tool Overview'!$H$7="Orkney Islands Local Authority",0,IF('III Tool Overview'!$H$7="Shetland Islands Local Authority",0,IF('III Tool Overview'!$H$7="Eilean Siar Local Authority",0,new_ci(5,B78,C78,D78,$C$1,G78+H78,1,F78,E78*F78))))))) -> 2122.061794 | M78: =IF('III Tool Overview'!$H$7="Orkney Health Board",0,IF('III Tool Overview'!$H$7="Shetland Health Board",0,IF('III Tool Overview'!$H$7="Western Isles Health Board",0,IF('III Tool Overview'!$H$7="Orkney Islands Local Authority",0,IF('III Tool Overview'!$H$7="Shetland Islands Local Authority",0,IF('III Tool Overview'!$H$7="Eilean Siar Local Authority",0,new_ci(10,B78,C78,D78,$C$1,G78,1,F78,E78*F78))))))) -> 5238.431334 | N78: =IF('III Tool Overview'!$H$7="Orkney Health Board",0,IF('III Tool Overview'!$H$7="Shetland Health Board",0,IF('III Tool Overview'!$H$7="Western Isles Health Board",0,IF('III Tool Overview'!$H$7="Orkney Islands Local Authority",0,IF('III Tool Overview'!$H$7="Shetland Islands Local Authority",0,IF('III Tool Overview'!$H$7="Eilean Siar Local Authority",0,new_ci(10,B78,C78,D78,$C$1,G78+H78,1,F78,E78*F78))))))) -> 5236.911781 | O78: =IF('III Tool Overview'!$H$7="Orkney Health Board",0,IF('III Tool Overview'!$H$7="Shetland Health Board",0,IF('III Tool Overview'!$H$7="Western Isles Health Board",0,IF('III Tool Overview'!$H$7="Orkney Islands Local Authority",0,IF('III Tool Overview'!$H$7="Shetland Islands Local Authority",0,IF('III Tool Overview'!$H$7="Eilean Siar Local Authority",0,new_ci(20,B78,C78,D78,$C$1,G78,1,F78,E78*F78))))))) -> 12757.4938 | P78: =IF('III Tool Overview'!$H$7="Orkney Health Board",0,IF('III Tool Overview'!$H$7="Shetland Health Board",0,IF('III Tool Overview'!$H$7="Western Isles Health Board",0,IF('III Tool Overview'!$H$7="Orkney Islands Local Authority",0,IF('III Tool Overview'!$H$7="Shetland Islands Local Authority",0,IF('III Tool Overview'!$H$7="Eilean Siar Local Authority",0,new_ci(20,B78,C78,D78,$C$1,G78+H78,1,F78,E78*F78))))))) -> 12756.46609 | Q78: =IF('III Tool Overview'!$H$7="Orkney Health Board",0,IF('III Tool Overview'!$H$7="Shetland Health Board",0,IF('III Tool Overview'!$H$7="Western Isles Health Board",0,IF('III Tool Overview'!$H$7="Orkney Islands Local Authority",0,IF('III Tool Overview'!$H$7="Shetland Islands Local Authority",0,IF('III Tool Overview'!$H$7="Eilean Siar Local Authority",0,new_yll(2,B78,C78,D78,$C$1,G78,1,F78,E78*F78))))))) -> 20511.02405 | R78: =IF('III Tool Overview'!$H$7="Orkney Health Board",0,IF('III Tool Overview'!$H$7="Shetland Health Board",0,IF('III Tool Overview'!$H$7="Western Isles Health Board",0,IF('III Tool Overview'!$H$7="Orkney Islands Local Authority",0,IF('III Tool Overview'!$H$7="Shetland Islands Local Authority",0,IF('III Tool Overview'!$H$7="Eilean Siar Local Authority",0,new_yll(2,B78,C78,D78,$C$1,G78+H78,1,F78,E78*F78))))))) -> 20490.44075 | S78: 20.58330094 | T78: =IF('III Tool Overview'!$H$7="Orkney Health Board",0,IF('III Tool Overview'!$H$7="Shetland Health Board",0,IF('III Tool Overview'!$H$7="Western Isles Health Board",0,IF('III Tool Overview'!$H$7="Orkney Islands Local Authority",0,IF('III Tool Overview'!$H$7="Shetland Islands Local Authority",0,IF('III Tool Overview'!$H$7="Eilean Siar Local Authority",0,new_yll(5,B78,C78,D78,$C$1,G78,1,F78,E78*F78))))))) -> 83770.31711 | U78: =IF('III Tool Overview'!$H$7="Orkney Health Board",0,IF('III Tool Overview'!$H$7="Shetland Health Board",0,IF('III Tool Overview'!$H$7="Western Isles Health Board",0,IF('III Tool Overview'!$H$7="Orkney Islands Local Authority",0,IF('III Tool Overview'!$H$7="Shetland Islands Local Authority",0,IF('III Tool Overview'!$H$7="Eilean Siar Local Authority",0,new_yll(5,B78,C78,D78,$C$1,G78+H78,1,F78,E78*F78))))))) -> 83718.69459 | V78: 51.62252366 | W78: =IF('III Tool Overview'!$H$7="Orkney Health Board",0,IF('III Tool Overview'!$H$7="Shetland Health Board",0,IF('III Tool Overview'!$H$7="Western Isles Health Board",0,IF('III Tool Overview'!$H$7="Orkney Islands Local Authority",0,IF('III Tool Overview'!$H$7="Shetland Islands Local Authority",0,IF('III Tool Overview'!$H$7="Eilean Siar Local Authority",0,new_yll(10,B78,C78,D78,$C$1,G78,1,F78,E78*F78))))))) -> 192595.3299 | X78: =IF('III Tool Overview'!$H$7="Orkney Health Board",0,IF('III Tool Overview'!$H$7="Shetland Health Board",0,IF('III Tool Overview'!$H$7="Western Isles Health Board",0,IF('III Tool Overview'!$H$7="Orkney Islands Local Authority",0,IF('III Tool Overview'!$H$7="Shetland Islands Local Authority",0,IF('III Tool Overview'!$H$7="Eilean Siar Local Authority",0,new_yll(10,B78,C78,D78,$C$1,G78+H78,1,F78,E78*F78))))))) -> 192535.4782 | Y78: 59.85166956 | Z78: =IF('III Tool Overview'!$H$7="Orkney Health Board",0,IF('III Tool Overview'!$H$7="Shetland Health Board",0,IF('III Tool Overview'!$H$7="Western Isles Health Board",0,IF('III Tool Overview'!$H$7="Orkney Islands Local Authority",0,IF('III Tool Overview'!$H$7="Shetland Islands Local Authority",0,IF('III Tool Overview'!$H$7="Eilean Siar Local Authority",0,new_yll(20,B78,C78,D78,$C$1,G78,1,F78,E78*F78))))))) -> 398246.9386 | AA78: =IF('III Tool Overview'!$H$7="Orkney Health Board",0,IF('III Tool Overview'!$H$7="Shetland Health Board",0,IF('III Tool Overview'!$H$7="Western Isles Health Board",0,IF('III Tool Overview'!$H$7="Orkney Islands Local Authority",0,IF('III Tool Overview'!$H$7="Shetland Islands Local Authority",0,IF('III Tool Overview'!$H$7="Eilean Siar Local Authority",0,new_yll(20,B78,C78,D78,$C$1,G78+H78,1,F78,E78*F78))))))) -> 398200.2669 | AB78: 46.67166387 | AC78: =IF('III Tool Overview'!$H$7="Orkney Health Board",0,IF('III Tool Overview'!$H$7="Shetland Health Board",0,IF('III Tool Overview'!$H$7="Western Isles Health Board",0,IF('III Tool Overview'!$H$7="Orkney Islands Local Authority",0,IF('III Tool Overview'!$H$7="Shetland Islands Local Authority",0,IF('III Tool Overview'!$H$7="Eilean Siar Local Authority",0,hosp_count(2,B78,C78,D78,$C$1,G78,1,F78,E78*F78))))))) -> 11217.27875 | AD78: =IF('III Tool Overview'!$H$7="Orkney Health Board",0,IF('III Tool Overview'!$H$7="Shetland Health Board",0,IF('III Tool Overview'!$H$7="Western Isles Health Board",0,IF('III Tool Overview'!$H$7="Orkney Islands Local Authority",0,IF('III Tool Overview'!$H$7="Shetland Islands Local Authority",0,IF('III Tool Overview'!$H$7="Eilean Siar Local Authority",0,hosp_count(2,B78,C78,D78,$C$1,G78+H78,1,F78,E78*F78))))))) -> 11197.04033 | AE78: 20.23842329 | AF78: =IF('III Tool Overview'!$H$7="Orkney Health Board",0,IF('III Tool Overview'!$H$7="Shetland Health Board",0,IF('III Tool Overview'!$H$7="Western Isles Health Board",0,IF('III Tool Overview'!$H$7="Orkney Islands Local Authority",0,IF('III Tool Overview'!$H$7="Shetland Islands Local Authority",0,IF('III Tool Overview'!$H$7="Eilean Siar Local Authority",0,hosp_count(5,B78,C78,D78,$C$1,G78,1,F78,E78*F78))))))) -> 46086.97325 | AG78: =IF('III Tool Overview'!$H$7="Orkney Health Board",0,IF('III Tool Overview'!$H$7="Shetland Health Board",0,IF('III Tool Overview'!$H$7="Western Isles Health Board",0,IF('III Tool Overview'!$H$7="Orkney Islands Local Authority",0,IF('III Tool Overview'!$H$7="Shetland Islands Local Authority",0,IF('III Tool Overview'!$H$7="Eilean Siar Local Authority",0,hosp_count(5,B78,C78,D78,$C$1,G78+H78,1,F78,E78*F78))))))) -> 46034.77518 | AH78: 52.19807277 | AI78: =IF('III Tool Overview'!$H$7="Orkney Health Board",0,IF('III Tool Overview'!$H$7="Shetland Health Board",0,IF('III Tool Overview'!$H$7="Western Isles Health Board",0,IF('III Tool Overview'!$H$7="Orkney Islands Local Authority",0,IF('III Tool Overview'!$H$7="Shetland Islands Local Authority",0,IF('III Tool Overview'!$H$7="Eilean Siar Local Authority",0,hosp_count(10,B78,C78,D78,$C$1,G78,1,F78,E78*F78))))))) -> 107569.2466 | AJ78: =IF('III Tool Overview'!$H$7="Orkney Health Board",0,IF('III Tool Overview'!$H$7="Shetland Health Board",0,IF('III Tool Overview'!$H$7="Western Isles Health Board",0,IF('III Tool Overview'!$H$7="Orkney Islands Local Authority",0,IF('III Tool Overview'!$H$7="Shetland Islands Local Authority",0,IF('III Tool Overview'!$H$7="Eilean Siar Local Authority",0,hosp_count(10,B78,C78,D78,$C$1,G78+H78,1,F78,E78*F78))))))) -> 107504.9871 | AK78: 64.25952895 | AL78: =IF('III Tool Overview'!$H$7="Orkney Health Board",0,IF('III Tool Overview'!$H$7="Shetland Health Board",0,IF('III Tool Overview'!$H$7="Western Isles Health Board",0,IF('III Tool Overview'!$H$7="Orkney Islands Local Authority",0,IF('III Tool Overview'!$H$7="Shetland Islands Local Authority",0,IF('III Tool Overview'!$H$7="Eilean Siar Local Authority",0,hosp_count(20,B78,C78,D78,$C$1,G78,1,F78,E78*F78))))))) -> 234563.5943 | AM78: =IF('III Tool Overview'!$H$7="Orkney Health Board",0,IF('III Tool Overview'!$H$7="Shetland Health Board",0,IF('III Tool Overview'!$H$7="Western Isles Health Board",0,IF('III Tool Overview'!$H$7="Orkney Islands Local Authority",0,IF('III Tool Overview'!$H$7="Shetland Islands Local Authority",0,IF('III Tool Overview'!$H$7="Eilean Siar Local Authority",0,hosp_count(20,B78,C78,D78,$C$1,G78+H78,1,F78,E78*F78))))))) -> 234505.1681 | AN78: 58.42628741 | AP78: 0.5 | AQ78: 5
A79: Male 60-64 | B79: 62.5 | C79: male | D79: 1 | E79: =HLOOKUP('III Tool Overview'!$H$7,Prevalence!$B$2:$AV$268,Prevalence!AW75,FALSE) -> 0.27319 | F79: =HLOOKUP('III Tool Overview'!$H$7,LookUpData_Pop!$B$1:$AV$269,LookUpData_Pop!BB80,FALSE)/5 -> 26790 | G79: ='III Tool Overview'!$H$10/110 -> 0 | H79: =IF('III Tool Overview'!$H$11="Even distribution",Targeting!C77,IF('III Tool Overview'!$H$11="Targeting to Q1",Targeting!D77,IF('III Tool Overview'!$H$11="Targeting to Q1 & Q2",Targeting!E77,IF('III Tool Overview'!$H$11="Proportionate to need",Targeting!F77)))) -> 1419.144407 | I79: =IF('III Tool Overview'!$H$7="Orkney Health Board",0,IF('III Tool Overview'!$H$7="Shetland Health Board",0,IF('III Tool Overview'!$H$7="Western Isles Health Board",0,IF('III Tool Overview'!$H$7="Orkney Islands Local Authority",0,IF('III Tool Overview'!$H$7="Shetland Islands Local Authority",0,IF('III Tool Overview'!$H$7="Eilean Siar Local Authority",0,new_ci(2,B79,C79,D79,$C$1,G79,1,F79,E79*F79))))))) -> 636.1570524 | J79: =IF('III Tool Overview'!$H$7="Orkney Health Board",0,IF('III Tool Overview'!$H$7="Shetland Health Board",0,IF('III Tool Overview'!$H$7="Western Isles Health Board",0,IF('III Tool Overview'!$H$7="Orkney Islands Local Authority",0,IF('III Tool Overview'!$H$7="Shetland Islands Local Authority",0,IF('III Tool Overview'!$H$7="Eilean Siar Local Authority",0,new_ci(2,B79,C79,D79,$C$1,G79+H79,1,F79,E79*F79))))))) -> 635.547367 | K79: =IF('III Tool Overview'!$H$7="Orkney Health Board",0,IF('III Tool Overview'!$H$7="Shetland Health Board",0,IF('III Tool Overview'!$H$7="Western Isles Health Board",0,IF('III Tool Overview'!$H$7="Orkney Islands Local Authority",0,IF('III Tool Overview'!$H$7="Shetland Islands Local Authority",0,IF('III Tool Overview'!$H$7="Eilean Siar Local Authority",0,new_ci(5,B79,C79,D79,$C$1,G79,1,F79,E79*F79))))))) -> 2672.97201 | L79: =IF('III Tool Overview'!$H$7="Orkney Health Board",0,IF('III Tool Overview'!$H$7="Shetland Health Board",0,IF('III Tool Overview'!$H$7="Western Isles Health Board",0,IF('III Tool Overview'!$H$7="Orkney Islands Local Authority",0,IF('III Tool Overview'!$H$7="Shetland Islands Local Authority",0,IF('III Tool Overview'!$H$7="Eilean Siar Local Authority",0,new_ci(5,B79,C79,D79,$C$1,G79+H79,1,F79,E79*F79))))))) -> 2671.438463 | M79: =IF('III Tool Overview'!$H$7="Orkney Health Board",0,IF('III Tool Overview'!$H$7="Shetland Health Board",0,IF('III Tool Overview'!$H$7="Western Isles Health Board",0,IF('III Tool Overview'!$H$7="Orkney Islands Local Authority",0,IF('III Tool Overview'!$H$7="Shetland Islands Local Authority",0,IF('III Tool Overview'!$H$7="Eilean Siar Local Authority",0,new_ci(10,B79,C79,D79,$C$1,G79,1,F79,E79*F79))))))) -> 6460.65171 | N79: =IF('III Tool Overview'!$H$7="Orkney Health Board",0,IF('III Tool Overview'!$H$7="Shetland Health Board",0,IF('III Tool Overview'!$H$7="Western Isles Health Board",0,IF('III Tool Overview'!$H$7="Orkney Islands Local Authority",0,IF('III Tool Overview'!$H$7="Shetland Islands Local Authority",0,IF('III Tool Overview'!$H$7="Eilean Siar Local Authority",0,new_ci(10,B79,C79,D79,$C$1,G79+H79,1,F79,E79*F79))))))) -> 6458.938085 | O79: =IF('III Tool Overview'!$H$7="Orkney Health Board",0,IF('III Tool Overview'!$H$7="Shetland Health Board",0,IF('III Tool Overview'!$H$7="Western Isles Health Board",0,IF('III Tool Overview'!$H$7="Orkney Islands Local Authority",0,IF('III Tool Overview'!$H$7="Shetland Islands Local Authority",0,IF('III Tool Overview'!$H$7="Eilean Siar Local Authority",0,new_ci(20,B79,C79,D79,$C$1,G79,1,F79,E79*F79))))))) -> 14862.70095 | P79: =IF('III Tool Overview'!$H$7="Orkney Health Board",0,IF('III Tool Overview'!$H$7="Shetland Health Board",0,IF('III Tool Overview'!$H$7="Western Isles Health Board",0,IF('III Tool Overview'!$H$7="Orkney Islands Local Authority",0,IF('III Tool Overview'!$H$7="Shetland Islands Local Authority",0,IF('III Tool Overview'!$H$7="Eilean Siar Local Authority",0,new_ci(20,B79,C79,D79,$C$1,G79+H79,1,F79,E79*F79))))))) -> 14861.71113 | Q79: =IF('III Tool Overview'!$H$7="Orkney Health Board",0,IF('III Tool Overview'!$H$7="Shetland Health Board",0,IF('III Tool Overview'!$H$7="Western Isles Health Board",0,IF('III Tool Overview'!$H$7="Orkney Islands Local Authority",0,IF('III Tool Overview'!$H$7="Shetland Islands Local Authority",0,IF('III Tool Overview'!$H$7="Eilean Siar Local Authority",0,new_yll(2,B79,C79,D79,$C$1,G79,1,F79,E79*F79))))))) -> 23537.81094 | R79: =IF('III Tool Overview'!$H$7="Orkney Health Board",0,IF('III Tool Overview'!$H$7="Shetland Health Board",0,IF('III Tool Overview'!$H$7="Western Isles Health Board",0,IF('III Tool Overview'!$H$7="Orkney Islands Local Authority",0,IF('III Tool Overview'!$H$7="Shetland Islands Local Authority",0,IF('III Tool Overview'!$H$7="Eilean Siar Local Authority",0,new_yll(2,B79,C79,D79,$C$1,G79+H79,1,F79,E79*F79))))))) -> 23515.25258 | S79: 22.55835942 | T79: =IF('III Tool Overview'!$H$7="Orkney Health Board",0,IF('III Tool Overview'!$H$7="Shetland Health Board",0,IF('III Tool Overview'!$H$7="Western Isles Health Board",0,IF('III Tool Overview'!$H$7="Orkney Islands Local Authority",0,IF('III Tool Overview'!$H$7="Shetland Islands Local Authority",0,IF('III Tool Overview'!$H$7="Eilean Siar Local Authority",0,new_yll(5,B79,C79,D79,$C$1,G79,1,F79,E79*F79))))))) -> 94784.11668 | U79: =IF('III Tool Overview'!$H$7="Orkney Health Board",0,IF('III Tool Overview'!$H$7="Shetland Health Board",0,IF('III Tool Overview'!$H$7="Western Isles Health Board",0,IF('III Tool Overview'!$H$7="Orkney Islands Local Authority",0,IF('III Tool Overview'!$H$7="Shetland Islands Local Authority",0,IF('III Tool Overview'!$H$7="Eilean Siar Local Authority",0,new_yll(5,B79,C79,D79,$C$1,G79+H79,1,F79,E79*F79))))))) -> 94728.98901 | V79: 55.12766929 | W79: =IF('III Tool Overview'!$H$7="Orkney Health Board",0,IF('III Tool Overview'!$H$7="Shetland Health Board",0,IF('III Tool Overview'!$H$7="Western Isles Health Board",0,IF('III Tool Overview'!$H$7="Orkney Islands Local Authority",0,IF('III Tool Overview'!$H$7="Shetland Islands Local Authority",0,IF('III Tool Overview'!$H$7="Eilean Siar Local Authority",0,new_yll(10,B79,C79,D79,$C$1,G79,1,F79,E79*F79))))))) -> 212021.2725 | X79: =IF('III Tool Overview'!$H$7="Orkney Health Board",0,IF('III Tool Overview'!$H$7="Shetland Health Board",0,IF('III Tool Overview'!$H$7="Western Isles Health Board",0,IF('III Tool Overview'!$H$7="Orkney Islands Local Authority",0,IF('III Tool Overview'!$H$7="Shetland Islands Local Authority",0,IF('III Tool Overview'!$H$7="Eilean Siar Local Authority",0,new_yll(10,B79,C79,D79,$C$1,G79+H79,1,F79,E79*F79))))))) -> 211960.1905 | Y79: 61.0820228 | Z79: =IF('III Tool Overview'!$H$7="Orkney Health Board",0,IF('III Tool Overview'!$H$7="Shetland Health Board",0,IF('III Tool Overview'!$H$7="Western Isles Health Board",0,IF('III Tool Overview'!$H$7="Orkney Islands Local Authority",0,IF('III Tool Overview'!$H$7="Shetland Islands Local Authority",0,IF('III Tool Overview'!$H$7="Eilean Siar Local Authority",0,new_yll(20,B79,C79,D79,$C$1,G79,1,F79,E79*F79))))))) -> 409137.6228 | AA79: =IF('III Tool Overview'!$H$7="Orkney Health Board",0,IF('III Tool Overview'!$H$7="Shetland Health Board",0,IF('III Tool Overview'!$H$7="Western Isles Health Board",0,IF('III Tool Overview'!$H$7="Orkney Islands Local Authority",0,IF('III Tool Overview'!$H$7="Shetland Islands Local Authority",0,IF('III Tool Overview'!$H$7="Eilean Siar Local Authority",0,new_yll(20,B79,C79,D79,$C$1,G79+H79,1,F79,E79*F79))))))) -> 409093.2442 | AB79: 44.3786086 | AC79: =IF('III Tool Overview'!$H$7="Orkney Health Board",0,IF('III Tool Overview'!$H$7="Shetland Health Board",0,IF('III Tool Overview'!$H$7="Western Isles Health Board",0,IF('III Tool Overview'!$H$7="Orkney Islands Local Authority",0,IF('III Tool Overview'!$H$7="Shetland Islands Local Authority",0,IF('III Tool Overview'!$H$7="Eilean Siar Local Authority",0,hosp_count(2,B79,C79,D79,$C$1,G79,1,F79,E79*F79))))))) -> 12314.33793 | AD79: =IF('III Tool Overview'!$H$7="Orkney Health Board",0,IF('III Tool Overview'!$H$7="Shetland Health Board",0,IF('III Tool Overview'!$H$7="Western Isles Health Board",0,IF('III Tool Overview'!$H$7="Orkney Islands Local Authority",0,IF('III Tool Overview'!$H$7="Shetland Islands Local Authority",0,IF('III Tool Overview'!$H$7="Eilean Siar Local Authority",0,hosp_count(2,B79,C79,D79,$C$1,G79+H79,1,F79,E79*F79))))))) -> 12293.03495 | AE79: 21.30297826 | AF79: =IF('III Tool Overview'!$H$7="Orkney Health Board",0,IF('III Tool Overview'!$H$7="Shetland Health Board",0,IF('III Tool Overview'!$H$7="Western Isles Health Board",0,IF('III Tool Overview'!$H$7="Orkney Islands Local Authority",0,IF('III Tool Overview'!$H$7="Shetland Islands Local Authority",0,IF('III Tool Overview'!$H$7="Eilean Siar Local Authority",0,hosp_count(5,B79,C79,D79,$C$1,G79,1,F79,E79*F79))))))) -> 50111.68658 | AG79: =IF('III Tool Overview'!$H$7="Orkney Health Board",0,IF('III Tool Overview'!$H$7="Shetland Health Board",0,IF('III Tool Overview'!$H$7="Western Isles Health Board",0,IF('III Tool Overview'!$H$7="Orkney Islands Local Authority",0,IF('III Tool Overview'!$H$7="Shetland Islands Local Authority",0,IF('III Tool Overview'!$H$7="Eilean Siar Local Authority",0,hosp_count(5,B79,C79,D79,$C$1,G79+H79,1,F79,E79*F79))))))) -> 50057.5707 | AH79: 54.11588831 | AI79: =IF('III Tool Overview'!$H$7="Orkney Health Board",0,IF('III Tool Overview'!$H$7="Shetland Health Board",0,IF('III Tool Overview'!$H$7="Western Isles Health Board",0,IF('III Tool Overview'!$H$7="Orkney Islands Local Authority",0,IF('III Tool Overview'!$H$7="Shetland Islands Local Authority",0,IF('III Tool Overview'!$H$7="Eilean Siar Local Authority",0,hosp_count(10,B79,C79,D79,$C$1,G79,1,F79,E79*F79))))))) -> 114772.7658 | AJ79: =IF('III Tool Overview'!$H$7="Orkney Health Board",0,IF('III Tool Overview'!$H$7="Shetland Health Board",0,IF('III Tool Overview'!$H$7="Western Isles Health Board",0,IF('III Tool Overview'!$H$7="Orkney Islands Local Authority",0,IF('III Tool Overview'!$H$7="Shetland Islands Local Authority",0,IF('III Tool Overview'!$H$7="Eilean Siar Local Authority",0,hosp_count(10,B79,C79,D79,$C$1,G79+H79,1,F79,E79*F79))))))) -> 114707.7607 | AK79: 65.0050755 | AL79: =IF('III Tool Overview'!$H$7="Orkney Health Board",0,IF('III Tool Overview'!$H$7="Shetland Health Board",0,IF('III Tool Overview'!$H$7="Western Isles Health Board",0,IF('III Tool Overview'!$H$7="Orkney Islands Local Authority",0,IF('III Tool Overview'!$H$7="Shetland Islands Local Authority",0,IF('III Tool Overview'!$H$7="Eilean Siar Local Authority",0,hosp_count(20,B79,C79,D79,$C$1,G79,1,F79,E79*F79))))))) -> 238091.2216 | AM79: =IF('III Tool Overview'!$H$7="Orkney Health Board",0,IF('III Tool Overview'!$H$7="Shetland Health Board",0,IF('III Tool Overview'!$H$7="Western Isles Health Board",0,IF('III Tool Overview'!$H$7="Orkney Islands Local Authority",0,IF('III Tool Overview'!$H$7="Shetland Islands Local Authority",0,IF('III Tool Overview'!$H$7="Eilean Siar Local Authority",0,hosp_count(20,B79,C79,D79,$C$1,G79+H79,1,F79,E79*F79))))))) -> 238034.2684 | AN79: 56.9531935 | AP79: 0.5 | AQ79: 5
A80: Male 65-69 | B80: 67.5 | C80: male | D80: 1 | E80: =HLOOKUP('III Tool Overview'!$H$7,Prevalence!$B$2:$AV$268,Prevalence!AW76,FALSE) -> 0.235247 | F80: =HLOOKUP('III Tool Overview'!$H$7,LookUpData_Pop!$B$1:$AV$269,LookUpData_Pop!BB81,FALSE)/5 -> 21579.2 | G80: ='III Tool Overview'!$H$10/110 -> 0 | H80: =IF('III Tool Overview'!$H$11="Even distribution",Targeting!C78,IF('III Tool Overview'!$H$11="Targeting to Q1",Targeting!D78,IF('III Tool Overview'!$H$11="Targeting to Q1 & Q2",Targeting!E78,IF('III Tool Overview'!$H$11="Proportionate to need",Targeting!F78)))) -> 1038.039838 | I80: =IF('III Tool Overview'!$H$7="Orkney Health Board",0,IF('III Tool Overview'!$H$7="Shetland Health Board",0,IF('III Tool Overview'!$H$7="Western Isles Health Board",0,IF('III Tool Overview'!$H$7="Orkney Islands Local Authority",0,IF('III Tool Overview'!$H$7="Shetland Islands Local Authority",0,IF('III Tool Overview'!$H$7="Eilean Siar Local Authority",0,new_ci(2,B80,C80,D80,$C$1,G80,1,F80,E80*F80))))))) -> 786.0276989 | J80: =IF('III Tool Overview'!$H$7="Orkney Health Board",0,IF('III Tool Overview'!$H$7="Shetland Health Board",0,IF('III Tool Overview'!$H$7="Western Isles Health Board",0,IF('III Tool Overview'!$H$7="Orkney Islands Local Authority",0,IF('III Tool Overview'!$H$7="Shetland Islands Local Authority",0,IF('III Tool Overview'!$H$7="Eilean Siar Local Authority",0,new_ci(2,B80,C80,D80,$C$1,G80+H80,1,F80,E80*F80))))))) -> 785.3436364 | K80: =IF('III Tool Overview'!$H$7="Orkney Health Board",0,IF('III Tool Overview'!$H$7="Shetland Health Board",0,IF('III Tool Overview'!$H$7="Western Isles Health Board",0,IF('III Tool Overview'!$H$7="Orkney Islands Local Authority",0,IF('III Tool Overview'!$H$7="Shetland Islands Local Authority",0,IF('III Tool Overview'!$H$7="Eilean Siar Local Authority",0,new_ci(5,B80,C80,D80,$C$1,G80,1,F80,E80*F80))))))) -> 3232.061268 | L80: =IF('III Tool Overview'!$H$7="Orkney Health Board",0,IF('III Tool Overview'!$H$7="Shetland Health Board",0,IF('III Tool Overview'!$H$7="Western Isles Health Board",0,IF('III Tool Overview'!$H$7="Orkney Islands Local Authority",0,IF('III Tool Overview'!$H$7="Shetland Islands Local Authority",0,IF('III Tool Overview'!$H$7="Eilean Siar Local Authority",0,new_ci(5,B80,C80,D80,$C$1,G80+H80,1,F80,E80*F80))))))) -> 3230.429042 | M80: =IF('III Tool Overview'!$H$7="Orkney Health Board",0,IF('III Tool Overview'!$H$7="Shetland Health Board",0,IF('III Tool Overview'!$H$7="Western Isles Health Board",0,IF('III Tool Overview'!$H$7="Orkney Islands Local Authority",0,IF('III Tool Overview'!$H$7="Shetland Islands Local Authority",0,IF('III Tool Overview'!$H$7="Eilean Siar Local Authority",0,new_ci(10,B80,C80,D80,$C$1,G80,1,F80,E80*F80))))))) -> 7483.169801 | N80: =IF('III Tool Overview'!$H$7="Orkney Health Board",0,IF('III Tool Overview'!$H$7="Shetland Health Board",0,IF('III Tool Overview'!$H$7="Western Isles Health Board",0,IF('III Tool Overview'!$H$7="Orkney Islands Local Authority",0,IF('III Tool Overview'!$H$7="Shetland Islands Local Authority",0,IF('III Tool Overview'!$H$7="Eilean Siar Local Authority",0,new_ci(10,B80,C80,D80,$C$1,G80+H80,1,F80,E80*F80))))))) -> 7481.538561 | O80: =IF('III Tool Overview'!$H$7="Orkney Health Board",0,IF('III Tool Overview'!$H$7="Shetland Health Board",0,IF('III Tool Overview'!$H$7="Western Isles Health Board",0,IF('III Tool Overview'!$H$7="Orkney Islands Local Authority",0,IF('III Tool Overview'!$H$7="Shetland Islands Local Authority",0,IF('III Tool Overview'!$H$7="Eilean Siar Local Authority",0,new_ci(20,B80,C80,D80,$C$1,G80,1,F80,E80*F80))))))) -> 15380.18178 | P80: =IF('III Tool Overview'!$H$7="Orkney Health Board",0,IF('III Tool Overview'!$H$7="Shetland Health Board",0,IF('III Tool Overview'!$H$7="Western Isles Health Board",0,IF('III Tool Overview'!$H$7="Orkney Islands Local Authority",0,IF('III Tool Overview'!$H$7="Shetland Islands Local Authority",0,IF('III Tool Overview'!$H$7="Eilean Siar Local Authority",0,new_ci(20,B80,C80,D80,$C$1,G80+H80,1,F80,E80*F80))))))) -> 15379.51783 | Q80: =IF('III Tool Overview'!$H$7="Orkney Health Board",0,IF('III Tool Overview'!$H$7="Shetland Health Board",0,IF('III Tool Overview'!$H$7="Western Isles Health Board",0,IF('III Tool Overview'!$H$7="Orkney Islands Local Authority",0,IF('III Tool Overview'!$H$7="Shetland Islands Local Authority",0,IF('III Tool Overview'!$H$7="Eilean Siar Local Authority",0,new_yll(2,B80,C80,D80,$C$1,G80,1,F80,E80*F80))))))) -> 24366.85867 | R80: =IF('III Tool Overview'!$H$7="Orkney Health Board",0,IF('III Tool Overview'!$H$7="Shetland Health Board",0,IF('III Tool Overview'!$H$7="Western Isles Health Board",0,IF('III Tool Overview'!$H$7="Orkney Islands Local Authority",0,IF('III Tool Overview'!$H$7="Shetland Islands Local Authority",0,IF('III Tool Overview'!$H$7="Eilean Siar Local Authority",0,new_yll(2,B80,C80,D80,$C$1,G80+H80,1,F80,E80*F80))))))) -> 24345.65273 | S80: 21.20594013 | T80: =IF('III Tool Overview'!$H$7="Orkney Health Board",0,IF('III Tool Overview'!$H$7="Shetland Health Board",0,IF('III Tool Overview'!$H$7="Western Isles Health Board",0,IF('III Tool Overview'!$H$7="Orkney Islands Local Authority",0,IF('III Tool Overview'!$H$7="Shetland Islands Local Authority",0,IF('III Tool Overview'!$H$7="Eilean Siar Local Authority",0,new_yll(5,B80,C80,D80,$C$1,G80,1,F80,E80*F80))))))) -> 95275.26319 | U80: =IF('III Tool Overview'!$H$7="Orkney Health Board",0,IF('III Tool Overview'!$H$7="Shetland Health Board",0,IF('III Tool Overview'!$H$7="Western Isles Health Board",0,IF('III Tool Overview'!$H$7="Orkney Islands Local Authority",0,IF('III Tool Overview'!$H$7="Shetland Islands Local Authority",0,IF('III Tool Overview'!$H$7="Eilean Siar Local Authority",0,new_yll(5,B80,C80,D80,$C$1,G80+H80,1,F80,E80*F80))))))) -> 95226.27884 | V80: 48.98435024 | W80: =IF('III Tool Overview'!$H$7="Orkney Health Board",0,IF('III Tool Overview'!$H$7="Shetland Health Board",0,IF('III Tool Overview'!$H$7="Western Isles Health Board",0,IF('III Tool Overview'!$H$7="Orkney Islands Local Authority",0,IF('III Tool Overview'!$H$7="Shetland Islands Local Authority",0,IF('III Tool Overview'!$H$7="Eilean Siar Local Authority",0,new_yll(10,B80,C80,D80,$C$1,G80,1,F80,E80*F80))))))) -> 201508.366 | X80: =IF('III Tool Overview'!$H$7="Orkney Health Board",0,IF('III Tool Overview'!$H$7="Shetland Health Board",0,IF('III Tool Overview'!$H$7="Western Isles Health Board",0,IF('III Tool Overview'!$H$7="Orkney Islands Local Authority",0,IF('III Tool Overview'!$H$7="Shetland Islands Local Authority",0,IF('III Tool Overview'!$H$7="Eilean Siar Local Authority",0,new_yll(10,B80,C80,D80,$C$1,G80+H80,1,F80,E80*F80))))))) -> 201459.0002 | Y80: 49.36576625 | Z80: =IF('III Tool Overview'!$H$7="Orkney Health Board",0,IF('III Tool Overview'!$H$7="Shetland Health Board",0,IF('III Tool Overview'!$H$7="Western Isles Health Board",0,IF('III Tool Overview'!$H$7="Orkney Islands Local Authority",0,IF('III Tool Overview'!$H$7="Shetland Islands Local Authority",0,IF('III Tool Overview'!$H$7="Eilean Siar Local Authority",0,new_yll(20,B80,C80,D80,$C$1,G80,1,F80,E80*F80))))))) -> 341245.977 | AA80: =IF('III Tool Overview'!$H$7="Orkney Health Board",0,IF('III Tool Overview'!$H$7="Shetland Health Board",0,IF('III Tool Overview'!$H$7="Western Isles Health Board",0,IF('III Tool Overview'!$H$7="Orkney Islands Local Authority",0,IF('III Tool Overview'!$H$7="Shetland Islands Local Authority",0,IF('III Tool Overview'!$H$7="Eilean Siar Local Authority",0,new_yll(20,B80,C80,D80,$C$1,G80+H80,1,F80,E80*F80))))))) -> 341213.5447 | AB80: 32.43233211 | AC80: =IF('III Tool Overview'!$H$7="Orkney Health Board",0,IF('III Tool Overview'!$H$7="Shetland Health Board",0,IF('III Tool Overview'!$H$7="Western Isles Health Board",0,IF('III Tool Overview'!$H$7="Orkney Islands Local Authority",0,IF('III Tool Overview'!$H$7="Shetland Islands Local Authority",0,IF('III Tool Overview'!$H$7="Eilean Siar Local Authority",0,hosp_count(2,B80,C80,D80,$C$1,G80,1,F80,E80*F80))))))) -> 12229.09474 | AD80: =IF('III Tool Overview'!$H$7="Orkney Health Board",0,IF('III Tool Overview'!$H$7="Shetland Health Board",0,IF('III Tool Overview'!$H$7="Western Isles Health Board",0,IF('III Tool Overview'!$H$7="Orkney Islands Local Authority",0,IF('III Tool Overview'!$H$7="Shetland Islands Local Authority",0,IF('III Tool Overview'!$H$7="Eilean Siar Local Authority",0,hosp_count(2,B80,C80,D80,$C$1,G80+H80,1,F80,E80*F80))))))) -> 12209.81131 | AE80: 19.28342345 | AF80: =IF('III Tool Overview'!$H$7="Orkney Health Board",0,IF('III Tool Overview'!$H$7="Shetland Health Board",0,IF('III Tool Overview'!$H$7="Western Isles Health Board",0,IF('III Tool Overview'!$H$7="Orkney Islands Local Authority",0,IF('III Tool Overview'!$H$7="Shetland Islands Local Authority",0,IF('III Tool Overview'!$H$7="Eilean Siar Local Authority",0,hosp_count(5,B80,C80,D80,$C$1,G80,1,F80,E80*F80))))))) -> 48753.2011 | AG80: =IF('III Tool Overview'!$H$7="Orkney Health Board",0,IF('III Tool Overview'!$H$7="Shetland Health Board",0,IF('III Tool Overview'!$H$7="Western Isles Health Board",0,IF('III Tool Overview'!$H$7="Orkney Islands Local Authority",0,IF('III Tool Overview'!$H$7="Shetland Islands Local Authority",0,IF('III Tool Overview'!$H$7="Eilean Siar Local Authority",0,hosp_count(5,B80,C80,D80,$C$1,G80+H80,1,F80,E80*F80))))))) -> 48705.81466 | AH80: 47.38644089 | AI80: =IF('III Tool Overview'!$H$7="Orkney Health Board",0,IF('III Tool Overview'!$H$7="Shetland Health Board",0,IF('III Tool Overview'!$H$7="Western Isles Health Board",0,IF('III Tool Overview'!$H$7="Orkney Islands Local Authority",0,IF('III Tool Overview'!$H$7="Shetland Islands Local Authority",0,IF('III Tool Overview'!$H$7="Eilean Siar Local Authority",0,hosp_count(10,B80,C80,D80,$C$1,G80,1,F80,E80*F80))))))) -> 107310.8866 | AJ80: =IF('III Tool Overview'!$H$7="Orkney Health Board",0,IF('III Tool Overview'!$H$7="Shetland Health Board",0,IF('III Tool Overview'!$H$7="Western Isles Health Board",0,IF('III Tool Overview'!$H$7="Orkney Islands Local Authority",0,IF('III Tool Overview'!$H$7="Shetland Islands Local Authority",0,IF('III Tool Overview'!$H$7="Eilean Siar Local Authority",0,hosp_count(10,B80,C80,D80,$C$1,G80+H80,1,F80,E80*F80))))))) -> 107256.7995 | AK80: 54.08711764 | AL80: =IF('III Tool Overview'!$H$7="Orkney Health Board",0,IF('III Tool Overview'!$H$7="Shetland Health Board",0,IF('III Tool Overview'!$H$7="Western Isles Health Board",0,IF('III Tool Overview'!$H$7="Orkney Islands Local Authority",0,IF('III Tool Overview'!$H$7="Shetland Islands Local Authority",0,IF('III Tool Overview'!$H$7="Eilean Siar Local Authority",0,hosp_count(20,B80,C80,D80,$C$1,G80,1,F80,E80*F80))))))) -> 201719.9719 | AM80: =IF('III Tool Overview'!$H$7="Orkney Health Board",0,IF('III Tool Overview'!$H$7="Shetland Health Board",0,IF('III Tool Overview'!$H$7="Western Isles Health Board",0,IF('III Tool Overview'!$H$7="Orkney Islands Local Authority",0,IF('III Tool Overview'!$H$7="Shetland Islands Local Authority",0,IF('III Tool Overview'!$H$7="Eilean Siar Local Authority",0,hosp_count(20,B80,C80,D80,$C$1,G80+H80,1,F80,E80*F80))))))) -> 201675.2387 | AN80: 44.73314746 | AP80: 0.5 | AQ80: 5
A81: Male 70-74 | B81: 72.5 | C81: male | D81: 1 | E81: =HLOOKUP('III Tool Overview'!$H$7,Prevalence!$B$2:$AV$268,Prevalence!AW77,FALSE) -> 0.235247 | F81: =HLOOKUP('III Tool Overview'!$H$7,LookUpData_Pop!$B$1:$AV$269,LookUpData_Pop!BB82,FALSE)/5 -> 18460.6 | G81: ='III Tool Overview'!$H$10/110 -> 0 | H81: =IF('III Tool Overview'!$H$11="Even distribution",Targeting!C79,IF('III Tool Overview'!$H$11="Targeting to Q1",Targeting!D79,IF('III Tool Overview'!$H$11="Targeting to Q1 & Q2",Targeting!E79,IF('III Tool Overview'!$H$11="Proportionate to need",Targeting!F79)))) -> 812.3688251 | I81: =IF('III Tool Overview'!$H$7="Orkney Health Board",0,IF('III Tool Overview'!$H$7="Shetland Health Board",0,IF('III Tool Overview'!$H$7="Western Isles Health Board",0,IF('III Tool Overview'!$H$7="Orkney Islands Local Authority",0,IF('III Tool Overview'!$H$7="Shetland Islands Local Authority",0,IF('III Tool Overview'!$H$7="Eilean Siar Local Authority",0,new_ci(2,B81,C81,D81,$C$1,G81,1,F81,E81*F81))))))) -> 892.7046397 | J81: =IF('III Tool Overview'!$H$7="Orkney Health Board",0,IF('III Tool Overview'!$H$7="Shetland Health Board",0,IF('III Tool Overview'!$H$7="Western Isles Health Board",0,IF('III Tool Overview'!$H$7="Orkney Islands Local Authority",0,IF('III Tool Overview'!$H$7="Shetland Islands Local Authority",0,IF('III Tool Overview'!$H$7="Eilean Siar Local Authority",0,new_ci(2,B81,C81,D81,$C$1,G81+H81,1,F81,E81*F81))))))) -> 892.0001364 | K81: =IF('III Tool Overview'!$H$7="Orkney Health Board",0,IF('III Tool Overview'!$H$7="Shetland Health Board",0,IF('III Tool Overview'!$H$7="Western Isles Health Board",0,IF('III Tool Overview'!$H$7="Orkney Islands Local Authority",0,IF('III Tool Overview'!$H$7="Shetland Islands Local Authority",0,IF('III Tool Overview'!$H$7="Eilean Siar Local Authority",0,new_ci(5,B81,C81,D81,$C$1,G81,1,F81,E81*F81))))))) -> 3596.638036 | L81: =IF('III Tool Overview'!$H$7="Orkney Health Board",0,IF('III Tool Overview'!$H$7="Shetland Health Board",0,IF('III Tool Overview'!$H$7="Western Isles Health Board",0,IF('III Tool Overview'!$H$7="Orkney Islands Local Authority",0,IF('III Tool Overview'!$H$7="Shetland Islands Local Authority",0,IF('III Tool Overview'!$H$7="Eilean Siar Local Authority",0,new_ci(5,B81,C81,D81,$C$1,G81+H81,1,F81,E81*F81))))))) -> 3595.038176 | M81: =IF('III Tool Overview'!$H$7="Orkney Health Board",0,IF('III Tool Overview'!$H$7="Shetland Health Board",0,IF('III Tool Overview'!$H$7="Western Isles Health Board",0,IF('III Tool Overview'!$H$7="Orkney Islands Local Authority",0,IF('III Tool Overview'!$H$7="Shetland Islands Local Authority",0,IF('III Tool Overview'!$H$7="Eilean Siar Local Authority",0,new_ci(10,B81,C81,D81,$C$1,G81,1,F81,E81*F81))))))) -> 8004.789198 | N81: =IF('III Tool Overview'!$H$7="Orkney Health Board",0,IF('III Tool Overview'!$H$7="Shetland Health Board",0,IF('III Tool Overview'!$H$7="Western Isles Health Board",0,IF('III Tool Overview'!$H$7="Orkney Islands Local Authority",0,IF('III Tool Overview'!$H$7="Shetland Islands Local Authority",0,IF('III Tool Overview'!$H$7="Eilean Siar Local Authority",0,new_ci(10,B81,C81,D81,$C$1,G81+H81,1,F81,E81*F81))))))) -> 8003.349254 | O81: =IF('III Tool Overview'!$H$7="Orkney Health Board",0,IF('III Tool Overview'!$H$7="Shetland Health Board",0,IF('III Tool Overview'!$H$7="Western Isles Health Board",0,IF('III Tool Overview'!$H$7="Orkney Islands Local Authority",0,IF('III Tool Overview'!$H$7="Shetland Islands Local Authority",0,IF('III Tool Overview'!$H$7="Eilean Siar Local Authority",0,new_ci(20,B81,C81,D81,$C$1,G81,1,F81,E81*F81))))))) -> 14961.75875 | P81: =IF('III Tool Overview'!$H$7="Orkney Health Board",0,IF('III Tool Overview'!$H$7="Shetland Health Board",0,IF('III Tool Overview'!$H$7="Western Isles Health Board",0,IF('III Tool Overview'!$H$7="Orkney Islands Local Authority",0,IF('III Tool Overview'!$H$7="Shetland Islands Local Authority",0,IF('III Tool Overview'!$H$7="Eilean Siar Local Authority",0,new_ci(20,B81,C81,D81,$C$1,G81+H81,1,F81,E81*F81))))))) -> 14961.3367 | Q81: =IF('III Tool Overview'!$H$7="Orkney Health Board",0,IF('III Tool Overview'!$H$7="Shetland Health Board",0,IF('III Tool Overview'!$H$7="Western Isles Health Board",0,IF('III Tool Overview'!$H$7="Orkney Islands Local Authority",0,IF('III Tool Overview'!$H$7="Shetland Islands Local Authority",0,IF('III Tool Overview'!$H$7="Eilean Siar Local Authority",0,new_yll(2,B81,C81,D81,$C$1,G81,1,F81,E81*F81))))))) -> 24103.02527 | R81: =IF('III Tool Overview'!$H$7="Orkney Health Board",0,IF('III Tool Overview'!$H$7="Shetland Health Board",0,IF('III Tool Overview'!$H$7="Western Isles Health Board",0,IF('III Tool Overview'!$H$7="Orkney Islands Local Authority",0,IF('III Tool Overview'!$H$7="Shetland Islands Local Authority",0,IF('III Tool Overview'!$H$7="Eilean Siar Local Authority",0,new_yll(2,B81,C81,D81,$C$1,G81+H81,1,F81,E81*F81))))))) -> 24084.00368 | S81: 19.02158781 | T81: =IF('III Tool Overview'!$H$7="Orkney Health Board",0,IF('III Tool Overview'!$H$7="Shetland Health Board",0,IF('III Tool Overview'!$H$7="Western Isles Health Board",0,IF('III Tool Overview'!$H$7="Orkney Islands Local Authority",0,IF('III Tool Overview'!$H$7="Shetland Islands Local Authority",0,IF('III Tool Overview'!$H$7="Eilean Siar Local Authority",0,new_yll(5,B81,C81,D81,$C$1,G81,1,F81,E81*F81))))))) -> 91697.4331 | U81: =IF('III Tool Overview'!$H$7="Orkney Health Board",0,IF('III Tool Overview'!$H$7="Shetland Health Board",0,IF('III Tool Overview'!$H$7="Western Isles Health Board",0,IF('III Tool Overview'!$H$7="Orkney Islands Local Authority",0,IF('III Tool Overview'!$H$7="Shetland Islands Local Authority",0,IF('III Tool Overview'!$H$7="Eilean Siar Local Authority",0,new_yll(5,B81,C81,D81,$C$1,G81+H81,1,F81,E81*F81))))))) -> 91655.72159 | V81: 41.71150829 | W81: =IF('III Tool Overview'!$H$7="Orkney Health Board",0,IF('III Tool Overview'!$H$7="Shetland Health Board",0,IF('III Tool Overview'!$H$7="Western Isles Health Board",0,IF('III Tool Overview'!$H$7="Orkney Islands Local Authority",0,IF('III Tool Overview'!$H$7="Shetland Islands Local Authority",0,IF('III Tool Overview'!$H$7="Eilean Siar Local Authority",0,new_yll(10,B81,C81,D81,$C$1,G81,1,F81,E81*F81))))))) -> 184378.625 | X81: =IF('III Tool Overview'!$H$7="Orkney Health Board",0,IF('III Tool Overview'!$H$7="Shetland Health Board",0,IF('III Tool Overview'!$H$7="Western Isles Health Board",0,IF('III Tool Overview'!$H$7="Orkney Islands Local Authority",0,IF('III Tool Overview'!$H$7="Shetland Islands Local Authority",0,IF('III Tool Overview'!$H$7="Eilean Siar Local Authority",0,new_yll(10,B81,C81,D81,$C$1,G81+H81,1,F81,E81*F81))))))) -> 184339.8798 | Y81: 38.74517794 | Z81: =IF('III Tool Overview'!$H$7="Orkney Health Board",0,IF('III Tool Overview'!$H$7="Shetland Health Board",0,IF('III Tool Overview'!$H$7="Western Isles Health Board",0,IF('III Tool Overview'!$H$7="Orkney Islands Local Authority",0,IF('III Tool Overview'!$H$7="Shetland Islands Local Authority",0,IF('III Tool Overview'!$H$7="Eilean Siar Local Authority",0,new_yll(20,B81,C81,D81,$C$1,G81,1,F81,E81*F81))))))) -> 281176.358 | AA81: =IF('III Tool Overview'!$H$7="Orkney Health Board",0,IF('III Tool Overview'!$H$7="Shetland Health Board",0,IF('III Tool Overview'!$H$7="Western Isles Health Board",0,IF('III Tool Overview'!$H$7="Orkney Islands Local Authority",0,IF('III Tool Overview'!$H$7="Shetland Islands Local Authority",0,IF('III Tool Overview'!$H$7="Eilean Siar Local Authority",0,new_yll(20,B81,C81,D81,$C$1,G81+H81,1,F81,E81*F81))))))) -> 281151.687 | AB81: 24.6709857 | AC81: =IF('III Tool Overview'!$H$7="Orkney Health Board",0,IF('III Tool Overview'!$H$7="Shetland Health Board",0,IF('III Tool Overview'!$H$7="Western Isles Health Board",0,IF('III Tool Overview'!$H$7="Orkney Islands Local Authority",0,IF('III Tool Overview'!$H$7="Shetland Islands Local Authority",0,IF('III Tool Overview'!$H$7="Eilean Siar Local Authority",0,hosp_count(2,B81,C81,D81,$C$1,G81,1,F81,E81*F81))))))) -> 12028.69533 | AD81: =IF('III Tool Overview'!$H$7="Orkney Health Board",0,IF('III Tool Overview'!$H$7="Shetland Health Board",0,IF('III Tool Overview'!$H$7="Western Isles Health Board",0,IF('III Tool Overview'!$H$7="Orkney Islands Local Authority",0,IF('III Tool Overview'!$H$7="Shetland Islands Local Authority",0,IF('III Tool Overview'!$H$7="Eilean Siar Local Authority",0,hosp_count(2,B81,C81,D81,$C$1,G81+H81,1,F81,E81*F81))))))) -> 12011.3511 | AE81: 17.34423824 | AF81: =IF('III Tool Overview'!$H$7="Orkney Health Board",0,IF('III Tool Overview'!$H$7="Shetland Health Board",0,IF('III Tool Overview'!$H$7="Western Isles Health Board",0,IF('III Tool Overview'!$H$7="Orkney Islands Local Authority",0,IF('III Tool Overview'!$H$7="Shetland Islands Local Authority",0,IF('III Tool Overview'!$H$7="Eilean Siar Local Authority",0,hosp_count(5,B81,C81,D81,$C$1,G81,1,F81,E81*F81))))))) -> 47034.85868 | AG81: =IF('III Tool Overview'!$H$7="Orkney Health Board",0,IF('III Tool Overview'!$H$7="Shetland Health Board",0,IF('III Tool Overview'!$H$7="Western Isles Health Board",0,IF('III Tool Overview'!$H$7="Orkney Islands Local Authority",0,IF('III Tool Overview'!$H$7="Shetland Islands Local Authority",0,IF('III Tool Overview'!$H$7="Eilean Siar Local Authority",0,hosp_count(5,B81,C81,D81,$C$1,G81+H81,1,F81,E81*F81))))))) -> 46993.51814 | AH81: 41.3405361 | AI81: =IF('III Tool Overview'!$H$7="Orkney Health Board",0,IF('III Tool Overview'!$H$7="Shetland Health Board",0,IF('III Tool Overview'!$H$7="Western Isles Health Board",0,IF('III Tool Overview'!$H$7="Orkney Islands Local Authority",0,IF('III Tool Overview'!$H$7="Shetland Islands Local Authority",0,IF('III Tool Overview'!$H$7="Eilean Siar Local Authority",0,hosp_count(10,B81,C81,D81,$C$1,G81,1,F81,E81*F81))))))) -> 99820.32921 | AJ81: =IF('III Tool Overview'!$H$7="Orkney Health Board",0,IF('III Tool Overview'!$H$7="Shetland Health Board",0,IF('III Tool Overview'!$H$7="Western Isles Health Board",0,IF('III Tool Overview'!$H$7="Orkney Islands Local Authority",0,IF('III Tool Overview'!$H$7="Shetland Islands Local Authority",0,IF('III Tool Overview'!$H$7="Eilean Siar Local Authority",0,hosp_count(10,B81,C81,D81,$C$1,G81+H81,1,F81,E81*F81))))))) -> 99775.15997 | AK81: 45.16923773 | AL81: =IF('III Tool Overview'!$H$7="Orkney Health Board",0,IF('III Tool Overview'!$H$7="Shetland Health Board",0,IF('III Tool Overview'!$H$7="Western Isles Health Board",0,IF('III Tool Overview'!$H$7="Orkney Islands Local Authority",0,IF('III Tool Overview'!$H$7="Shetland Islands Local Authority",0,IF('III Tool Overview'!$H$7="Eilean Siar Local Authority",0,hosp_count(20,B81,C81,D81,$C$1,G81,1,F81,E81*F81))))))) -> 172743.7104 | AM81: =IF('III Tool Overview'!$H$7="Orkney Health Board",0,IF('III Tool Overview'!$H$7="Shetland Health Board",0,IF('III Tool Overview'!$H$7="Western Isles Health Board",0,IF('III Tool Overview'!$H$7="Orkney Islands Local Authority",0,IF('III Tool Overview'!$H$7="Shetland Islands Local Authority",0,IF('III Tool Overview'!$H$7="Eilean Siar Local Authority",0,hosp_count(20,B81,C81,D81,$C$1,G81+H81,1,F81,E81*F81))))))) -> 172707.4236 | AN81: 36.28675664 | AP81: 0.5 | AQ81: 5
A82: Male 75-79 | B82: 77.5 | C82: male | D82: 1 | E82: =HLOOKUP('III Tool Overview'!$H$7,Prevalence!$B$2:$AV$268,Prevalence!AW78,FALSE) -> 0.081797 | F82: =HLOOKUP('III Tool Overview'!$H$7,LookUpData_Pop!$B$1:$AV$269,LookUpData_Pop!BB83,FALSE)/5 -> 13736.4 | G82: ='III Tool Overview'!$H$10/110 -> 0 | H82: =IF('III Tool Overview'!$H$11="Even distribution",Targeting!C80,IF('III Tool Overview'!$H$11="Targeting to Q1",Targeting!D80,IF('III Tool Overview'!$H$11="Targeting to Q1 & Q2",Targeting!E80,IF('III Tool Overview'!$H$11="Proportionate to need",Targeting!F80)))) -> 213.1154051 | I82: =IF('III Tool Overview'!$H$7="Orkney Health Board",0,IF('III Tool Overview'!$H$7="Shetland Health Board",0,IF('III Tool Overview'!$H$7="Western Isles Health Board",0,IF('III Tool Overview'!$H$7="Orkney Islands Local Authority",0,IF('III Tool Overview'!$H$7="Shetland Islands Local Authority",0,IF('III Tool Overview'!$H$7="Eilean Siar Local Authority",0,new_ci(2,B82,C82,D82,$C$1,G82,1,F82,E82*F82))))))) -> 1012.119839 | J82: =IF('III Tool Overview'!$H$7="Orkney Health Board",0,IF('III Tool Overview'!$H$7="Shetland Health Board",0,IF('III Tool Overview'!$H$7="Western Isles Health Board",0,IF('III Tool Overview'!$H$7="Orkney Islands Local Authority",0,IF('III Tool Overview'!$H$7="Shetland Islands Local Authority",0,IF('III Tool Overview'!$H$7="Eilean Siar Local Authority",0,new_ci(2,B82,C82,D82,$C$1,G82+H82,1,F82,E82*F82))))))) -> 1011.833944 | K82: =IF('III Tool Overview'!$H$7="Orkney Health Board",0,IF('III Tool Overview'!$H$7="Shetland Health Board",0,IF('III Tool Overview'!$H$7="Western Isles Health Board",0,IF('III Tool Overview'!$H$7="Orkney Islands Local Authority",0,IF('III Tool Overview'!$H$7="Shetland Islands Local Authority",0,IF('III Tool Overview'!$H$7="Eilean Siar Local Authority",0,new_ci(5,B82,C82,D82,$C$1,G82,1,F82,E82*F82))))))) -> 3907.34425 | L82: =IF('III Tool Overview'!$H$7="Orkney Health Board",0,IF('III Tool Overview'!$H$7="Shetland Health Board",0,IF('III Tool Overview'!$H$7="Western Isles Health Board",0,IF('III Tool Overview'!$H$7="Orkney Islands Local Authority",0,IF('III Tool Overview'!$H$7="Shetland Islands Local Authority",0,IF('III Tool Overview'!$H$7="Eilean Siar Local Authority",0,new_ci(5,B82,C82,D82,$C$1,G82+H82,1,F82,E82*F82))))))) -> 3906.767542 | M82: =IF('III Tool Overview'!$H$7="Orkney Health Board",0,IF('III Tool Overview'!$H$7="Shetland Health Board",0,IF('III Tool Overview'!$H$7="Western Isles Health Board",0,IF('III Tool Overview'!$H$7="Orkney Islands Local Authority",0,IF('III Tool Overview'!$H$7="Shetland Islands Local Authority",0,IF('III Tool Overview'!$H$7="Eilean Siar Local Authority",0,new_ci(10,B82,C82,D82,$C$1,G82,1,F82,E82*F82))))))) -> 8030.617991 | N82: =IF('III Tool Overview'!$H$7="Orkney Health Board",0,IF('III Tool Overview'!$H$7="Shetland Health Board",0,IF('III Tool Overview'!$H$7="Western Isles Health Board",0,IF('III Tool Overview'!$H$7="Orkney Islands Local Authority",0,IF('III Tool Overview'!$H$7="Shetland Islands Local Authority",0,IF('III Tool Overview'!$H$7="Eilean Siar Local Authority",0,new_ci(10,B82,C82,D82,$C$1,G82+H82,1,F82,E82*F82))))))) -> 8030.21404 | O82: =IF('III Tool Overview'!$H$7="Orkney Health Board",0,IF('III Tool Overview'!$H$7="Shetland Health Board",0,IF('III Tool Overview'!$H$7="Western Isles Health Board",0,IF('III Tool Overview'!$H$7="Orkney Islands Local Authority",0,IF('III Tool Overview'!$H$7="Shetland Islands Local Authority",0,IF('III Tool Overview'!$H$7="Eilean Siar Local Authority",0,new_ci(20,B82,C82,D82,$C$1,G82,1,F82,E82*F82))))))) -> 12690.9342 | P82: =IF('III Tool Overview'!$H$7="Orkney Health Board",0,IF('III Tool Overview'!$H$7="Shetland Health Board",0,IF('III Tool Overview'!$H$7="Western Isles Health Board",0,IF('III Tool Overview'!$H$7="Orkney Islands Local Authority",0,IF('III Tool Overview'!$H$7="Shetland Islands Local Authority",0,IF('III Tool Overview'!$H$7="Eilean Siar Local Authority",0,new_ci(20,B82,C82,D82,$C$1,G82+H82,1,F82,E82*F82))))))) -> 12690.88026 | Q82: =IF('III Tool Overview'!$H$7="Orkney Health Board",0,IF('III Tool Overview'!$H$7="Shetland Health Board",0,IF('III Tool Overview'!$H$7="Western Isles Health Board",0,IF('III Tool Overview'!$H$7="Orkney Islands Local Authority",0,IF('III Tool Overview'!$H$7="Shetland Islands Local Authority",0,IF('III Tool Overview'!$H$7="Eilean Siar Local Authority",0,new_yll(2,B82,C82,D82,$C$1,G82,1,F82,E82*F82))))))) -> 21254.51662 | R82: =IF('III Tool Overview'!$H$7="Orkney Health Board",0,IF('III Tool Overview'!$H$7="Shetland Health Board",0,IF('III Tool Overview'!$H$7="Western Isles Health Board",0,IF('III Tool Overview'!$H$7="Orkney Islands Local Authority",0,IF('III Tool Overview'!$H$7="Shetland Islands Local Authority",0,IF('III Tool Overview'!$H$7="Eilean Siar Local Authority",0,new_yll(2,B82,C82,D82,$C$1,G82+H82,1,F82,E82*F82))))))) -> 21248.51282 | S82: 6.00379824 | T82: =IF('III Tool Overview'!$H$7="Orkney Health Board",0,IF('III Tool Overview'!$H$7="Shetland Health Board",0,IF('III Tool Overview'!$H$7="Western Isles Health Board",0,IF('III Tool Overview'!$H$7="Orkney Islands Local Authority",0,IF('III Tool Overview'!$H$7="Shetland Islands Local Authority",0,IF('III Tool Overview'!$H$7="Eilean Siar Local Authority",0,new_yll(5,B82,C82,D82,$C$1,G82,1,F82,E82*F82))))))) -> 76317.69131 | U82: =IF('III Tool Overview'!$H$7="Orkney Health Board",0,IF('III Tool Overview'!$H$7="Shetland Health Board",0,IF('III Tool Overview'!$H$7="Western Isles Health Board",0,IF('III Tool Overview'!$H$7="Orkney Islands Local Authority",0,IF('III Tool Overview'!$H$7="Shetland Islands Local Authority",0,IF('III Tool Overview'!$H$7="Eilean Siar Local Authority",0,new_yll(5,B82,C82,D82,$C$1,G82+H82,1,F82,E82*F82))))))) -> 76306.02584 | V82: 11.66546305 | W82: =IF('III Tool Overview'!$H$7="Orkney Health Board",0,IF('III Tool Overview'!$H$7="Shetland Health Board",0,IF('III Tool Overview'!$H$7="Western Isles Health Board",0,IF('III Tool Overview'!$H$7="Orkney Islands Local Authority",0,IF('III Tool Overview'!$H$7="Shetland Islands Local Authority",0,IF('III Tool Overview'!$H$7="Eilean Siar Local Authority",0,new_yll(10,B82,C82,D82,$C$1,G82,1,F82,E82*F82))))))) -> 138581.8714 | X82: =IF('III Tool Overview'!$H$7="Orkney Health Board",0,IF('III Tool Overview'!$H$7="Shetland Health Board",0,IF('III Tool Overview'!$H$7="Western Isles Health Board",0,IF('III Tool Overview'!$H$7="Orkney Islands Local Authority",0,IF('III Tool Overview'!$H$7="Shetland Islands Local Authority",0,IF('III Tool Overview'!$H$7="Eilean Siar Local Authority",0,new_yll(10,B82,C82,D82,$C$1,G82+H82,1,F82,E82*F82))))))) -> 138572.6788 | Y82: 9.192585391 | Z82: =IF('III Tool Overview'!$H$7="Orkney Health Board",0,IF('III Tool Overview'!$H$7="Shetland Health Board",0,IF('III Tool Overview'!$H$7="Western Isles Health Board",0,IF('III Tool Overview'!$H$7="Orkney Islands Local Authority",0,IF('III Tool Overview'!$H$7="Shetland Islands Local Authority",0,IF('III Tool Overview'!$H$7="Eilean Siar Local Authority",0,new_yll(20,B82,C82,D82,$C$1,G82,1,F82,E82*F82))))))) -> 177584.4527 | AA82: =IF('III Tool Overview'!$H$7="Orkney Health Board",0,IF('III Tool Overview'!$H$7="Shetland Health Board",0,IF('III Tool Overview'!$H$7="Western Isles Health Board",0,IF('III Tool Overview'!$H$7="Orkney Islands Local Authority",0,IF('III Tool Overview'!$H$7="Shetland Islands Local Authority",0,IF('III Tool Overview'!$H$7="Eilean Siar Local Authority",0,new_yll(20,B82,C82,D82,$C$1,G82+H82,1,F82,E82*F82))))))) -> 177578.2274 | AB82: 6.225355531 | AC82: =IF('III Tool Overview'!$H$7="Orkney Health Board",0,IF('III Tool Overview'!$H$7="Shetland Health Board",0,IF('III Tool Overview'!$H$7="Western Isles Health Board",0,IF('III Tool Overview'!$H$7="Orkney Islands Local Authority",0,IF('III Tool Overview'!$H$7="Shetland Islands Local Authority",0,IF('III Tool Overview'!$H$7="Eilean Siar Local Authority",0,hosp_count(2,B82,C82,D82,$C$1,G82,1,F82,E82*F82))))))) -> 11034.84551 | AD82: =IF('III Tool Overview'!$H$7="Orkney Health Board",0,IF('III Tool Overview'!$H$7="Shetland Health Board",0,IF('III Tool Overview'!$H$7="Western Isles Health Board",0,IF('III Tool Overview'!$H$7="Orkney Islands Local Authority",0,IF('III Tool Overview'!$H$7="Shetland Islands Local Authority",0,IF('III Tool Overview'!$H$7="Eilean Siar Local Authority",0,hosp_count(2,B82,C82,D82,$C$1,G82+H82,1,F82,E82*F82))))))) -> 11029.15096 | AE82: 5.694544499 | AF82: =IF('III Tool Overview'!$H$7="Orkney Health Board",0,IF('III Tool Overview'!$H$7="Shetland Health Board",0,IF('III Tool Overview'!$H$7="Western Isles Health Board",0,IF('III Tool Overview'!$H$7="Orkney Islands Local Authority",0,IF('III Tool Overview'!$H$7="Shetland Islands Local Authority",0,IF('III Tool Overview'!$H$7="Eilean Siar Local Authority",0,hosp_count(5,B82,C82,D82,$C$1,G82,1,F82,E82*F82))))))) -> 41419.13119 | AG82: =IF('III Tool Overview'!$H$7="Orkney Health Board",0,IF('III Tool Overview'!$H$7="Shetland Health Board",0,IF('III Tool Overview'!$H$7="Western Isles Health Board",0,IF('III Tool Overview'!$H$7="Orkney Islands Local Authority",0,IF('III Tool Overview'!$H$7="Shetland Islands Local Authority",0,IF('III Tool Overview'!$H$7="Eilean Siar Local Authority",0,hosp_count(5,B82,C82,D82,$C$1,G82+H82,1,F82,E82*F82))))))) -> 41406.4829 | AH82: 12.64829736 | AI82: =IF('III Tool Overview'!$H$7="Orkney Health Board",0,IF('III Tool Overview'!$H$7="Shetland Health Board",0,IF('III Tool Overview'!$H$7="Western Isles Health Board",0,IF('III Tool Overview'!$H$7="Orkney Islands Local Authority",0,IF('III Tool Overview'!$H$7="Shetland Islands Local Authority",0,IF('III Tool Overview'!$H$7="Eilean Siar Local Authority",0,hosp_count(10,B82,C82,D82,$C$1,G82,1,F82,E82*F82))))))) -> 81619.33945 | AJ82: =IF('III Tool Overview'!$H$7="Orkney Health Board",0,IF('III Tool Overview'!$H$7="Shetland Health Board",0,IF('III Tool Overview'!$H$7="Western Isles Health Board",0,IF('III Tool Overview'!$H$7="Orkney Islands Local Authority",0,IF('III Tool Overview'!$H$7="Shetland Islands Local Authority",0,IF('III Tool Overview'!$H$7="Eilean Siar Local Authority",0,hosp_count(10,B82,C82,D82,$C$1,G82+H82,1,F82,E82*F82))))))) -> 81606.68951 | AK82: 12.64994296 | AL82: =IF('III Tool Overview'!$H$7="Orkney Health Board",0,IF('III Tool Overview'!$H$7="Shetland Health Board",0,IF('III Tool Overview'!$H$7="Western Isles Health Board",0,IF('III Tool Overview'!$H$7="Orkney Islands Local Authority",0,IF('III Tool Overview'!$H$7="Shetland Islands Local Authority",0,IF('III Tool Overview'!$H$7="Eilean Siar Local Authority",0,hosp_count(20,B82,C82,D82,$C$1,G82,1,F82,E82*F82))))))) -> 121972.5665 | AM82: =IF('III Tool Overview'!$H$7="Orkney Health Board",0,IF('III Tool Overview'!$H$7="Shetland Health Board",0,IF('III Tool Overview'!$H$7="Western Isles Health Board",0,IF('III Tool Overview'!$H$7="Orkney Islands Local Authority",0,IF('III Tool Overview'!$H$7="Shetland Islands Local Authority",0,IF('III Tool Overview'!$H$7="Eilean Siar Local Authority",0,hosp_count(20,B82,C82,D82,$C$1,G82+H82,1,F82,E82*F82))))))) -> 121962.4858 | AN82: 10.0806908 | AP82: 0.5 | AQ82: 5
A83: Male 80-84 | B83: 82.5 | C83: male | D83: 1 | E83: =HLOOKUP('III Tool Overview'!$H$7,Prevalence!$B$2:$AV$268,Prevalence!AW79,FALSE) -> 0.081797 | F83: =HLOOKUP('III Tool Overview'!$H$7,LookUpData_Pop!$B$1:$AV$269,LookUpData_Pop!BB84,FALSE)/5 -> 8347.2 | G83: ='III Tool Overview'!$H$10/110 -> 0 | H83: =IF('III Tool Overview'!$H$11="Even distribution",Targeting!C81,IF('III Tool Overview'!$H$11="Targeting to Q1",Targeting!D81,IF('III Tool Overview'!$H$11="Targeting to Q1 & Q2",Targeting!E81,IF('III Tool Overview'!$H$11="Proportionate to need",Targeting!F81)))) -> 133.7363878 | I83: =IF('III Tool Overview'!$H$7="Orkney Health Board",0,IF('III Tool Overview'!$H$7="Shetland Health Board",0,IF('III Tool Overview'!$H$7="Western Isles Health Board",0,IF('III Tool Overview'!$H$7="Orkney Islands Local Authority",0,IF('III Tool Overview'!$H$7="Shetland Islands Local Authority",0,IF('III Tool Overview'!$H$7="Eilean Siar Local Authority",0,new_ci(2,B83,C83,D83,$C$1,G83,1,F83,E83*F83))))))) -> 811.2403696 | J83: =IF('III Tool Overview'!$H$7="Orkney Health Board",0,IF('III Tool Overview'!$H$7="Shetland Health Board",0,IF('III Tool Overview'!$H$7="Western Isles Health Board",0,IF('III Tool Overview'!$H$7="Orkney Islands Local Authority",0,IF('III Tool Overview'!$H$7="Shetland Islands Local Authority",0,IF('III Tool Overview'!$H$7="Eilean Siar Local Authority",0,new_ci(2,B83,C83,D83,$C$1,G83+H83,1,F83,E83*F83))))))) -> 811.0074889 | K83: =IF('III Tool Overview'!$H$7="Orkney Health Board",0,IF('III Tool Overview'!$H$7="Shetland Health Board",0,IF('III Tool Overview'!$H$7="Western Isles Health Board",0,IF('III Tool Overview'!$H$7="Orkney Islands Local Authority",0,IF('III Tool Overview'!$H$7="Shetland Islands Local Authority",0,IF('III Tool Overview'!$H$7="Eilean Siar Local Authority",0,new_ci(5,B83,C83,D83,$C$1,G83,1,F83,E83*F83))))))) -> 3008.934784 | L83: =IF('III Tool Overview'!$H$7="Orkney Health Board",0,IF('III Tool Overview'!$H$7="Shetland Health Board",0,IF('III Tool Overview'!$H$7="Western Isles Health Board",0,IF('III Tool Overview'!$H$7="Orkney Islands Local Authority",0,IF('III Tool Overview'!$H$7="Shetland Islands Local Authority",0,IF('III Tool Overview'!$H$7="Eilean Siar Local Authority",0,new_ci(5,B83,C83,D83,$C$1,G83+H83,1,F83,E83*F83))))))) -> 3008.512215 | M83: =IF('III Tool Overview'!$H$7="Orkney Health Board",0,IF('III Tool Overview'!$H$7="Shetland Health Board",0,IF('III Tool Overview'!$H$7="Western Isles Health Board",0,IF('III Tool Overview'!$H$7="Orkney Islands Local Authority",0,IF('III Tool Overview'!$H$7="Shetland Islands Local Authority",0,IF('III Tool Overview'!$H$7="Eilean Siar Local Authority",0,new_ci(10,B83,C83,D83,$C$1,G83,1,F83,E83*F83))))))) -> 5764.257317 | N83: =IF('III Tool Overview'!$H$7="Orkney Health Board",0,IF('III Tool Overview'!$H$7="Shetland Health Board",0,IF('III Tool Overview'!$H$7="Western Isles Health Board",0,IF('III Tool Overview'!$H$7="Orkney Islands Local Authority",0,IF('III Tool Overview'!$H$7="Shetland Islands Local Authority",0,IF('III Tool Overview'!$H$7="Eilean Siar Local Authority",0,new_ci(10,B83,C83,D83,$C$1,G83+H83,1,F83,E83*F83))))))) -> 5764.020755 | O83: =IF('III Tool Overview'!$H$7="Orkney Health Board",0,IF('III Tool Overview'!$H$7="Shetland Health Board",0,IF('III Tool Overview'!$H$7="Western Isles Health Board",0,IF('III Tool Overview'!$H$7="Orkney Islands Local Authority",0,IF('III Tool Overview'!$H$7="Shetland Islands Local Authority",0,IF('III Tool Overview'!$H$7="Eilean Siar Local Authority",0,new_ci(20,B83,C83,D83,$C$1,G83,1,F83,E83*F83))))))) -> 8078.544772 | P83: =IF('III Tool Overview'!$H$7="Orkney Health Board",0,IF('III Tool Overview'!$H$7="Shetland Health Board",0,IF('III Tool Overview'!$H$7="Western Isles Health Board",0,IF('III Tool Overview'!$H$7="Orkney Islands Local Authority",0,IF('III Tool Overview'!$H$7="Shetland Islands Local Authority",0,IF('III Tool Overview'!$H$7="Eilean Siar Local Authority",0,new_ci(20,B83,C83,D83,$C$1,G83+H83,1,F83,E83*F83))))))) -> 8078.529129 | Q83: =IF('III Tool Overview'!$H$7="Orkney Health Board",0,IF('III Tool Overview'!$H$7="Shetland Health Board",0,IF('III Tool Overview'!$H$7="Western Isles Health Board",0,IF('III Tool Overview'!$H$7="Orkney Islands Local Authority",0,IF('III Tool Overview'!$H$7="Shetland Islands Local Authority",0,IF('III Tool Overview'!$H$7="Eilean Siar Local Authority",0,new_yll(2,B83,C83,D83,$C$1,G83,1,F83,E83*F83))))))) -> 13791.08628 | R83: =IF('III Tool Overview'!$H$7="Orkney Health Board",0,IF('III Tool Overview'!$H$7="Shetland Health Board",0,IF('III Tool Overview'!$H$7="Western Isles Health Board",0,IF('III Tool Overview'!$H$7="Orkney Islands Local Authority",0,IF('III Tool Overview'!$H$7="Shetland Islands Local Authority",0,IF('III Tool Overview'!$H$7="Eilean Siar Local Authority",0,new_yll(2,B83,C83,D83,$C$1,G83+H83,1,F83,E83*F83))))))) -> 13787.12731 | S83: 3.958971926 | T83: =IF('III Tool Overview'!$H$7="Orkney Health Board",0,IF('III Tool Overview'!$H$7="Shetland Health Board",0,IF('III Tool Overview'!$H$7="Western Isles Health Board",0,IF('III Tool Overview'!$H$7="Orkney Islands Local Authority",0,IF('III Tool Overview'!$H$7="Shetland Islands Local Authority",0,IF('III Tool Overview'!$H$7="Eilean Siar Local Authority",0,new_yll(5,B83,C83,D83,$C$1,G83,1,F83,E83*F83))))))) -> 46839.74921 | U83: =IF('III Tool Overview'!$H$7="Orkney Health Board",0,IF('III Tool Overview'!$H$7="Shetland Health Board",0,IF('III Tool Overview'!$H$7="Western Isles Health Board",0,IF('III Tool Overview'!$H$7="Orkney Islands Local Authority",0,IF('III Tool Overview'!$H$7="Shetland Islands Local Authority",0,IF('III Tool Overview'!$H$7="Eilean Siar Local Authority",0,new_yll(5,B83,C83,D83,$C$1,G83+H83,1,F83,E83*F83))))))) -> 46832.82816 | V83: 6.921045621 | W83: =IF('III Tool Overview'!$H$7="Orkney Health Board",0,IF('III Tool Overview'!$H$7="Shetland Health Board",0,IF('III Tool Overview'!$H$7="Western Isles Health Board",0,IF('III Tool Overview'!$H$7="Orkney Islands Local Authority",0,IF('III Tool Overview'!$H$7="Shetland Islands Local Authority",0,IF('III Tool Overview'!$H$7="Eilean Siar Local Authority",0,new_yll(10,B83,C83,D83,$C$1,G83,1,F83,E83*F83))))))) -> 77623.74919 | X83: =IF('III Tool Overview'!$H$7="Orkney Health Board",0,IF('III Tool Overview'!$H$7="Shetland Health Board",0,IF('III Tool Overview'!$H$7="Western Isles Health Board",0,IF('III Tool Overview'!$H$7="Orkney Islands Local Authority",0,IF('III Tool Overview'!$H$7="Shetland Islands Local Authority",0,IF('III Tool Overview'!$H$7="Eilean Siar Local Authority",0,new_yll(10,B83,C83,D83,$C$1,G83+H83,1,F83,E83*F83))))))) -> 77618.8136 | Y83: 4.935587126 | Z83: =IF('III Tool Overview'!$H$7="Orkney Health Board",0,IF('III Tool Overview'!$H$7="Shetland Health Board",0,IF('III Tool Overview'!$H$7="Western Isles Health Board",0,IF('III Tool Overview'!$H$7="Orkney Islands Local Authority",0,IF('III Tool Overview'!$H$7="Shetland Islands Local Authority",0,IF('III Tool Overview'!$H$7="Eilean Siar Local Authority",0,new_yll(20,B83,C83,D83,$C$1,G83,1,F83,E83*F83))))))) -> 88659.30403 | AA83: =IF('III Tool Overview'!$H$7="Orkney Health Board",0,IF('III Tool Overview'!$H$7="Shetland Health Board",0,IF('III Tool Overview'!$H$7="Western Isles Health Board",0,IF('III Tool Overview'!$H$7="Orkney Islands Local Authority",0,IF('III Tool Overview'!$H$7="Shetland Islands Local Authority",0,IF('III Tool Overview'!$H$7="Eilean Siar Local Authority",0,new_yll(20,B83,C83,D83,$C$1,G83+H83,1,F83,E83*F83))))))) -> 88655.46632 | AB83: 3.837706207 | AC83: =IF('III Tool Overview'!$H$7="Orkney Health Board",0,IF('III Tool Overview'!$H$7="Shetland Health Board",0,IF('III Tool Overview'!$H$7="Western Isles Health Board",0,IF('III Tool Overview'!$H$7="Orkney Islands Local Authority",0,IF('III Tool Overview'!$H$7="Shetland Islands Local Authority",0,IF('III Tool Overview'!$H$7="Eilean Siar Local Authority",0,hosp_count(2,B83,C83,D83,$C$1,G83,1,F83,E83*F83))))))) -> 7709.884842 | AD83: =IF('III Tool Overview'!$H$7="Orkney Health Board",0,IF('III Tool Overview'!$H$7="Shetland Health Board",0,IF('III Tool Overview'!$H$7="Western Isles Health Board",0,IF('III Tool Overview'!$H$7="Orkney Islands Local Authority",0,IF('III Tool Overview'!$H$7="Shetland Islands Local Authority",0,IF('III Tool Overview'!$H$7="Eilean Siar Local Authority",0,hosp_count(2,B83,C83,D83,$C$1,G83+H83,1,F83,E83*F83))))))) -> 7705.765783 | AE83: 4.11905925 | AF83: =IF('III Tool Overview'!$H$7="Orkney Health Board",0,IF('III Tool Overview'!$H$7="Shetland Health Board",0,IF('III Tool Overview'!$H$7="Western Isles Health Board",0,IF('III Tool Overview'!$H$7="Orkney Islands Local Authority",0,IF('III Tool Overview'!$H$7="Shetland Islands Local Authority",0,IF('III Tool Overview'!$H$7="Eilean Siar Local Authority",0,hosp_count(5,B83,C83,D83,$C$1,G83,1,F83,E83*F83))))))) -> 27854.83929 | AG83: =IF('III Tool Overview'!$H$7="Orkney Health Board",0,IF('III Tool Overview'!$H$7="Shetland Health Board",0,IF('III Tool Overview'!$H$7="Western Isles Health Board",0,IF('III Tool Overview'!$H$7="Orkney Islands Local Authority",0,IF('III Tool Overview'!$H$7="Shetland Islands Local Authority",0,IF('III Tool Overview'!$H$7="Eilean Siar Local Authority",0,hosp_count(5,B83,C83,D83,$C$1,G83+H83,1,F83,E83*F83))))))) -> 27846.22382 | AH83: 8.615471518 | AI83: =IF('III Tool Overview'!$H$7="Orkney Health Board",0,IF('III Tool Overview'!$H$7="Shetland Health Board",0,IF('III Tool Overview'!$H$7="Western Isles Health Board",0,IF('III Tool Overview'!$H$7="Orkney Islands Local Authority",0,IF('III Tool Overview'!$H$7="Shetland Islands Local Authority",0,IF('III Tool Overview'!$H$7="Eilean Siar Local Authority",0,hosp_count(10,B83,C83,D83,$C$1,G83,1,F83,E83*F83))))))) -> 51428.75606 | AJ83: =IF('III Tool Overview'!$H$7="Orkney Health Board",0,IF('III Tool Overview'!$H$7="Shetland Health Board",0,IF('III Tool Overview'!$H$7="Western Isles Health Board",0,IF('III Tool Overview'!$H$7="Orkney Islands Local Authority",0,IF('III Tool Overview'!$H$7="Shetland Islands Local Authority",0,IF('III Tool Overview'!$H$7="Eilean Siar Local Authority",0,hosp_count(10,B83,C83,D83,$C$1,G83+H83,1,F83,E83*F83))))))) -> 51420.64846 | AK83: 8.107602957 | AL83: =IF('III Tool Overview'!$H$7="Orkney Health Board",0,IF('III Tool Overview'!$H$7="Shetland Health Board",0,IF('III Tool Overview'!$H$7="Western Isles Health Board",0,IF('III Tool Overview'!$H$7="Orkney Islands Local Authority",0,IF('III Tool Overview'!$H$7="Shetland Islands Local Authority",0,IF('III Tool Overview'!$H$7="Eilean Siar Local Authority",0,hosp_count(20,B83,C83,D83,$C$1,G83,1,F83,E83*F83))))))) -> 69252.39416 | AM83: =IF('III Tool Overview'!$H$7="Orkney Health Board",0,IF('III Tool Overview'!$H$7="Shetland Health Board",0,IF('III Tool Overview'!$H$7="Western Isles Health Board",0,IF('III Tool Overview'!$H$7="Orkney Islands Local Authority",0,IF('III Tool Overview'!$H$7="Shetland Islands Local Authority",0,IF('III Tool Overview'!$H$7="Eilean Siar Local Authority",0,hosp_count(20,B83,C83,D83,$C$1,G83+H83,1,F83,E83*F83))))))) -> 69245.75245 | AN83: 6.641709812 | AP83: 0.5 | AQ83: 5
A84: Male 85-89 | B84: 87.5 | C84: male | D84: 1 | E84: =HLOOKUP('III Tool Overview'!$H$7,Prevalence!$B$2:$AV$268,Prevalence!AW80,FALSE) -> 0.081797 | F84: =HLOOKUP('III Tool Overview'!$H$7,LookUpData_Pop!$B$1:$AV$269,LookUpData_Pop!BB85,FALSE)/5 -> 4043 | G84: ='III Tool Overview'!$H$10/110 -> 0 | H84: =IF('III Tool Overview'!$H$11="Even distribution",Targeting!C82,IF('III Tool Overview'!$H$11="Targeting to Q1",Targeting!D82,IF('III Tool Overview'!$H$11="Targeting to Q1 & Q2",Targeting!E82,IF('III Tool Overview'!$H$11="Proportionate to need",Targeting!F82)))) -> 61.12965748 | I84: =IF('III Tool Overview'!$H$7="Orkney Health Board",0,IF('III Tool Overview'!$H$7="Shetland Health Board",0,IF('III Tool Overview'!$H$7="Western Isles Health Board",0,IF('III Tool Overview'!$H$7="Orkney Islands Local Authority",0,IF('III Tool Overview'!$H$7="Shetland Islands Local Authority",0,IF('III Tool Overview'!$H$7="Eilean Siar Local Authority",0,new_ci(2,B84,C84,D84,$C$1,G84,1,F84,E84*F84))))))) -> 590.3444326 | J84: =IF('III Tool Overview'!$H$7="Orkney Health Board",0,IF('III Tool Overview'!$H$7="Shetland Health Board",0,IF('III Tool Overview'!$H$7="Western Isles Health Board",0,IF('III Tool Overview'!$H$7="Orkney Islands Local Authority",0,IF('III Tool Overview'!$H$7="Shetland Islands Local Authority",0,IF('III Tool Overview'!$H$7="Eilean Siar Local Authority",0,new_ci(2,B84,C84,D84,$C$1,G84+H84,1,F84,E84*F84))))))) -> 590.1914475 | K84: =IF('III Tool Overview'!$H$7="Orkney Health Board",0,IF('III Tool Overview'!$H$7="Shetland Health Board",0,IF('III Tool Overview'!$H$7="Western Isles Health Board",0,IF('III Tool Overview'!$H$7="Orkney Islands Local Authority",0,IF('III Tool Overview'!$H$7="Shetland Islands Local Authority",0,IF('III Tool Overview'!$H$7="Eilean Siar Local Authority",0,new_ci(5,B84,C84,D84,$C$1,G84,1,F84,E84*F84))))))) -> 2014.87397 | L84: =IF('III Tool Overview'!$H$7="Orkney Health Board",0,IF('III Tool Overview'!$H$7="Shetland Health Board",0,IF('III Tool Overview'!$H$7="Western Isles Health Board",0,IF('III Tool Overview'!$H$7="Orkney Islands Local Authority",0,IF('III Tool Overview'!$H$7="Shetland Islands Local Authority",0,IF('III Tool Overview'!$H$7="Eilean Siar Local Authority",0,new_ci(5,B84,C84,D84,$C$1,G84+H84,1,F84,E84*F84))))))) -> 2014.653211 | M84: =IF('III Tool Overview'!$H$7="Orkney Health Board",0,IF('III Tool Overview'!$H$7="Shetland Health Board",0,IF('III Tool Overview'!$H$7="Western Isles Health Board",0,IF('III Tool Overview'!$H$7="Orkney Islands Local Authority",0,IF('III Tool Overview'!$H$7="Shetland Islands Local Authority",0,IF('III Tool Overview'!$H$7="Eilean Siar Local Authority",0,new_ci(10,B84,C84,D84,$C$1,G84,1,F84,E84*F84))))))) -> 3380.698565 | N84: =IF('III Tool Overview'!$H$7="Orkney Health Board",0,IF('III Tool Overview'!$H$7="Shetland Health Board",0,IF('III Tool Overview'!$H$7="Western Isles Health Board",0,IF('III Tool Overview'!$H$7="Orkney Islands Local Authority",0,IF('III Tool Overview'!$H$7="Shetland Islands Local Authority",0,IF('III Tool Overview'!$H$7="Eilean Siar Local Authority",0,new_ci(10,B84,C84,D84,$C$1,G84+H84,1,F84,E84*F84))))))) -> 3380.622464 | O84: =IF('III Tool Overview'!$H$7="Orkney Health Board",0,IF('III Tool Overview'!$H$7="Shetland Health Board",0,IF('III Tool Overview'!$H$7="Western Isles Health Board",0,IF('III Tool Overview'!$H$7="Orkney Islands Local Authority",0,IF('III Tool Overview'!$H$7="Shetland Islands Local Authority",0,IF('III Tool Overview'!$H$7="Eilean Siar Local Authority",0,new_ci(20,B84,C84,D84,$C$1,G84,1,F84,E84*F84))))))) -> 4022.683868 | P84: =IF('III Tool Overview'!$H$7="Orkney Health Board",0,IF('III Tool Overview'!$H$7="Shetland Health Board",0,IF('III Tool Overview'!$H$7="Western Isles Health Board",0,IF('III Tool Overview'!$H$7="Orkney Islands Local Authority",0,IF('III Tool Overview'!$H$7="Shetland Islands Local Authority",0,IF('III Tool Overview'!$H$7="Eilean Siar Local Authority",0,new_ci(20,B84,C84,D84,$C$1,G84+H84,1,F84,E84*F84))))))) -> 4022.682768 | Q84: =IF('III Tool Overview'!$H$7="Orkney Health Board",0,IF('III Tool Overview'!$H$7="Shetland Health Board",0,IF('III Tool Overview'!$H$7="Western Isles Health Board",0,IF('III Tool Overview'!$H$7="Orkney Islands Local Authority",0,IF('III Tool Overview'!$H$7="Shetland Islands Local Authority",0,IF('III Tool Overview'!$H$7="Eilean Siar Local Authority",0,new_yll(2,B84,C84,D84,$C$1,G84,1,F84,E84*F84))))))) -> 6493.788758 | R84: =IF('III Tool Overview'!$H$7="Orkney Health Board",0,IF('III Tool Overview'!$H$7="Shetland Health Board",0,IF('III Tool Overview'!$H$7="Western Isles Health Board",0,IF('III Tool Overview'!$H$7="Orkney Islands Local Authority",0,IF('III Tool Overview'!$H$7="Shetland Islands Local Authority",0,IF('III Tool Overview'!$H$7="Eilean Siar Local Authority",0,new_yll(2,B84,C84,D84,$C$1,G84+H84,1,F84,E84*F84))))))) -> 6492.105923 | S84: 1.682835284 | T84: =IF('III Tool Overview'!$H$7="Orkney Health Board",0,IF('III Tool Overview'!$H$7="Shetland Health Board",0,IF('III Tool Overview'!$H$7="Western Isles Health Board",0,IF('III Tool Overview'!$H$7="Orkney Islands Local Authority",0,IF('III Tool Overview'!$H$7="Shetland Islands Local Authority",0,IF('III Tool Overview'!$H$7="Eilean Siar Local Authority",0,new_yll(5,B84,C84,D84,$C$1,G84,1,F84,E84*F84))))))) -> 19427.5512 | U84: =IF('III Tool Overview'!$H$7="Orkney Health Board",0,IF('III Tool Overview'!$H$7="Shetland Health Board",0,IF('III Tool Overview'!$H$7="Western Isles Health Board",0,IF('III Tool Overview'!$H$7="Orkney Islands Local Authority",0,IF('III Tool Overview'!$H$7="Shetland Islands Local Authority",0,IF('III Tool Overview'!$H$7="Eilean Siar Local Authority",0,new_yll(5,B84,C84,D84,$C$1,G84+H84,1,F84,E84*F84))))))) -> 19425.1786 | V84: 2.372598407 | W84: =IF('III Tool Overview'!$H$7="Orkney Health Board",0,IF('III Tool Overview'!$H$7="Shetland Health Board",0,IF('III Tool Overview'!$H$7="Western Isles Health Board",0,IF('III Tool Overview'!$H$7="Orkney Islands Local Authority",0,IF('III Tool Overview'!$H$7="Shetland Islands Local Authority",0,IF('III Tool Overview'!$H$7="Eilean Siar Local Authority",0,new_yll(10,B84,C84,D84,$C$1,G84,1,F84,E84*F84))))))) -> 26700.09479 | X84: =IF('III Tool Overview'!$H$7="Orkney Health Board",0,IF('III Tool Overview'!$H$7="Shetland Health Board",0,IF('III Tool Overview'!$H$7="Western Isles Health Board",0,IF('III Tool Overview'!$H$7="Orkney Islands Local Authority",0,IF('III Tool Overview'!$H$7="Shetland Islands Local Authority",0,IF('III Tool Overview'!$H$7="Eilean Siar Local Authority",0,new_yll(10,B84,C84,D84,$C$1,G84+H84,1,F84,E84*F84))))))) -> 26698.4542 | Y84: 1.64059044 | Z84: =IF('III Tool Overview'!$H$7="Orkney Health Board",0,IF('III Tool Overview'!$H$7="Shetland Health Board",0,IF('III Tool Overview'!$H$7="Western Isles Health Board",0,IF('III Tool Overview'!$H$7="Orkney Islands Local Authority",0,IF('III Tool Overview'!$H$7="Shetland Islands Local Authority",0,IF('III Tool Overview'!$H$7="Eilean Siar Local Authority",0,new_yll(20,B84,C84,D84,$C$1,G84,1,F84,E84*F84))))))) -> 26377.31676 | AA84: =IF('III Tool Overview'!$H$7="Orkney Health Board",0,IF('III Tool Overview'!$H$7="Shetland Health Board",0,IF('III Tool Overview'!$H$7="Western Isles Health Board",0,IF('III Tool Overview'!$H$7="Orkney Islands Local Authority",0,IF('III Tool Overview'!$H$7="Shetland Islands Local Authority",0,IF('III Tool Overview'!$H$7="Eilean Siar Local Authority",0,new_yll(20,B84,C84,D84,$C$1,G84+H84,1,F84,E84*F84))))))) -> 26375.66086 | AB84: 1.655903748 | AC84: =IF('III Tool Overview'!$H$7="Orkney Health Board",0,IF('III Tool Overview'!$H$7="Shetland Health Board",0,IF('III Tool Overview'!$H$7="Western Isles Health Board",0,IF('III Tool Overview'!$H$7="Orkney Islands Local Authority",0,IF('III Tool Overview'!$H$7="Shetland Islands Local Authority",0,IF('III Tool Overview'!$H$7="Eilean Siar Local Authority",0,hosp_count(2,B84,C84,D84,$C$1,G84,1,F84,E84*F84))))))) -> 4603.958802 | AD84: =IF('III Tool Overview'!$H$7="Orkney Health Board",0,IF('III Tool Overview'!$H$7="Shetland Health Board",0,IF('III Tool Overview'!$H$7="Western Isles Health Board",0,IF('III Tool Overview'!$H$7="Orkney Islands Local Authority",0,IF('III Tool Overview'!$H$7="Shetland Islands Local Authority",0,IF('III Tool Overview'!$H$7="Eilean Siar Local Authority",0,hosp_count(2,B84,C84,D84,$C$1,G84+H84,1,F84,E84*F84))))))) -> 4601.647047 | AE84: 2.311754477 | AF84: =IF('III Tool Overview'!$H$7="Orkney Health Board",0,IF('III Tool Overview'!$H$7="Shetland Health Board",0,IF('III Tool Overview'!$H$7="Western Isles Health Board",0,IF('III Tool Overview'!$H$7="Orkney Islands Local Authority",0,IF('III Tool Overview'!$H$7="Shetland Islands Local Authority",0,IF('III Tool Overview'!$H$7="Eilean Siar Local Authority",0,hosp_count(5,B84,C84,D84,$C$1,G84,1,F84,E84*F84))))))) -> 15363.45296 | AG84: =IF('III Tool Overview'!$H$7="Orkney Health Board",0,IF('III Tool Overview'!$H$7="Shetland Health Board",0,IF('III Tool Overview'!$H$7="Western Isles Health Board",0,IF('III Tool Overview'!$H$7="Orkney Islands Local Authority",0,IF('III Tool Overview'!$H$7="Shetland Islands Local Authority",0,IF('III Tool Overview'!$H$7="Eilean Siar Local Authority",0,hosp_count(5,B84,C84,D84,$C$1,G84+H84,1,F84,E84*F84))))))) -> 15359.16547 | AH84: 4.287490761 | AI84: =IF('III Tool Overview'!$H$7="Orkney Health Board",0,IF('III Tool Overview'!$H$7="Shetland Health Board",0,IF('III Tool Overview'!$H$7="Western Isles Health Board",0,IF('III Tool Overview'!$H$7="Orkney Islands Local Authority",0,IF('III Tool Overview'!$H$7="Shetland Islands Local Authority",0,IF('III Tool Overview'!$H$7="Eilean Siar Local Authority",0,hosp_count(10,B84,C84,D84,$C$1,G84,1,F84,E84*F84))))))) -> 25084.05042 | AJ84: =IF('III Tool Overview'!$H$7="Orkney Health Board",0,IF('III Tool Overview'!$H$7="Shetland Health Board",0,IF('III Tool Overview'!$H$7="Western Isles Health Board",0,IF('III Tool Overview'!$H$7="Orkney Islands Local Authority",0,IF('III Tool Overview'!$H$7="Shetland Islands Local Authority",0,IF('III Tool Overview'!$H$7="Eilean Siar Local Authority",0,hosp_count(10,B84,C84,D84,$C$1,G84+H84,1,F84,E84*F84))))))) -> 25080.33361 | AK84: 3.716815568 | AL84: =IF('III Tool Overview'!$H$7="Orkney Health Board",0,IF('III Tool Overview'!$H$7="Shetland Health Board",0,IF('III Tool Overview'!$H$7="Western Isles Health Board",0,IF('III Tool Overview'!$H$7="Orkney Islands Local Authority",0,IF('III Tool Overview'!$H$7="Shetland Islands Local Authority",0,IF('III Tool Overview'!$H$7="Eilean Siar Local Authority",0,hosp_count(20,B84,C84,D84,$C$1,G84,1,F84,E84*F84))))))) -> 29294.31972 | AM84: =IF('III Tool Overview'!$H$7="Orkney Health Board",0,IF('III Tool Overview'!$H$7="Shetland Health Board",0,IF('III Tool Overview'!$H$7="Western Isles Health Board",0,IF('III Tool Overview'!$H$7="Orkney Islands Local Authority",0,IF('III Tool Overview'!$H$7="Shetland Islands Local Authority",0,IF('III Tool Overview'!$H$7="Eilean Siar Local Authority",0,hosp_count(20,B84,C84,D84,$C$1,G84+H84,1,F84,E84*F84))))))) -> 29291.03567 | AN84: 3.284044188 | AP84: 0.5 | AQ84: =2/#REF! -> 
A85: Male 90+ | B85: 95 | C85: male | D85: 1 | E85: =HLOOKUP('III Tool Overview'!$H$7,Prevalence!$B$2:$AV$268,Prevalence!AW81,FALSE) -> 0.081797 | F85: =HLOOKUP('III Tool Overview'!$H$7,LookUpData_Pop!$B$1:$AV$269,LookUpData_Pop!BB86,FALSE)/5 -> 1473 | G85: ='III Tool Overview'!$H$10/110 -> 0 | H85: =IF('III Tool Overview'!$H$11="Even distribution",Targeting!C83,IF('III Tool Overview'!$H$11="Targeting to Q1",Targeting!D83,IF('III Tool Overview'!$H$11="Targeting to Q1 & Q2",Targeting!E83,IF('III Tool Overview'!$H$11="Proportionate to need",Targeting!F83)))) -> 23.73556341 | I85: =IF('III Tool Overview'!$H$7="Orkney Health Board",0,IF('III Tool Overview'!$H$7="Shetland Health Board",0,IF('III Tool Overview'!$H$7="Western Isles Health Board",0,IF('III Tool Overview'!$H$7="Orkney Islands Local Authority",0,IF('III Tool Overview'!$H$7="Shetland Islands Local Authority",0,IF('III Tool Overview'!$H$7="Eilean Siar Local Authority",0,new_ci(2,B85,C85,D85,$C$1,G85,1,F85,E85*F85))))))) -> 339.4617593 | J85: =IF('III Tool Overview'!$H$7="Orkney Health Board",0,IF('III Tool Overview'!$H$7="Shetland Health Board",0,IF('III Tool Overview'!$H$7="Western Isles Health Board",0,IF('III Tool Overview'!$H$7="Orkney Islands Local Authority",0,IF('III Tool Overview'!$H$7="Shetland Islands Local Authority",0,IF('III Tool Overview'!$H$7="Eilean Siar Local Authority",0,new_ci(2,B85,C85,D85,$C$1,G85+H85,1,F85,E85*F85))))))) -> 339.3737233 | K85: =IF('III Tool Overview'!$H$7="Orkney Health Board",0,IF('III Tool Overview'!$H$7="Shetland Health Board",0,IF('III Tool Overview'!$H$7="Western Isles Health Board",0,IF('III Tool Overview'!$H$7="Orkney Islands Local Authority",0,IF('III Tool Overview'!$H$7="Shetland Islands Local Authority",0,IF('III Tool Overview'!$H$7="Eilean Siar Local Authority",0,new_ci(5,B85,C85,D85,$C$1,G85,1,F85,E85*F85))))))) -> 1003.857079 | L85: =IF('III Tool Overview'!$H$7="Orkney Health Board",0,IF('III Tool Overview'!$H$7="Shetland Health Board",0,IF('III Tool Overview'!$H$7="Western Isles Health Board",0,IF('III Tool Overview'!$H$7="Orkney Islands Local Authority",0,IF('III Tool Overview'!$H$7="Shetland Islands Local Authority",0,IF('III Tool Overview'!$H$7="Eilean Siar Local Authority",0,new_ci(5,B85,C85,D85,$C$1,G85+H85,1,F85,E85*F85))))))) -> 1003.774376 | M85: =IF('III Tool Overview'!$H$7="Orkney Health Board",0,IF('III Tool Overview'!$H$7="Shetland Health Board",0,IF('III Tool Overview'!$H$7="Western Isles Health Board",0,IF('III Tool Overview'!$H$7="Orkney Islands Local Authority",0,IF('III Tool Overview'!$H$7="Shetland Islands Local Authority",0,IF('III Tool Overview'!$H$7="Eilean Siar Local Authority",0,new_ci(10,B85,C85,D85,$C$1,G85,1,F85,E85*F85))))))) -> 1399.455703 | N85: =IF('III Tool Overview'!$H$7="Orkney Health Board",0,IF('III Tool Overview'!$H$7="Shetland Health Board",0,IF('III Tool Overview'!$H$7="Western Isles Health Board",0,IF('III Tool Overview'!$H$7="Orkney Islands Local Authority",0,IF('III Tool Overview'!$H$7="Shetland Islands Local Authority",0,IF('III Tool Overview'!$H$7="Eilean Siar Local Authority",0,new_ci(10,B85,C85,D85,$C$1,G85+H85,1,F85,E85*F85))))))) -> 1399.444209 | O85: =IF('III Tool Overview'!$H$7="Orkney Health Board",0,IF('III Tool Overview'!$H$7="Shetland Health Board",0,IF('III Tool Overview'!$H$7="Western Isles Health Board",0,IF('III Tool Overview'!$H$7="Orkney Islands Local Authority",0,IF('III Tool Overview'!$H$7="Shetland Islands Local Authority",0,IF('III Tool Overview'!$H$7="Eilean Siar Local Authority",0,new_ci(20,B85,C85,D85,$C$1,G85,1,F85,E85*F85))))))) -> 1472.768987 | P85: =IF('III Tool Overview'!$H$7="Orkney Health Board",0,IF('III Tool Overview'!$H$7="Shetland Health Board",0,IF('III Tool Overview'!$H$7="Western Isles Health Board",0,IF('III Tool Overview'!$H$7="Orkney Islands Local Authority",0,IF('III Tool Overview'!$H$7="Shetland Islands Local Authority",0,IF('III Tool Overview'!$H$7="Eilean Siar Local Authority",0,new_ci(20,B85,C85,D85,$C$1,G85+H85,1,F85,E85*F85))))))) -> 1472.768977 | Q85: =IF('III Tool Overview'!$H$7="Orkney Health Board",0,IF('III Tool Overview'!$H$7="Shetland Health Board",0,IF('III Tool Overview'!$H$7="Western Isles Health Board",0,IF('III Tool Overview'!$H$7="Orkney Islands Local Authority",0,IF('III Tool Overview'!$H$7="Shetland Islands Local Authority",0,IF('III Tool Overview'!$H$7="Eilean Siar Local Authority",0,new_yll(2,B85,C85,D85,$C$1,G85,1,F85,E85*F85))))))) -> 1357.847037 | R85: =IF('III Tool Overview'!$H$7="Orkney Health Board",0,IF('III Tool Overview'!$H$7="Shetland Health Board",0,IF('III Tool Overview'!$H$7="Western Isles Health Board",0,IF('III Tool Overview'!$H$7="Orkney Islands Local Authority",0,IF('III Tool Overview'!$H$7="Shetland Islands Local Authority",0,IF('III Tool Overview'!$H$7="Eilean Siar Local Authority",0,new_yll(2,B85,C85,D85,$C$1,G85+H85,1,F85,E85*F85))))))) -> 1357.494893 | S85: 0.3521438397 | T85: =IF('III Tool Overview'!$H$7="Orkney Health Board",0,IF('III Tool Overview'!$H$7="Shetland Health Board",0,IF('III Tool Overview'!$H$7="Western Isles Health Board",0,IF('III Tool Overview'!$H$7="Orkney Islands Local Authority",0,IF('III Tool Overview'!$H$7="Shetland Islands Local Authority",0,IF('III Tool Overview'!$H$7="Eilean Siar Local Authority",0,new_yll(5,B85,C85,D85,$C$1,G85,1,F85,E85*F85))))))) -> 2790.05879 | U85: =IF('III Tool Overview'!$H$7="Orkney Health Board",0,IF('III Tool Overview'!$H$7="Shetland Health Board",0,IF('III Tool Overview'!$H$7="Western Isles Health Board",0,IF('III Tool Overview'!$H$7="Orkney Islands Local Authority",0,IF('III Tool Overview'!$H$7="Shetland Islands Local Authority",0,IF('III Tool Overview'!$H$7="Eilean Siar Local Authority",0,new_yll(5,B85,C85,D85,$C$1,G85+H85,1,F85,E85*F85))))))) -> 2789.675619 | V85: 0.3831709853 | W85: =IF('III Tool Overview'!$H$7="Orkney Health Board",0,IF('III Tool Overview'!$H$7="Shetland Health Board",0,IF('III Tool Overview'!$H$7="Western Isles Health Board",0,IF('III Tool Overview'!$H$7="Orkney Islands Local Authority",0,IF('III Tool Overview'!$H$7="Shetland Islands Local Authority",0,IF('III Tool Overview'!$H$7="Eilean Siar Local Authority",0,new_yll(10,B85,C85,D85,$C$1,G85,1,F85,E85*F85))))))) -> 2232.786105 | X85: =IF('III Tool Overview'!$H$7="Orkney Health Board",0,IF('III Tool Overview'!$H$7="Shetland Health Board",0,IF('III Tool Overview'!$H$7="Western Isles Health Board",0,IF('III Tool Overview'!$H$7="Orkney Islands Local Authority",0,IF('III Tool Overview'!$H$7="Shetland Islands Local Authority",0,IF('III Tool Overview'!$H$7="Eilean Siar Local Authority",0,new_yll(10,B85,C85,D85,$C$1,G85+H85,1,F85,E85*F85))))))) -> 2232.296128 | Y85: 0.4899772086 | Z85: =IF('III Tool Overview'!$H$7="Orkney Health Board",0,IF('III Tool Overview'!$H$7="Shetland Health Board",0,IF('III Tool Overview'!$H$7="Western Isles Health Board",0,IF('III Tool Overview'!$H$7="Orkney Islands Local Authority",0,IF('III Tool Overview'!$H$7="Shetland Islands Local Authority",0,IF('III Tool Overview'!$H$7="Eilean Siar Local Authority",0,new_yll(20,B85,C85,D85,$C$1,G85,1,F85,E85*F85))))))) -> 1749.030907 | AA85: =IF('III Tool Overview'!$H$7="Orkney Health Board",0,IF('III Tool Overview'!$H$7="Shetland Health Board",0,IF('III Tool Overview'!$H$7="Western Isles Health Board",0,IF('III Tool Overview'!$H$7="Orkney Islands Local Authority",0,IF('III Tool Overview'!$H$7="Shetland Islands Local Authority",0,IF('III Tool Overview'!$H$7="Eilean Siar Local Authority",0,new_yll(20,B85,C85,D85,$C$1,G85+H85,1,F85,E85*F85))))))) -> 1748.468549 | AB85: 0.5623582882 | AC85: =IF('III Tool Overview'!$H$7="Orkney Health Board",0,IF('III Tool Overview'!$H$7="Shetland Health Board",0,IF('III Tool Overview'!$H$7="Western Isles Health Board",0,IF('III Tool Overview'!$H$7="Orkney Islands Local Authority",0,IF('III Tool Overview'!$H$7="Shetland Islands Local Authority",0,IF('III Tool Overview'!$H$7="Eilean Siar Local Authority",0,hosp_count(2,B85,C85,D85,$C$1,G85,1,F85,E85*F85))))))) -> 2141.432973 | AD85: =IF('III Tool Overview'!$H$7="Orkney Health Board",0,IF('III Tool Overview'!$H$7="Shetland Health Board",0,IF('III Tool Overview'!$H$7="Western Isles Health Board",0,IF('III Tool Overview'!$H$7="Orkney Islands Local Authority",0,IF('III Tool Overview'!$H$7="Shetland Islands Local Authority",0,IF('III Tool Overview'!$H$7="Eilean Siar Local Authority",0,hosp_count(2,B85,C85,D85,$C$1,G85+H85,1,F85,E85*F85))))))) -> 2140.271753 | AE85: 1.161220107 | AF85: =IF('III Tool Overview'!$H$7="Orkney Health Board",0,IF('III Tool Overview'!$H$7="Shetland Health Board",0,IF('III Tool Overview'!$H$7="Western Isles Health Board",0,IF('III Tool Overview'!$H$7="Orkney Islands Local Authority",0,IF('III Tool Overview'!$H$7="Shetland Islands Local Authority",0,IF('III Tool Overview'!$H$7="Eilean Siar Local Authority",0,hosp_count(5,B85,C85,D85,$C$1,G85,1,F85,E85*F85))))))) -> 6229.275089 | AG85: =IF('III Tool Overview'!$H$7="Orkney Health Board",0,IF('III Tool Overview'!$H$7="Shetland Health Board",0,IF('III Tool Overview'!$H$7="Western Isles Health Board",0,IF('III Tool Overview'!$H$7="Orkney Islands Local Authority",0,IF('III Tool Overview'!$H$7="Shetland Islands Local Authority",0,IF('III Tool Overview'!$H$7="Eilean Siar Local Authority",0,hosp_count(5,B85,C85,D85,$C$1,G85+H85,1,F85,E85*F85))))))) -> 6227.493855 | AH85: 1.781234583 | AI85: =IF('III Tool Overview'!$H$7="Orkney Health Board",0,IF('III Tool Overview'!$H$7="Shetland Health Board",0,IF('III Tool Overview'!$H$7="Western Isles Health Board",0,IF('III Tool Overview'!$H$7="Orkney Islands Local Authority",0,IF('III Tool Overview'!$H$7="Shetland Islands Local Authority",0,IF('III Tool Overview'!$H$7="Eilean Siar Local Authority",0,hosp_count(10,B85,C85,D85,$C$1,G85,1,F85,E85*F85))))))) -> 8558.464211 | AJ85: =IF('III Tool Overview'!$H$7="Orkney Health Board",0,IF('III Tool Overview'!$H$7="Shetland Health Board",0,IF('III Tool Overview'!$H$7="Western Isles Health Board",0,IF('III Tool Overview'!$H$7="Orkney Islands Local Authority",0,IF('III Tool Overview'!$H$7="Shetland Islands Local Authority",0,IF('III Tool Overview'!$H$7="Eilean Siar Local Authority",0,hosp_count(10,B85,C85,D85,$C$1,G85+H85,1,F85,E85*F85))))))) -> 8556.972794 | AK85: 1.491417161 | AL85: =IF('III Tool Overview'!$H$7="Orkney Health Board",0,IF('III Tool Overview'!$H$7="Shetland Health Board",0,IF('III Tool Overview'!$H$7="Western Isles Health Board",0,IF('III Tool Overview'!$H$7="Orkney Islands Local Authority",0,IF('III Tool Overview'!$H$7="Shetland Islands Local Authority",0,IF('III Tool Overview'!$H$7="Eilean Siar Local Authority",0,hosp_count(20,B85,C85,D85,$C$1,G85,1,F85,E85*F85))))))) -> 8968.189531 | AM85: =IF('III Tool Overview'!$H$7="Orkney Health Board",0,IF('III Tool Overview'!$H$7="Shetland Health Board",0,IF('III Tool Overview'!$H$7="Western Isles Health Board",0,IF('III Tool Overview'!$H$7="Orkney Islands Local Authority",0,IF('III Tool Overview'!$H$7="Shetland Islands Local Authority",0,IF('III Tool Overview'!$H$7="Eilean Siar Local Authority",0,hosp_count(20,B85,C85,D85,$C$1,G85+H85,1,F85,E85*F85))))))) -> 8966.755979 | AN85: 1.433551403
A86: TOTAL | F86: =SUM(F70:F85) -> 400792.6 | G86: =SUM(G70:G85) -> 0 | H86: 20240.92646 | I86: 6816.371548 | J86: 6811.774772 | K86: 26954.40356 | L86: 26943.45395 | M86: 59580.23903 | N86: 59568.60262 | O86: 121843.7767 | P86: 121836.4763 | Q86: 205555.3814 | R86: 205386.0964 | S86: 169.284993 | T86: 805935.213 | U86: 805521.6118 | V86: 413.601258 | W86: 1754841.719 | X86: 1754369.42 | Y86: 472.2988999 | Z86: 3468918.744 | AA86: 3468526.94 | AB86: 391.8034622 | AC86: 126108.9628 | AD86: 125920.2836 | AE86: 188.6792696 | AF86: 504163.9548 | AG86: 503683.1997 | AH86: 480.7550874 | AI86: 1133342.16 | AJ86: 1132752.986 | AK86: 589.173981 | AL86: 2385054.666 | AM86: 2384501.116 | AN86: 553.5503155
A87: Female <1 | B87: 0.5 | C87: female | D87: 1 | F87: =HLOOKUP('III Tool Overview'!$H$7,LookUpData_Pop!$B$1:$AV$269,LookUpData_Pop!BB87,FALSE)/5 -> 7301.2 | AP87: 0.1 | AQ87: 1
A88: Female 1-4 | B88: 2.5 | C88: female | D88: 1 | F88: =HLOOKUP('III Tool Overview'!$H$7,LookUpData_Pop!$B$1:$AV$269,LookUpData_Pop!BB88,FALSE)/5 -> 26640.2 | AP88: 0.5 | AQ88: 4
A89: Female 5-9 | B89: 7.5 | C89: female | D89: 1 | F89: =HLOOKUP('III Tool Overview'!$H$7,LookUpData_Pop!$B$1:$AV$269,LookUpData_Pop!BB89,FALSE)/5 -> 29149 | AP89: 0.5 | AQ89: 5
A90: Female 10-14 | B90: 12.5 | C90: female | D90: 1 | F90: =HLOOKUP('III Tool Overview'!$H$7,LookUpData_Pop!$B$1:$AV$269,LookUpData_Pop!BB90,FALSE)/5 -> 30088.8 | AP90: 0.5 | AQ90: 5
A91: Female 15-19 | B91: 17.5 | C91: female | D91: 1 | E91: =HLOOKUP('III Tool Overview'!$H$7,Prevalence!$B$2:$AV$268,Prevalence!AW86,FALSE) -> 0.284892 | F91: =HLOOKUP('III Tool Overview'!$H$7,LookUpData_Pop!$B$1:$AV$269,LookUpData_Pop!BB91,FALSE)/5 -> 34546.2 | G91: ='III Tool Overview'!$H$10/110 -> 0 | H91: =IF('III Tool Overview'!$H$11="Even distribution",Targeting!C89,IF('III Tool Overview'!$H$11="Targeting to Q1",Targeting!D89,IF('III Tool Overview'!$H$11="Targeting to Q1 & Q2",Targeting!E89,IF('III Tool Overview'!$H$11="Proportionate to need",Targeting!F89)))) -> 1443.191216 | I91: =IF('III Tool Overview'!$H$7="Orkney Health Board",0,IF('III Tool Overview'!$H$7="Shetland Health Board",0,IF('III Tool Overview'!$H$7="Western Isles Health Board",0,IF('III Tool Overview'!$H$7="Orkney Islands Local Authority",0,IF('III Tool Overview'!$H$7="Shetland Islands Local Authority",0,IF('III Tool Overview'!$H$7="Eilean Siar Local Authority",0,new_ci(2,B91,C91,D91,$C$1,G91,1,F91,E91*F91))))))) -> 14.07681163 | J91: =IF('III Tool Overview'!$H$7="Orkney Health Board",0,IF('III Tool Overview'!$H$7="Shetland Health Board",0,IF('III Tool Overview'!$H$7="Western Isles Health Board",0,IF('III Tool Overview'!$H$7="Orkney Islands Local Authority",0,IF('III Tool Overview'!$H$7="Shetland Islands Local Authority",0,IF('III Tool Overview'!$H$7="Eilean Siar Local Authority",0,new_ci(2,B91,C91,D91,$C$1,G91+H91,1,F91,E91*F91))))))) -> 14.06603861 | K91: =IF('III Tool Overview'!$H$7="Orkney Health Board",0,IF('III Tool Overview'!$H$7="Shetland Health Board",0,IF('III Tool Overview'!$H$7="Western Isles Health Board",0,IF('III Tool Overview'!$H$7="Orkney Islands Local Authority",0,IF('III Tool Overview'!$H$7="Shetland Islands Local Authority",0,IF('III Tool Overview'!$H$7="Eilean Siar Local Authority",0,new_ci(5,B91,C91,D91,$C$1,G91,1,F91,E91*F91))))))) -> 62.48362304 | L91: =IF('III Tool Overview'!$H$7="Orkney Health Board",0,IF('III Tool Overview'!$H$7="Shetland Health Board",0,IF('III Tool Overview'!$H$7="Western Isles Health Board",0,IF('III Tool Overview'!$H$7="Orkney Islands Local Authority",0,IF('III Tool Overview'!$H$7="Shetland Islands Local Authority",0,IF('III Tool Overview'!$H$7="Eilean Siar Local Authority",0,new_ci(5,B91,C91,D91,$C$1,G91+H91,1,F91,E91*F91))))))) -> 62.45355533 | M91: =IF('III Tool Overview'!$H$7="Orkney Health Board",0,IF('III Tool Overview'!$H$7="Shetland Health Board",0,IF('III Tool Overview'!$H$7="Western Isles Health Board",0,IF('III Tool Overview'!$H$7="Orkney Islands Local Authority",0,IF('III Tool Overview'!$H$7="Shetland Islands Local Authority",0,IF('III Tool Overview'!$H$7="Eilean Siar Local Authority",0,new_ci(10,B91,C91,D91,$C$1,G91,1,F91,E91*F91))))))) -> 168.4400377 | N91: =IF('III Tool Overview'!$H$7="Orkney Health Board",0,IF('III Tool Overview'!$H$7="Shetland Health Board",0,IF('III Tool Overview'!$H$7="Western Isles Health Board",0,IF('III Tool Overview'!$H$7="Orkney Islands Local Authority",0,IF('III Tool Overview'!$H$7="Shetland Islands Local Authority",0,IF('III Tool Overview'!$H$7="Eilean Siar Local Authority",0,new_ci(10,B91,C91,D91,$C$1,G91+H91,1,F91,E91*F91))))))) -> 168.3986863 | O91: =IF('III Tool Overview'!$H$7="Orkney Health Board",0,IF('III Tool Overview'!$H$7="Shetland Health Board",0,IF('III Tool Overview'!$H$7="Western Isles Health Board",0,IF('III Tool Overview'!$H$7="Orkney Islands Local Authority",0,IF('III Tool Overview'!$H$7="Shetland Islands Local Authority",0,IF('III Tool Overview'!$H$7="Eilean Siar Local Authority",0,new_ci(20,B91,C91,D91,$C$1,G91,1,F91,E91*F91))))))) -> 523.8471166 | P91: =IF('III Tool Overview'!$H$7="Orkney Health Board",0,IF('III Tool Overview'!$H$7="Shetland Health Board",0,IF('III Tool Overview'!$H$7="Western Isles Health Board",0,IF('III Tool Overview'!$H$7="Orkney Islands Local Authority",0,IF('III Tool Overview'!$H$7="Shetland Islands Local Authority",0,IF('III Tool Overview'!$H$7="Eilean Siar Local Authority",0,new_ci(20,B91,C91,D91,$C$1,G91+H91,1,F91,E91*F91))))))) -> 523.802622 | Q91: =IF('III Tool Overview'!$H$7="Orkney Health Board",0,IF('III Tool Overview'!$H$7="Shetland Health Board",0,IF('III Tool Overview'!$H$7="Western Isles Health Board",0,IF('III Tool Overview'!$H$7="Orkney Islands Local Authority",0,IF('III Tool Overview'!$H$7="Shetland Islands Local Authority",0,IF('III Tool Overview'!$H$7="Eilean Siar Local Authority",0,new_yll(2,B91,C91,D91,$C$1,G91,1,F91,E91*F91))))))) -> 1140.221742 | R91: =IF('III Tool Overview'!$H$7="Orkney Health Board",0,IF('III Tool Overview'!$H$7="Shetland Health Board",0,IF('III Tool Overview'!$H$7="Western Isles Health Board",0,IF('III Tool Overview'!$H$7="Orkney Islands Local Authority",0,IF('III Tool Overview'!$H$7="Shetland Islands Local Authority",0,IF('III Tool Overview'!$H$7="Eilean Siar Local Authority",0,new_yll(2,B91,C91,D91,$C$1,G91+H91,1,F91,E91*F91))))))) -> 1139.349128 | S91: =Q91-R91 -> 0.8726146945 | T91: =IF('III Tool Overview'!$H$7="Orkney Health Board",0,IF('III Tool Overview'!$H$7="Shetland Health Board",0,IF('III Tool Overview'!$H$7="Western Isles Health Board",0,IF('III Tool Overview'!$H$7="Orkney Islands Local Authority",0,IF('III Tool Overview'!$H$7="Shetland Islands Local Authority",0,IF('III Tool Overview'!$H$7="Eilean Siar Local Authority",0,new_yll(5,B91,C91,D91,$C$1,G91,1,F91,E91*F91))))))) -> 4962.184306 | U91: =IF('III Tool Overview'!$H$7="Orkney Health Board",0,IF('III Tool Overview'!$H$7="Shetland Health Board",0,IF('III Tool Overview'!$H$7="Western Isles Health Board",0,IF('III Tool Overview'!$H$7="Orkney Islands Local Authority",0,IF('III Tool Overview'!$H$7="Shetland Islands Local Authority",0,IF('III Tool Overview'!$H$7="Eilean Siar Local Authority",0,new_yll(5,B91,C91,D91,$C$1,G91+H91,1,F91,E91*F91))))))) -> 4959.783963 | V91: =T91-U91 -> 2.400343672 | W91: =IF('III Tool Overview'!$H$7="Orkney Health Board",0,IF('III Tool Overview'!$H$7="Shetland Health Board",0,IF('III Tool Overview'!$H$7="Western Isles Health Board",0,IF('III Tool Overview'!$H$7="Orkney Islands Local Authority",0,IF('III Tool Overview'!$H$7="Shetland Islands Local Authority",0,IF('III Tool Overview'!$H$7="Eilean Siar Local Authority",0,new_yll(10,B91,C91,D91,$C$1,G91,1,F91,E91*F91))))))) -> 12894.67842 | X91: =IF('III Tool Overview'!$H$7="Orkney Health Board",0,IF('III Tool Overview'!$H$7="Shetland Health Board",0,IF('III Tool Overview'!$H$7="Western Isles Health Board",0,IF('III Tool Overview'!$H$7="Orkney Islands Local Authority",0,IF('III Tool Overview'!$H$7="Shetland Islands Local Authority",0,IF('III Tool Overview'!$H$7="Eilean Siar Local Authority",0,new_yll(10,B91,C91,D91,$C$1,G91+H91,1,F91,E91*F91))))))) -> 12891.42574 | Y91: =W91-X91 -> 3.252682921 | Z91: =IF('III Tool Overview'!$H$7="Orkney Health Board",0,IF('III Tool Overview'!$H$7="Shetland Health Board",0,IF('III Tool Overview'!$H$7="Western Isles Health Board",0,IF('III Tool Overview'!$H$7="Orkney Islands Local Authority",0,IF('III Tool Overview'!$H$7="Shetland Islands Local Authority",0,IF('III Tool Overview'!$H$7="Eilean Siar Local Authority",0,new_yll(20,B91,C91,D91,$C$1,G91,1,F91,E91*F91))))))) -> 36690.01637 | AA91: =IF('III Tool Overview'!$H$7="Orkney Health Board",0,IF('III Tool Overview'!$H$7="Shetland Health Board",0,IF('III Tool Overview'!$H$7="Western Isles Health Board",0,IF('III Tool Overview'!$H$7="Orkney Islands Local Authority",0,IF('III Tool Overview'!$H$7="Shetland Islands Local Authority",0,IF('III Tool Overview'!$H$7="Eilean Siar Local Authority",0,new_yll(20,B91,C91,D91,$C$1,G91+H91,1,F91,E91*F91))))))) -> 36686.54385 | AB91: =Z91-AA91 -> 3.472520779 | AC91: =IF('III Tool Overview'!$H$7="Orkney Health Board",0,IF('III Tool Overview'!$H$7="Shetland Health Board",0,IF('III Tool Overview'!$H$7="Western Isles Health Board",0,IF('III Tool Overview'!$H$7="Orkney Islands Local Authority",0,IF('III Tool Overview'!$H$7="Shetland Islands Local Authority",0,IF('III Tool Overview'!$H$7="Eilean Siar Local Authority",0,hosp_count(2,B91,C91,D91,$C$1,G91,1,F91,E91*F91))))))) -> 4930.260744 | AD91: =IF('III Tool Overview'!$H$7="Orkney Health Board",0,IF('III Tool Overview'!$H$7="Shetland Health Board",0,IF('III Tool Overview'!$H$7="Western Isles Health Board",0,IF('III Tool Overview'!$H$7="Orkney Islands Local Authority",0,IF('III Tool Overview'!$H$7="Shetland Islands Local Authority",0,IF('III Tool Overview'!$H$7="Eilean Siar Local Authority",0,hosp_count(2,B91,C91,D91,$C$1,G91+H91,1,F91,E91*F91))))))) -> 4923.542413 | AE91: =AC91-AD91 -> 6.718330989 | AF91: =IF('III Tool Overview'!$H$7="Orkney Health Board",0,IF('III Tool Overview'!$H$7="Shetland Health Board",0,IF('III Tool Overview'!$H$7="Western Isles Health Board",0,IF('III Tool Overview'!$H$7="Orkney Islands Local Authority",0,IF('III Tool Overview'!$H$7="Shetland Islands Local Authority",0,IF('III Tool Overview'!$H$7="Eilean Siar Local Authority",0,hosp_count(5,B91,C91,D91,$C$1,G91,1,F91,E91*F91))))))) -> 20509.53637 | AG91: =IF('III Tool Overview'!$H$7="Orkney Health Board",0,IF('III Tool Overview'!$H$7="Shetland Health Board",0,IF('III Tool Overview'!$H$7="Western Isles Health Board",0,IF('III Tool Overview'!$H$7="Orkney Islands Local Authority",0,IF('III Tool Overview'!$H$7="Shetland Islands Local Authority",0,IF('III Tool Overview'!$H$7="Eilean Siar Local Authority",0,hosp_count(5,B91,C91,D91,$C$1,G91+H91,1,F91,E91*F91))))))) -> 20491.62033 | AH91: =AF91-AG91 -> 17.91603545 | AI91: =IF('III Tool Overview'!$H$7="Orkney Health Board",0,IF('III Tool Overview'!$H$7="Shetland Health Board",0,IF('III Tool Overview'!$H$7="Western Isles Health Board",0,IF('III Tool Overview'!$H$7="Orkney Islands Local Authority",0,IF('III Tool Overview'!$H$7="Shetland Islands Local Authority",0,IF('III Tool Overview'!$H$7="Eilean Siar Local Authority",0,hosp_count(10,B91,C91,D91,$C$1,G91,1,F91,E91*F91))))))) -> 49305.54586 | AJ91: =IF('III Tool Overview'!$H$7="Orkney Health Board",0,IF('III Tool Overview'!$H$7="Shetland Health Board",0,IF('III Tool Overview'!$H$7="Western Isles Health Board",0,IF('III Tool Overview'!$H$7="Orkney Islands Local Authority",0,IF('III Tool Overview'!$H$7="Shetland Islands Local Authority",0,IF('III Tool Overview'!$H$7="Eilean Siar Local Authority",0,hosp_count(10,B91,C91,D91,$C$1,G91+H91,1,F91,E91*F91))))))) -> 49281.98269 | AK91: =AI91-AJ91 -> 23.5631671 | AL91: =IF('III Tool Overview'!$H$7="Orkney Health Board",0,IF('III Tool Overview'!$H$7="Shetland Health Board",0,IF('III Tool Overview'!$H$7="Western Isles Health Board",0,IF('III Tool Overview'!$H$7="Orkney Islands Local Authority",0,IF('III Tool Overview'!$H$7="Shetland Islands Local Authority",0,IF('III Tool Overview'!$H$7="Eilean Siar Local Authority",0,hosp_count(20,B91,C91,D91,$C$1,G91,1,F91,E91*F91))))))) -> 119162.6312 | AM91: =IF('III Tool Overview'!$H$7="Orkney Health Board",0,IF('III Tool Overview'!$H$7="Shetland Health Board",0,IF('III Tool Overview'!$H$7="Western Isles Health Board",0,IF('III Tool Overview'!$H$7="Orkney Islands Local Authority",0,IF('III Tool Overview'!$H$7="Shetland Islands Local Authority",0,IF('III Tool Overview'!$H$7="Eilean Siar Local Authority",0,hosp_count(20,B91,C91,D91,$C$1,G91+H91,1,F91,E91*F91))))))) -> 119137.7557 | AN91: =AL91-AM91 -> 24.8755489 | AP91: 0.5 | AQ91: 5
A92: Female 20-24 | B92: 22.5 | C92: female | D92: 1 | E92: =HLOOKUP('III Tool Overview'!$H$7,Prevalence!$B$2:$AV$268,Prevalence!AW87,FALSE) -> 0.284892 | F92: =HLOOKUP('III Tool Overview'!$H$7,LookUpData_Pop!$B$1:$AV$269,LookUpData_Pop!BB92,FALSE)/5 -> 40857.2 | G92: ='III Tool Overview'!$H$10/110 -> 0 | H92: =IF('III Tool Overview'!$H$11="Even distribution",Targeting!C90,IF('III Tool Overview'!$H$11="Targeting to Q1",Targeting!D90,IF('III Tool Overview'!$H$11="Targeting to Q1 & Q2",Targeting!E90,IF('III Tool Overview'!$H$11="Proportionate to need",Targeting!F90)))) -> 2277.591952 | I92: =IF('III Tool Overview'!$H$7="Orkney Health Board",0,IF('III Tool Overview'!$H$7="Shetland Health Board",0,IF('III Tool Overview'!$H$7="Western Isles Health Board",0,IF('III Tool Overview'!$H$7="Orkney Islands Local Authority",0,IF('III Tool Overview'!$H$7="Shetland Islands Local Authority",0,IF('III Tool Overview'!$H$7="Eilean Siar Local Authority",0,new_ci(2,B92,C92,D92,$C$1,G92,1,F92,E92*F92))))))) -> 23.10258701 | J92: =IF('III Tool Overview'!$H$7="Orkney Health Board",0,IF('III Tool Overview'!$H$7="Shetland Health Board",0,IF('III Tool Overview'!$H$7="Western Isles Health Board",0,IF('III Tool Overview'!$H$7="Orkney Islands Local Authority",0,IF('III Tool Overview'!$H$7="Shetland Islands Local Authority",0,IF('III Tool Overview'!$H$7="Eilean Siar Local Authority",0,new_ci(2,B92,C92,D92,$C$1,G92+H92,1,F92,E92*F92))))))) -> 23.0789894 | K92: =IF('III Tool Overview'!$H$7="Orkney Health Board",0,IF('III Tool Overview'!$H$7="Shetland Health Board",0,IF('III Tool Overview'!$H$7="Western Isles Health Board",0,IF('III Tool Overview'!$H$7="Orkney Islands Local Authority",0,IF('III Tool Overview'!$H$7="Shetland Islands Local Authority",0,IF('III Tool Overview'!$H$7="Eilean Siar Local Authority",0,new_ci(5,B92,C92,D92,$C$1,G92,1,F92,E92*F92))))))) -> 102.5187116 | L92: =IF('III Tool Overview'!$H$7="Orkney Health Board",0,IF('III Tool Overview'!$H$7="Shetland Health Board",0,IF('III Tool Overview'!$H$7="Western Isles Health Board",0,IF('III Tool Overview'!$H$7="Orkney Islands Local Authority",0,IF('III Tool Overview'!$H$7="Shetland Islands Local Authority",0,IF('III Tool Overview'!$H$7="Eilean Siar Local Authority",0,new_ci(5,B92,C92,D92,$C$1,G92+H92,1,F92,E92*F92))))))) -> 102.4528918 | M92: =IF('III Tool Overview'!$H$7="Orkney Health Board",0,IF('III Tool Overview'!$H$7="Shetland Health Board",0,IF('III Tool Overview'!$H$7="Western Isles Health Board",0,IF('III Tool Overview'!$H$7="Orkney Islands Local Authority",0,IF('III Tool Overview'!$H$7="Shetland Islands Local Authority",0,IF('III Tool Overview'!$H$7="Eilean Siar Local Authority",0,new_ci(10,B92,C92,D92,$C$1,G92,1,F92,E92*F92))))))) -> 276.1980539 | N92: =IF('III Tool Overview'!$H$7="Orkney Health Board",0,IF('III Tool Overview'!$H$7="Shetland Health Board",0,IF('III Tool Overview'!$H$7="Western Isles Health Board",0,IF('III Tool Overview'!$H$7="Orkney Islands Local Authority",0,IF('III Tool Overview'!$H$7="Shetland Islands Local Authority",0,IF('III Tool Overview'!$H$7="Eilean Siar Local Authority",0,new_ci(10,B92,C92,D92,$C$1,G92+H92,1,F92,E92*F92))))))) -> 276.1076593 | O92: =IF('III Tool Overview'!$H$7="Orkney Health Board",0,IF('III Tool Overview'!$H$7="Shetland Health Board",0,IF('III Tool Overview'!$H$7="Western Isles Health Board",0,IF('III Tool Overview'!$H$7="Orkney Islands Local Authority",0,IF('III Tool Overview'!$H$7="Shetland Islands Local Authority",0,IF('III Tool Overview'!$H$7="Eilean Siar Local Authority",0,new_ci(20,B92,C92,D92,$C$1,G92,1,F92,E92*F92))))))) -> 857.2326557 | P92: =IF('III Tool Overview'!$H$7="Orkney Health Board",0,IF('III Tool Overview'!$H$7="Shetland Health Board",0,IF('III Tool Overview'!$H$7="Western Isles Health Board",0,IF('III Tool Overview'!$H$7="Orkney Islands Local Authority",0,IF('III Tool Overview'!$H$7="Shetland Islands Local Authority",0,IF('III Tool Overview'!$H$7="Eilean Siar Local Authority",0,new_ci(20,B92,C92,D92,$C$1,G92+H92,1,F92,E92*F92))))))) -> 857.1358465 | Q92: =IF('III Tool Overview'!$H$7="Orkney Health Board",0,IF('III Tool Overview'!$H$7="Shetland Health Board",0,IF('III Tool Overview'!$H$7="Western Isles Health Board",0,IF('III Tool Overview'!$H$7="Orkney Islands Local Authority",0,IF('III Tool Overview'!$H$7="Shetland Islands Local Authority",0,IF('III Tool Overview'!$H$7="Eilean Siar Local Authority",0,new_yll(2,B92,C92,D92,$C$1,G92,1,F92,E92*F92))))))) -> 1778.8992 | R92: =IF('III Tool Overview'!$H$7="Orkney Health Board",0,IF('III Tool Overview'!$H$7="Shetland Health Board",0,IF('III Tool Overview'!$H$7="Western Isles Health Board",0,IF('III Tool Overview'!$H$7="Orkney Islands Local Authority",0,IF('III Tool Overview'!$H$7="Shetland Islands Local Authority",0,IF('III Tool Overview'!$H$7="Eilean Siar Local Authority",0,new_yll(2,B92,C92,D92,$C$1,G92+H92,1,F92,E92*F92))))))) -> 1777.082184 | S92: =Q92-R92 -> 1.817016038 | T92: =IF('III Tool Overview'!$H$7="Orkney Health Board",0,IF('III Tool Overview'!$H$7="Shetland Health Board",0,IF('III Tool Overview'!$H$7="Western Isles Health Board",0,IF('III Tool Overview'!$H$7="Orkney Islands Local Authority",0,IF('III Tool Overview'!$H$7="Shetland Islands Local Authority",0,IF('III Tool Overview'!$H$7="Eilean Siar Local Authority",0,new_yll(5,B92,C92,D92,$C$1,G92,1,F92,E92*F92))))))) -> 7731.549051 | U92: =IF('III Tool Overview'!$H$7="Orkney Health Board",0,IF('III Tool Overview'!$H$7="Shetland Health Board",0,IF('III Tool Overview'!$H$7="Western Isles Health Board",0,IF('III Tool Overview'!$H$7="Orkney Islands Local Authority",0,IF('III Tool Overview'!$H$7="Shetland Islands Local Authority",0,IF('III Tool Overview'!$H$7="Eilean Siar Local Authority",0,new_yll(5,B92,C92,D92,$C$1,G92+H92,1,F92,E92*F92))))))) -> 7726.557808 | V92: =T92-U92 -> 4.991242429 | W92: =IF('III Tool Overview'!$H$7="Orkney Health Board",0,IF('III Tool Overview'!$H$7="Shetland Health Board",0,IF('III Tool Overview'!$H$7="Western Isles Health Board",0,IF('III Tool Overview'!$H$7="Orkney Islands Local Authority",0,IF('III Tool Overview'!$H$7="Shetland Islands Local Authority",0,IF('III Tool Overview'!$H$7="Eilean Siar Local Authority",0,new_yll(10,B92,C92,D92,$C$1,G92,1,F92,E92*F92))))))) -> 20039.52913 | X92: =IF('III Tool Overview'!$H$7="Orkney Health Board",0,IF('III Tool Overview'!$H$7="Shetland Health Board",0,IF('III Tool Overview'!$H$7="Western Isles Health Board",0,IF('III Tool Overview'!$H$7="Orkney Islands Local Authority",0,IF('III Tool Overview'!$H$7="Shetland Islands Local Authority",0,IF('III Tool Overview'!$H$7="Eilean Siar Local Authority",0,new_yll(10,B92,C92,D92,$C$1,G92+H92,1,F92,E92*F92))))))) -> 20032.77978 | Y92: =W92-X92 -> 6.749354518 | Z92: =IF('III Tool Overview'!$H$7="Orkney Health Board",0,IF('III Tool Overview'!$H$7="Shetland Health Board",0,IF('III Tool Overview'!$H$7="Western Isles Health Board",0,IF('III Tool Overview'!$H$7="Orkney Islands Local Authority",0,IF('III Tool Overview'!$H$7="Shetland Islands Local Authority",0,IF('III Tool Overview'!$H$7="Eilean Siar Local Authority",0,new_yll(20,B92,C92,D92,$C$1,G92,1,F92,E92*F92))))))) -> 56618.94362 | AA92: =IF('III Tool Overview'!$H$7="Orkney Health Board",0,IF('III Tool Overview'!$H$7="Shetland Health Board",0,IF('III Tool Overview'!$H$7="Western Isles Health Board",0,IF('III Tool Overview'!$H$7="Orkney Islands Local Authority",0,IF('III Tool Overview'!$H$7="Shetland Islands Local Authority",0,IF('III Tool Overview'!$H$7="Eilean Siar Local Authority",0,new_yll(20,B92,C92,D92,$C$1,G92+H92,1,F92,E92*F92))))))) -> 56611.76989 | AB92: =Z92-AA92 -> 7.173727803 | AC92: =IF('III Tool Overview'!$H$7="Orkney Health Board",0,IF('III Tool Overview'!$H$7="Shetland Health Board",0,IF('III Tool Overview'!$H$7="Western Isles Health Board",0,IF('III Tool Overview'!$H$7="Orkney Islands Local Authority",0,IF('III Tool Overview'!$H$7="Shetland Islands Local Authority",0,IF('III Tool Overview'!$H$7="Eilean Siar Local Authority",0,hosp_count(2,B92,C92,D92,$C$1,G92,1,F92,E92*F92))))))) -> 6435.057057 | AD92: =IF('III Tool Overview'!$H$7="Orkney Health Board",0,IF('III Tool Overview'!$H$7="Shetland Health Board",0,IF('III Tool Overview'!$H$7="Western Isles Health Board",0,IF('III Tool Overview'!$H$7="Orkney Islands Local Authority",0,IF('III Tool Overview'!$H$7="Shetland Islands Local Authority",0,IF('III Tool Overview'!$H$7="Eilean Siar Local Authority",0,hosp_count(2,B92,C92,D92,$C$1,G92+H92,1,F92,E92*F92))))))) -> 6423.352285 | AE92: =AC92-AD92 -> 11.70477164 | AF92: =IF('III Tool Overview'!$H$7="Orkney Health Board",0,IF('III Tool Overview'!$H$7="Shetland Health Board",0,IF('III Tool Overview'!$H$7="Western Isles Health Board",0,IF('III Tool Overview'!$H$7="Orkney Islands Local Authority",0,IF('III Tool Overview'!$H$7="Shetland Islands Local Authority",0,IF('III Tool Overview'!$H$7="Eilean Siar Local Authority",0,hosp_count(5,B92,C92,D92,$C$1,G92,1,F92,E92*F92))))))) -> 26762.55734 | AG92: =IF('III Tool Overview'!$H$7="Orkney Health Board",0,IF('III Tool Overview'!$H$7="Shetland Health Board",0,IF('III Tool Overview'!$H$7="Western Isles Health Board",0,IF('III Tool Overview'!$H$7="Orkney Islands Local Authority",0,IF('III Tool Overview'!$H$7="Shetland Islands Local Authority",0,IF('III Tool Overview'!$H$7="Eilean Siar Local Authority",0,hosp_count(5,B92,C92,D92,$C$1,G92+H92,1,F92,E92*F92))))))) -> 26731.35643 | AH92: =AF92-AG92 -> 31.2009118 | AI92: =IF('III Tool Overview'!$H$7="Orkney Health Board",0,IF('III Tool Overview'!$H$7="Shetland Health Board",0,IF('III Tool Overview'!$H$7="Western Isles Health Board",0,IF('III Tool Overview'!$H$7="Orkney Islands Local Authority",0,IF('III Tool Overview'!$H$7="Shetland Islands Local Authority",0,IF('III Tool Overview'!$H$7="Eilean Siar Local Authority",0,hosp_count(10,B92,C92,D92,$C$1,G92,1,F92,E92*F92))))))) -> 64303.85275 | AJ92: =IF('III Tool Overview'!$H$7="Orkney Health Board",0,IF('III Tool Overview'!$H$7="Shetland Health Board",0,IF('III Tool Overview'!$H$7="Western Isles Health Board",0,IF('III Tool Overview'!$H$7="Orkney Islands Local Authority",0,IF('III Tool Overview'!$H$7="Shetland Islands Local Authority",0,IF('III Tool Overview'!$H$7="Eilean Siar Local Authority",0,hosp_count(10,B92,C92,D92,$C$1,G92+H92,1,F92,E92*F92))))))) -> 64262.84647 | AK92: =AI92-AJ92 -> 41.00628162 | AL92: =IF('III Tool Overview'!$H$7="Orkney Health Board",0,IF('III Tool Overview'!$H$7="Shetland Health Board",0,IF('III Tool Overview'!$H$7="Western Isles Health Board",0,IF('III Tool Overview'!$H$7="Orkney Islands Local Authority",0,IF('III Tool Overview'!$H$7="Shetland Islands Local Authority",0,IF('III Tool Overview'!$H$7="Eilean Siar Local Authority",0,hosp_count(20,B92,C92,D92,$C$1,G92,1,F92,E92*F92))))))) -> 155156.536 | AM92: =IF('III Tool Overview'!$H$7="Orkney Health Board",0,IF('III Tool Overview'!$H$7="Shetland Health Board",0,IF('III Tool Overview'!$H$7="Western Isles Health Board",0,IF('III Tool Overview'!$H$7="Orkney Islands Local Authority",0,IF('III Tool Overview'!$H$7="Shetland Islands Local Authority",0,IF('III Tool Overview'!$H$7="Eilean Siar Local Authority",0,hosp_count(20,B92,C92,D92,$C$1,G92+H92,1,F92,E92*F92))))))) -> 155113.3141 | AN92: =AL92-AM92 -> 43.22187859 | AP92: 0.5 | AQ92: 5
A93: Female 25-29 | B93: 27.5 | C93: female | D93: 1 | E93: =HLOOKUP('III Tool Overview'!$H$7,Prevalence!$B$2:$AV$268,Prevalence!AW88,FALSE) -> 0.191206 | F93: =HLOOKUP('III Tool Overview'!$H$7,LookUpData_Pop!$B$1:$AV$269,LookUpData_Pop!BB93,FALSE)/5 -> 40641.4 | G93: ='III Tool Overview'!$H$10/110 -> 0 | H93: =IF('III Tool Overview'!$H$11="Even distribution",Targeting!C91,IF('III Tool Overview'!$H$11="Targeting to Q1",Targeting!D91,IF('III Tool Overview'!$H$11="Targeting to Q1 & Q2",Targeting!E91,IF('III Tool Overview'!$H$11="Proportionate to need",Targeting!F91)))) -> 1590.031691 | I93: =IF('III Tool Overview'!$H$7="Orkney Health Board",0,IF('III Tool Overview'!$H$7="Shetland Health Board",0,IF('III Tool Overview'!$H$7="Western Isles Health Board",0,IF('III Tool Overview'!$H$7="Orkney Islands Local Authority",0,IF('III Tool Overview'!$H$7="Shetland Islands Local Authority",0,IF('III Tool Overview'!$H$7="Eilean Siar Local Authority",0,new_ci(2,B93,C93,D93,$C$1,G93,1,F93,E93*F93))))))) -> 37.56352558 | J93: =IF('III Tool Overview'!$H$7="Orkney Health Board",0,IF('III Tool Overview'!$H$7="Shetland Health Board",0,IF('III Tool Overview'!$H$7="Western Isles Health Board",0,IF('III Tool Overview'!$H$7="Orkney Islands Local Authority",0,IF('III Tool Overview'!$H$7="Shetland Islands Local Authority",0,IF('III Tool Overview'!$H$7="Eilean Siar Local Authority",0,new_ci(2,B93,C93,D93,$C$1,G93+H93,1,F93,E93*F93))))))) -> 37.5360083 | K93: =IF('III Tool Overview'!$H$7="Orkney Health Board",0,IF('III Tool Overview'!$H$7="Shetland Health Board",0,IF('III Tool Overview'!$H$7="Western Isles Health Board",0,IF('III Tool Overview'!$H$7="Orkney Islands Local Authority",0,IF('III Tool Overview'!$H$7="Shetland Islands Local Authority",0,IF('III Tool Overview'!$H$7="Eilean Siar Local Authority",0,new_ci(5,B93,C93,D93,$C$1,G93,1,F93,E93*F93))))))) -> 166.5863008 | L93: =IF('III Tool Overview'!$H$7="Orkney Health Board",0,IF('III Tool Overview'!$H$7="Shetland Health Board",0,IF('III Tool Overview'!$H$7="Western Isles Health Board",0,IF('III Tool Overview'!$H$7="Orkney Islands Local Authority",0,IF('III Tool Overview'!$H$7="Shetland Islands Local Authority",0,IF('III Tool Overview'!$H$7="Eilean Siar Local Authority",0,new_ci(5,B93,C93,D93,$C$1,G93+H93,1,F93,E93*F93))))))) -> 166.5096646 | M93: =IF('III Tool Overview'!$H$7="Orkney Health Board",0,IF('III Tool Overview'!$H$7="Shetland Health Board",0,IF('III Tool Overview'!$H$7="Western Isles Health Board",0,IF('III Tool Overview'!$H$7="Orkney Islands Local Authority",0,IF('III Tool Overview'!$H$7="Shetland Islands Local Authority",0,IF('III Tool Overview'!$H$7="Eilean Siar Local Authority",0,new_ci(10,B93,C93,D93,$C$1,G93,1,F93,E93*F93))))))) -> 448.1941378 | N93: =IF('III Tool Overview'!$H$7="Orkney Health Board",0,IF('III Tool Overview'!$H$7="Shetland Health Board",0,IF('III Tool Overview'!$H$7="Western Isles Health Board",0,IF('III Tool Overview'!$H$7="Orkney Islands Local Authority",0,IF('III Tool Overview'!$H$7="Shetland Islands Local Authority",0,IF('III Tool Overview'!$H$7="Eilean Siar Local Authority",0,new_ci(10,B93,C93,D93,$C$1,G93+H93,1,F93,E93*F93))))))) -> 448.0892395 | O93: =IF('III Tool Overview'!$H$7="Orkney Health Board",0,IF('III Tool Overview'!$H$7="Shetland Health Board",0,IF('III Tool Overview'!$H$7="Western Isles Health Board",0,IF('III Tool Overview'!$H$7="Orkney Islands Local Authority",0,IF('III Tool Overview'!$H$7="Shetland Islands Local Authority",0,IF('III Tool Overview'!$H$7="Eilean Siar Local Authority",0,new_ci(20,B93,C93,D93,$C$1,G93,1,F93,E93*F93))))))) -> 1384.70835 | P93: =IF('III Tool Overview'!$H$7="Orkney Health Board",0,IF('III Tool Overview'!$H$7="Shetland Health Board",0,IF('III Tool Overview'!$H$7="Western Isles Health Board",0,IF('III Tool Overview'!$H$7="Orkney Islands Local Authority",0,IF('III Tool Overview'!$H$7="Shetland Islands Local Authority",0,IF('III Tool Overview'!$H$7="Eilean Siar Local Authority",0,new_ci(20,B93,C93,D93,$C$1,G93+H93,1,F93,E93*F93))))))) -> 1384.59727 | Q93: =IF('III Tool Overview'!$H$7="Orkney Health Board",0,IF('III Tool Overview'!$H$7="Shetland Health Board",0,IF('III Tool Overview'!$H$7="Western Isles Health Board",0,IF('III Tool Overview'!$H$7="Orkney Islands Local Authority",0,IF('III Tool Overview'!$H$7="Shetland Islands Local Authority",0,IF('III Tool Overview'!$H$7="Eilean Siar Local Authority",0,new_yll(2,B93,C93,D93,$C$1,G93,1,F93,E93*F93))))))) -> 2667.010316 | R93: =IF('III Tool Overview'!$H$7="Orkney Health Board",0,IF('III Tool Overview'!$H$7="Shetland Health Board",0,IF('III Tool Overview'!$H$7="Western Isles Health Board",0,IF('III Tool Overview'!$H$7="Orkney Islands Local Authority",0,IF('III Tool Overview'!$H$7="Shetland Islands Local Authority",0,IF('III Tool Overview'!$H$7="Eilean Siar Local Authority",0,new_yll(2,B93,C93,D93,$C$1,G93+H93,1,F93,E93*F93))))))) -> 2665.05659 | S93: 1.953726335 | T93: =IF('III Tool Overview'!$H$7="Orkney Health Board",0,IF('III Tool Overview'!$H$7="Shetland Health Board",0,IF('III Tool Overview'!$H$7="Western Isles Health Board",0,IF('III Tool Overview'!$H$7="Orkney Islands Local Authority",0,IF('III Tool Overview'!$H$7="Shetland Islands Local Authority",0,IF('III Tool Overview'!$H$7="Eilean Siar Local Authority",0,new_yll(5,B93,C93,D93,$C$1,G93,1,F93,E93*F93))))))) -> 11563.83445 | U93: =IF('III Tool Overview'!$H$7="Orkney Health Board",0,IF('III Tool Overview'!$H$7="Shetland Health Board",0,IF('III Tool Overview'!$H$7="Western Isles Health Board",0,IF('III Tool Overview'!$H$7="Orkney Islands Local Authority",0,IF('III Tool Overview'!$H$7="Shetland Islands Local Authority",0,IF('III Tool Overview'!$H$7="Eilean Siar Local Authority",0,new_yll(5,B93,C93,D93,$C$1,G93+H93,1,F93,E93*F93))))))) -> 11558.48267 | V93: 5.3517845 | W93: =IF('III Tool Overview'!$H$7="Orkney Health Board",0,IF('III Tool Overview'!$H$7="Shetland Health Board",0,IF('III Tool Overview'!$H$7="Western Isles Health Board",0,IF('III Tool Overview'!$H$7="Orkney Islands Local Authority",0,IF('III Tool Overview'!$H$7="Shetland Islands Local Authority",0,IF('III Tool Overview'!$H$7="Eilean Siar Local Authority",0,new_yll(10,B93,C93,D93,$C$1,G93,1,F93,E93*F93))))))) -> 29830.9462 | X93: =IF('III Tool Overview'!$H$7="Orkney Health Board",0,IF('III Tool Overview'!$H$7="Shetland Health Board",0,IF('III Tool Overview'!$H$7="Western Isles Health Board",0,IF('III Tool Overview'!$H$7="Orkney Islands Local Authority",0,IF('III Tool Overview'!$H$7="Shetland Islands Local Authority",0,IF('III Tool Overview'!$H$7="Eilean Siar Local Authority",0,new_yll(10,B93,C93,D93,$C$1,G93+H93,1,F93,E93*F93))))))) -> 29823.7418 | Y93: 7.204401063 | Z93: =IF('III Tool Overview'!$H$7="Orkney Health Board",0,IF('III Tool Overview'!$H$7="Shetland Health Board",0,IF('III Tool Overview'!$H$7="Western Isles Health Board",0,IF('III Tool Overview'!$H$7="Orkney Islands Local Authority",0,IF('III Tool Overview'!$H$7="Shetland Islands Local Authority",0,IF('III Tool Overview'!$H$7="Eilean Siar Local Authority",0,new_yll(20,B93,C93,D93,$C$1,G93,1,F93,E93*F93))))))) -> 83177.72864 | AA93: =IF('III Tool Overview'!$H$7="Orkney Health Board",0,IF('III Tool Overview'!$H$7="Shetland Health Board",0,IF('III Tool Overview'!$H$7="Western Isles Health Board",0,IF('III Tool Overview'!$H$7="Orkney Islands Local Authority",0,IF('III Tool Overview'!$H$7="Shetland Islands Local Authority",0,IF('III Tool Overview'!$H$7="Eilean Siar Local Authority",0,new_yll(20,B93,C93,D93,$C$1,G93+H93,1,F93,E93*F93))))))) -> 83170.1483 | AB93: 7.580341424 | AC93: =IF('III Tool Overview'!$H$7="Orkney Health Board",0,IF('III Tool Overview'!$H$7="Shetland Health Board",0,IF('III Tool Overview'!$H$7="Western Isles Health Board",0,IF('III Tool Overview'!$H$7="Orkney Islands Local Authority",0,IF('III Tool Overview'!$H$7="Shetland Islands Local Authority",0,IF('III Tool Overview'!$H$7="Eilean Siar Local Authority",0,hosp_count(2,B93,C93,D93,$C$1,G93,1,F93,E93*F93))))))) -> 7421.193504 | AD93: =IF('III Tool Overview'!$H$7="Orkney Health Board",0,IF('III Tool Overview'!$H$7="Shetland Health Board",0,IF('III Tool Overview'!$H$7="Western Isles Health Board",0,IF('III Tool Overview'!$H$7="Orkney Islands Local Authority",0,IF('III Tool Overview'!$H$7="Shetland Islands Local Authority",0,IF('III Tool Overview'!$H$7="Eilean Siar Local Authority",0,hosp_count(2,B93,C93,D93,$C$1,G93+H93,1,F93,E93*F93))))))) -> 7411.634739 | AE93: 9.558765055 | AF93: =IF('III Tool Overview'!$H$7="Orkney Health Board",0,IF('III Tool Overview'!$H$7="Shetland Health Board",0,IF('III Tool Overview'!$H$7="Western Isles Health Board",0,IF('III Tool Overview'!$H$7="Orkney Islands Local Authority",0,IF('III Tool Overview'!$H$7="Shetland Islands Local Authority",0,IF('III Tool Overview'!$H$7="Eilean Siar Local Authority",0,hosp_count(5,B93,C93,D93,$C$1,G93,1,F93,E93*F93))))))) -> 30845.94287 | AG93: =IF('III Tool Overview'!$H$7="Orkney Health Board",0,IF('III Tool Overview'!$H$7="Shetland Health Board",0,IF('III Tool Overview'!$H$7="Western Isles Health Board",0,IF('III Tool Overview'!$H$7="Orkney Islands Local Authority",0,IF('III Tool Overview'!$H$7="Shetland Islands Local Authority",0,IF('III Tool Overview'!$H$7="Eilean Siar Local Authority",0,hosp_count(5,B93,C93,D93,$C$1,G93+H93,1,F93,E93*F93))))))) -> 30820.48729 | AH93: 25.45557868 | AI93: =IF('III Tool Overview'!$H$7="Orkney Health Board",0,IF('III Tool Overview'!$H$7="Shetland Health Board",0,IF('III Tool Overview'!$H$7="Western Isles Health Board",0,IF('III Tool Overview'!$H$7="Orkney Islands Local Authority",0,IF('III Tool Overview'!$H$7="Shetland Islands Local Authority",0,IF('III Tool Overview'!$H$7="Eilean Siar Local Authority",0,hosp_count(10,B93,C93,D93,$C$1,G93,1,F93,E93*F93))))))) -> 74026.18403 | AJ93: =IF('III Tool Overview'!$H$7="Orkney Health Board",0,IF('III Tool Overview'!$H$7="Shetland Health Board",0,IF('III Tool Overview'!$H$7="Western Isles Health Board",0,IF('III Tool Overview'!$H$7="Orkney Islands Local Authority",0,IF('III Tool Overview'!$H$7="Shetland Islands Local Authority",0,IF('III Tool Overview'!$H$7="Eilean Siar Local Authority",0,hosp_count(10,B93,C93,D93,$C$1,G93+H93,1,F93,E93*F93))))))) -> 73992.78563 | AK93: 33.39839946 | AL93: =IF('III Tool Overview'!$H$7="Orkney Health Board",0,IF('III Tool Overview'!$H$7="Shetland Health Board",0,IF('III Tool Overview'!$H$7="Western Isles Health Board",0,IF('III Tool Overview'!$H$7="Orkney Islands Local Authority",0,IF('III Tool Overview'!$H$7="Shetland Islands Local Authority",0,IF('III Tool Overview'!$H$7="Eilean Siar Local Authority",0,hosp_count(20,B93,C93,D93,$C$1,G93,1,F93,E93*F93))))))) -> 177955.1787 | AM93: =IF('III Tool Overview'!$H$7="Orkney Health Board",0,IF('III Tool Overview'!$H$7="Shetland Health Board",0,IF('III Tool Overview'!$H$7="Western Isles Health Board",0,IF('III Tool Overview'!$H$7="Orkney Islands Local Authority",0,IF('III Tool Overview'!$H$7="Shetland Islands Local Authority",0,IF('III Tool Overview'!$H$7="Eilean Siar Local Authority",0,hosp_count(20,B93,C93,D93,$C$1,G93+H93,1,F93,E93*F93))))))) -> 177920.1081 | AN93: 35.07059713 | AP93: 0.5 | AQ93: 5
A94: Female 30-34 | B94: 32.5 | C94: female | D94: 1 | E94: =HLOOKUP('III Tool Overview'!$H$7,Prevalence!$B$2:$AV$268,Prevalence!AW89,FALSE) -> 0.191206 | F94: =HLOOKUP('III Tool Overview'!$H$7,LookUpData_Pop!$B$1:$AV$269,LookUpData_Pop!BB94,FALSE)/5 -> 34168.2 | G94: ='III Tool Overview'!$H$10/110 -> 0 | H94: =IF('III Tool Overview'!$H$11="Even distribution",Targeting!C92,IF('III Tool Overview'!$H$11="Targeting to Q1",Targeting!D92,IF('III Tool Overview'!$H$11="Targeting to Q1 & Q2",Targeting!E92,IF('III Tool Overview'!$H$11="Proportionate to need",Targeting!F92)))) -> 1426.054797 | I94: =IF('III Tool Overview'!$H$7="Orkney Health Board",0,IF('III Tool Overview'!$H$7="Shetland Health Board",0,IF('III Tool Overview'!$H$7="Western Isles Health Board",0,IF('III Tool Overview'!$H$7="Orkney Islands Local Authority",0,IF('III Tool Overview'!$H$7="Shetland Islands Local Authority",0,IF('III Tool Overview'!$H$7="Eilean Siar Local Authority",0,new_ci(2,B94,C94,D94,$C$1,G94,1,F94,E94*F94))))))) -> 43.81914975 | J94: =IF('III Tool Overview'!$H$7="Orkney Health Board",0,IF('III Tool Overview'!$H$7="Shetland Health Board",0,IF('III Tool Overview'!$H$7="Western Isles Health Board",0,IF('III Tool Overview'!$H$7="Orkney Islands Local Authority",0,IF('III Tool Overview'!$H$7="Shetland Islands Local Authority",0,IF('III Tool Overview'!$H$7="Eilean Siar Local Authority",0,new_ci(2,B94,C94,D94,$C$1,G94+H94,1,F94,E94*F94))))))) -> 43.78491501 | K94: =IF('III Tool Overview'!$H$7="Orkney Health Board",0,IF('III Tool Overview'!$H$7="Shetland Health Board",0,IF('III Tool Overview'!$H$7="Western Isles Health Board",0,IF('III Tool Overview'!$H$7="Orkney Islands Local Authority",0,IF('III Tool Overview'!$H$7="Shetland Islands Local Authority",0,IF('III Tool Overview'!$H$7="Eilean Siar Local Authority",0,new_ci(5,B94,C94,D94,$C$1,G94,1,F94,E94*F94))))))) -> 194.2078592 | L94: =IF('III Tool Overview'!$H$7="Orkney Health Board",0,IF('III Tool Overview'!$H$7="Shetland Health Board",0,IF('III Tool Overview'!$H$7="Western Isles Health Board",0,IF('III Tool Overview'!$H$7="Orkney Islands Local Authority",0,IF('III Tool Overview'!$H$7="Shetland Islands Local Authority",0,IF('III Tool Overview'!$H$7="Eilean Siar Local Authority",0,new_ci(5,B94,C94,D94,$C$1,G94+H94,1,F94,E94*F94))))))) -> 194.1126544 | M94: =IF('III Tool Overview'!$H$7="Orkney Health Board",0,IF('III Tool Overview'!$H$7="Shetland Health Board",0,IF('III Tool Overview'!$H$7="Western Isles Health Board",0,IF('III Tool Overview'!$H$7="Orkney Islands Local Authority",0,IF('III Tool Overview'!$H$7="Shetland Islands Local Authority",0,IF('III Tool Overview'!$H$7="Eilean Siar Local Authority",0,new_ci(10,B94,C94,D94,$C$1,G94,1,F94,E94*F94))))))) -> 521.7980218 | N94: =IF('III Tool Overview'!$H$7="Orkney Health Board",0,IF('III Tool Overview'!$H$7="Shetland Health Board",0,IF('III Tool Overview'!$H$7="Western Isles Health Board",0,IF('III Tool Overview'!$H$7="Orkney Islands Local Authority",0,IF('III Tool Overview'!$H$7="Shetland Islands Local Authority",0,IF('III Tool Overview'!$H$7="Eilean Siar Local Authority",0,new_ci(10,B94,C94,D94,$C$1,G94+H94,1,F94,E94*F94))))))) -> 521.668127 | O94: =IF('III Tool Overview'!$H$7="Orkney Health Board",0,IF('III Tool Overview'!$H$7="Shetland Health Board",0,IF('III Tool Overview'!$H$7="Western Isles Health Board",0,IF('III Tool Overview'!$H$7="Orkney Islands Local Authority",0,IF('III Tool Overview'!$H$7="Shetland Islands Local Authority",0,IF('III Tool Overview'!$H$7="Eilean Siar Local Authority",0,new_ci(20,B94,C94,D94,$C$1,G94,1,F94,E94*F94))))))) -> 1604.761643 | P94: =IF('III Tool Overview'!$H$7="Orkney Health Board",0,IF('III Tool Overview'!$H$7="Shetland Health Board",0,IF('III Tool Overview'!$H$7="Western Isles Health Board",0,IF('III Tool Overview'!$H$7="Orkney Islands Local Authority",0,IF('III Tool Overview'!$H$7="Shetland Islands Local Authority",0,IF('III Tool Overview'!$H$7="Eilean Siar Local Authority",0,new_ci(20,B94,C94,D94,$C$1,G94+H94,1,F94,E94*F94))))))) -> 1604.625586 | Q94: =IF('III Tool Overview'!$H$7="Orkney Health Board",0,IF('III Tool Overview'!$H$7="Shetland Health Board",0,IF('III Tool Overview'!$H$7="Western Isles Health Board",0,IF('III Tool Overview'!$H$7="Orkney Islands Local Authority",0,IF('III Tool Overview'!$H$7="Shetland Islands Local Authority",0,IF('III Tool Overview'!$H$7="Eilean Siar Local Authority",0,new_yll(2,B94,C94,D94,$C$1,G94,1,F94,E94*F94))))))) -> 2935.883033 | R94: =IF('III Tool Overview'!$H$7="Orkney Health Board",0,IF('III Tool Overview'!$H$7="Shetland Health Board",0,IF('III Tool Overview'!$H$7="Western Isles Health Board",0,IF('III Tool Overview'!$H$7="Orkney Islands Local Authority",0,IF('III Tool Overview'!$H$7="Shetland Islands Local Authority",0,IF('III Tool Overview'!$H$7="Eilean Siar Local Authority",0,new_yll(2,B94,C94,D94,$C$1,G94+H94,1,F94,E94*F94))))))) -> 2933.589306 | S94: 2.293727186 | T94: =IF('III Tool Overview'!$H$7="Orkney Health Board",0,IF('III Tool Overview'!$H$7="Shetland Health Board",0,IF('III Tool Overview'!$H$7="Western Isles Health Board",0,IF('III Tool Overview'!$H$7="Orkney Islands Local Authority",0,IF('III Tool Overview'!$H$7="Shetland Islands Local Authority",0,IF('III Tool Overview'!$H$7="Eilean Siar Local Authority",0,new_yll(5,B94,C94,D94,$C$1,G94,1,F94,E94*F94))))))) -> 12704.49158 | U94: =IF('III Tool Overview'!$H$7="Orkney Health Board",0,IF('III Tool Overview'!$H$7="Shetland Health Board",0,IF('III Tool Overview'!$H$7="Western Isles Health Board",0,IF('III Tool Overview'!$H$7="Orkney Islands Local Authority",0,IF('III Tool Overview'!$H$7="Shetland Islands Local Authority",0,IF('III Tool Overview'!$H$7="Eilean Siar Local Authority",0,new_yll(5,B94,C94,D94,$C$1,G94+H94,1,F94,E94*F94))))))) -> 12698.22375 | V94: 6.267829086 | W94: =IF('III Tool Overview'!$H$7="Orkney Health Board",0,IF('III Tool Overview'!$H$7="Shetland Health Board",0,IF('III Tool Overview'!$H$7="Western Isles Health Board",0,IF('III Tool Overview'!$H$7="Orkney Islands Local Authority",0,IF('III Tool Overview'!$H$7="Shetland Islands Local Authority",0,IF('III Tool Overview'!$H$7="Eilean Siar Local Authority",0,new_yll(10,B94,C94,D94,$C$1,G94,1,F94,E94*F94))))))) -> 32644.3437 | X94: =IF('III Tool Overview'!$H$7="Orkney Health Board",0,IF('III Tool Overview'!$H$7="Shetland Health Board",0,IF('III Tool Overview'!$H$7="Western Isles Health Board",0,IF('III Tool Overview'!$H$7="Orkney Islands Local Authority",0,IF('III Tool Overview'!$H$7="Shetland Islands Local Authority",0,IF('III Tool Overview'!$H$7="Eilean Siar Local Authority",0,new_yll(10,B94,C94,D94,$C$1,G94+H94,1,F94,E94*F94))))))) -> 32635.94031 | Y94: 8.403389958 | Z94: =IF('III Tool Overview'!$H$7="Orkney Health Board",0,IF('III Tool Overview'!$H$7="Shetland Health Board",0,IF('III Tool Overview'!$H$7="Western Isles Health Board",0,IF('III Tool Overview'!$H$7="Orkney Islands Local Authority",0,IF('III Tool Overview'!$H$7="Shetland Islands Local Authority",0,IF('III Tool Overview'!$H$7="Eilean Siar Local Authority",0,new_yll(20,B94,C94,D94,$C$1,G94,1,F94,E94*F94))))))) -> 90009.60219 | AA94: =IF('III Tool Overview'!$H$7="Orkney Health Board",0,IF('III Tool Overview'!$H$7="Shetland Health Board",0,IF('III Tool Overview'!$H$7="Western Isles Health Board",0,IF('III Tool Overview'!$H$7="Orkney Islands Local Authority",0,IF('III Tool Overview'!$H$7="Shetland Islands Local Authority",0,IF('III Tool Overview'!$H$7="Eilean Siar Local Authority",0,new_yll(20,B94,C94,D94,$C$1,G94+H94,1,F94,E94*F94))))))) -> 90000.8429 | AB94: 8.75928508 | AC94: =IF('III Tool Overview'!$H$7="Orkney Health Board",0,IF('III Tool Overview'!$H$7="Shetland Health Board",0,IF('III Tool Overview'!$H$7="Western Isles Health Board",0,IF('III Tool Overview'!$H$7="Orkney Islands Local Authority",0,IF('III Tool Overview'!$H$7="Shetland Islands Local Authority",0,IF('III Tool Overview'!$H$7="Eilean Siar Local Authority",0,hosp_count(2,B94,C94,D94,$C$1,G94,1,F94,E94*F94))))))) -> 6885.593699 | AD94: =IF('III Tool Overview'!$H$7="Orkney Health Board",0,IF('III Tool Overview'!$H$7="Shetland Health Board",0,IF('III Tool Overview'!$H$7="Western Isles Health Board",0,IF('III Tool Overview'!$H$7="Orkney Islands Local Authority",0,IF('III Tool Overview'!$H$7="Shetland Islands Local Authority",0,IF('III Tool Overview'!$H$7="Eilean Siar Local Authority",0,hosp_count(2,B94,C94,D94,$C$1,G94+H94,1,F94,E94*F94))))))) -> 6876.132662 | AE94: 9.46103647 | AF94: =IF('III Tool Overview'!$H$7="Orkney Health Board",0,IF('III Tool Overview'!$H$7="Shetland Health Board",0,IF('III Tool Overview'!$H$7="Western Isles Health Board",0,IF('III Tool Overview'!$H$7="Orkney Islands Local Authority",0,IF('III Tool Overview'!$H$7="Shetland Islands Local Authority",0,IF('III Tool Overview'!$H$7="Eilean Siar Local Authority",0,hosp_count(5,B94,C94,D94,$C$1,G94,1,F94,E94*F94))))))) -> 28603.21254 | AG94: =IF('III Tool Overview'!$H$7="Orkney Health Board",0,IF('III Tool Overview'!$H$7="Shetland Health Board",0,IF('III Tool Overview'!$H$7="Western Isles Health Board",0,IF('III Tool Overview'!$H$7="Orkney Islands Local Authority",0,IF('III Tool Overview'!$H$7="Shetland Islands Local Authority",0,IF('III Tool Overview'!$H$7="Eilean Siar Local Authority",0,hosp_count(5,B94,C94,D94,$C$1,G94+H94,1,F94,E94*F94))))))) -> 28578.04089 | AH94: 25.17164702 | AI94: =IF('III Tool Overview'!$H$7="Orkney Health Board",0,IF('III Tool Overview'!$H$7="Shetland Health Board",0,IF('III Tool Overview'!$H$7="Western Isles Health Board",0,IF('III Tool Overview'!$H$7="Orkney Islands Local Authority",0,IF('III Tool Overview'!$H$7="Shetland Islands Local Authority",0,IF('III Tool Overview'!$H$7="Eilean Siar Local Authority",0,hosp_count(10,B94,C94,D94,$C$1,G94,1,F94,E94*F94))))))) -> 68561.53433 | AJ94: =IF('III Tool Overview'!$H$7="Orkney Health Board",0,IF('III Tool Overview'!$H$7="Shetland Health Board",0,IF('III Tool Overview'!$H$7="Western Isles Health Board",0,IF('III Tool Overview'!$H$7="Orkney Islands Local Authority",0,IF('III Tool Overview'!$H$7="Shetland Islands Local Authority",0,IF('III Tool Overview'!$H$7="Eilean Siar Local Authority",0,hosp_count(10,B94,C94,D94,$C$1,G94+H94,1,F94,E94*F94))))))) -> 68528.56265 | AK94: 32.97168535 | AL94: =IF('III Tool Overview'!$H$7="Orkney Health Board",0,IF('III Tool Overview'!$H$7="Shetland Health Board",0,IF('III Tool Overview'!$H$7="Western Isles Health Board",0,IF('III Tool Overview'!$H$7="Orkney Islands Local Authority",0,IF('III Tool Overview'!$H$7="Shetland Islands Local Authority",0,IF('III Tool Overview'!$H$7="Eilean Siar Local Authority",0,hosp_count(20,B94,C94,D94,$C$1,G94,1,F94,E94*F94))))))) -> 164211.4449 | AM94: =IF('III Tool Overview'!$H$7="Orkney Health Board",0,IF('III Tool Overview'!$H$7="Shetland Health Board",0,IF('III Tool Overview'!$H$7="Western Isles Health Board",0,IF('III Tool Overview'!$H$7="Orkney Islands Local Authority",0,IF('III Tool Overview'!$H$7="Shetland Islands Local Authority",0,IF('III Tool Overview'!$H$7="Eilean Siar Local Authority",0,hosp_count(20,B94,C94,D94,$C$1,G94+H94,1,F94,E94*F94))))))) -> 164176.9468 | AN94: 34.49813619 | AP94: 0.5 | AQ94: 5
A95: Female 35-39 | B95: 37.5 | C95: female | D95: 1 | E95: =HLOOKUP('III Tool Overview'!$H$7,Prevalence!$B$2:$AV$268,Prevalence!AW90,FALSE) -> 0.171446 | F95: =HLOOKUP('III Tool Overview'!$H$7,LookUpData_Pop!$B$1:$AV$269,LookUpData_Pop!BB95,FALSE)/5 -> 36858.6 | G95: ='III Tool Overview'!$H$10/110 -> 0 | H95: =IF('III Tool Overview'!$H$11="Even distribution",Targeting!C93,IF('III Tool Overview'!$H$11="Targeting to Q1",Targeting!D93,IF('III Tool Overview'!$H$11="Targeting to Q1 & Q2",Targeting!E93,IF('III Tool Overview'!$H$11="Proportionate to need",Targeting!F93)))) -> 1092.238992 | I95: =IF('III Tool Overview'!$H$7="Orkney Health Board",0,IF('III Tool Overview'!$H$7="Shetland Health Board",0,IF('III Tool Overview'!$H$7="Western Isles Health Board",0,IF('III Tool Overview'!$H$7="Orkney Islands Local Authority",0,IF('III Tool Overview'!$H$7="Shetland Islands Local Authority",0,IF('III Tool Overview'!$H$7="Eilean Siar Local Authority",0,new_ci(2,B95,C95,D95,$C$1,G95,1,F95,E95*F95))))))) -> 77.24788471 | J95: =IF('III Tool Overview'!$H$7="Orkney Health Board",0,IF('III Tool Overview'!$H$7="Shetland Health Board",0,IF('III Tool Overview'!$H$7="Western Isles Health Board",0,IF('III Tool Overview'!$H$7="Orkney Islands Local Authority",0,IF('III Tool Overview'!$H$7="Shetland Islands Local Authority",0,IF('III Tool Overview'!$H$7="Eilean Siar Local Authority",0,new_ci(2,B95,C95,D95,$C$1,G95+H95,1,F95,E95*F95))))))) -> 77.20486348 | K95: =IF('III Tool Overview'!$H$7="Orkney Health Board",0,IF('III Tool Overview'!$H$7="Shetland Health Board",0,IF('III Tool Overview'!$H$7="Western Isles Health Board",0,IF('III Tool Overview'!$H$7="Orkney Islands Local Authority",0,IF('III Tool Overview'!$H$7="Shetland Islands Local Authority",0,IF('III Tool Overview'!$H$7="Eilean Siar Local Authority",0,new_ci(5,B95,C95,D95,$C$1,G95,1,F95,E95*F95))))))) -> 341.8827201 | L95: =IF('III Tool Overview'!$H$7="Orkney Health Board",0,IF('III Tool Overview'!$H$7="Shetland Health Board",0,IF('III Tool Overview'!$H$7="Western Isles Health Board",0,IF('III Tool Overview'!$H$7="Orkney Islands Local Authority",0,IF('III Tool Overview'!$H$7="Shetland Islands Local Authority",0,IF('III Tool Overview'!$H$7="Eilean Siar Local Authority",0,new_ci(5,B95,C95,D95,$C$1,G95+H95,1,F95,E95*F95))))))) -> 341.7634834 | M95: =IF('III Tool Overview'!$H$7="Orkney Health Board",0,IF('III Tool Overview'!$H$7="Shetland Health Board",0,IF('III Tool Overview'!$H$7="Western Isles Health Board",0,IF('III Tool Overview'!$H$7="Orkney Islands Local Authority",0,IF('III Tool Overview'!$H$7="Shetland Islands Local Authority",0,IF('III Tool Overview'!$H$7="Eilean Siar Local Authority",0,new_ci(10,B95,C95,D95,$C$1,G95,1,F95,E95*F95))))))) -> 915.7434934 | N95: =IF('III Tool Overview'!$H$7="Orkney Health Board",0,IF('III Tool Overview'!$H$7="Shetland Health Board",0,IF('III Tool Overview'!$H$7="Western Isles Health Board",0,IF('III Tool Overview'!$H$7="Orkney Islands Local Authority",0,IF('III Tool Overview'!$H$7="Shetland Islands Local Authority",0,IF('III Tool Overview'!$H$7="Eilean Siar Local Authority",0,new_ci(10,B95,C95,D95,$C$1,G95+H95,1,F95,E95*F95))))))) -> 915.5820127 | O95: =IF('III Tool Overview'!$H$7="Orkney Health Board",0,IF('III Tool Overview'!$H$7="Shetland Health Board",0,IF('III Tool Overview'!$H$7="Western Isles Health Board",0,IF('III Tool Overview'!$H$7="Orkney Islands Local Authority",0,IF('III Tool Overview'!$H$7="Shetland Islands Local Authority",0,IF('III Tool Overview'!$H$7="Eilean Siar Local Authority",0,new_ci(20,B95,C95,D95,$C$1,G95,1,F95,E95*F95))))))) -> 2787.431714 | P95: =IF('III Tool Overview'!$H$7="Orkney Health Board",0,IF('III Tool Overview'!$H$7="Shetland Health Board",0,IF('III Tool Overview'!$H$7="Western Isles Health Board",0,IF('III Tool Overview'!$H$7="Orkney Islands Local Authority",0,IF('III Tool Overview'!$H$7="Shetland Islands Local Authority",0,IF('III Tool Overview'!$H$7="Eilean Siar Local Authority",0,new_ci(20,B95,C95,D95,$C$1,G95+H95,1,F95,E95*F95))))))) -> 2787.266763 | Q95: =IF('III Tool Overview'!$H$7="Orkney Health Board",0,IF('III Tool Overview'!$H$7="Shetland Health Board",0,IF('III Tool Overview'!$H$7="Western Isles Health Board",0,IF('III Tool Overview'!$H$7="Orkney Islands Local Authority",0,IF('III Tool Overview'!$H$7="Shetland Islands Local Authority",0,IF('III Tool Overview'!$H$7="Eilean Siar Local Authority",0,new_yll(2,B95,C95,D95,$C$1,G95,1,F95,E95*F95))))))) -> 4712.120968 | R95: =IF('III Tool Overview'!$H$7="Orkney Health Board",0,IF('III Tool Overview'!$H$7="Shetland Health Board",0,IF('III Tool Overview'!$H$7="Western Isles Health Board",0,IF('III Tool Overview'!$H$7="Orkney Islands Local Authority",0,IF('III Tool Overview'!$H$7="Shetland Islands Local Authority",0,IF('III Tool Overview'!$H$7="Eilean Siar Local Authority",0,new_yll(2,B95,C95,D95,$C$1,G95+H95,1,F95,E95*F95))))))) -> 4709.496672 | S95: 2.624295042 | T95: =IF('III Tool Overview'!$H$7="Orkney Health Board",0,IF('III Tool Overview'!$H$7="Shetland Health Board",0,IF('III Tool Overview'!$H$7="Western Isles Health Board",0,IF('III Tool Overview'!$H$7="Orkney Islands Local Authority",0,IF('III Tool Overview'!$H$7="Shetland Islands Local Authority",0,IF('III Tool Overview'!$H$7="Eilean Siar Local Authority",0,new_yll(5,B95,C95,D95,$C$1,G95,1,F95,E95*F95))))))) -> 20314.02688 | U95: =IF('III Tool Overview'!$H$7="Orkney Health Board",0,IF('III Tool Overview'!$H$7="Shetland Health Board",0,IF('III Tool Overview'!$H$7="Western Isles Health Board",0,IF('III Tool Overview'!$H$7="Orkney Islands Local Authority",0,IF('III Tool Overview'!$H$7="Shetland Islands Local Authority",0,IF('III Tool Overview'!$H$7="Eilean Siar Local Authority",0,new_yll(5,B95,C95,D95,$C$1,G95+H95,1,F95,E95*F95))))))) -> 20306.89188 | V95: 7.134999252 | W95: =IF('III Tool Overview'!$H$7="Orkney Health Board",0,IF('III Tool Overview'!$H$7="Shetland Health Board",0,IF('III Tool Overview'!$H$7="Western Isles Health Board",0,IF('III Tool Overview'!$H$7="Orkney Islands Local Authority",0,IF('III Tool Overview'!$H$7="Shetland Islands Local Authority",0,IF('III Tool Overview'!$H$7="Eilean Siar Local Authority",0,new_yll(10,B95,C95,D95,$C$1,G95,1,F95,E95*F95))))))) -> 51802.20058 | X95: =IF('III Tool Overview'!$H$7="Orkney Health Board",0,IF('III Tool Overview'!$H$7="Shetland Health Board",0,IF('III Tool Overview'!$H$7="Western Isles Health Board",0,IF('III Tool Overview'!$H$7="Orkney Islands Local Authority",0,IF('III Tool Overview'!$H$7="Shetland Islands Local Authority",0,IF('III Tool Overview'!$H$7="Eilean Siar Local Authority",0,new_yll(10,B95,C95,D95,$C$1,G95+H95,1,F95,E95*F95))))))) -> 51792.71746 | Y95: 9.483112704 | Z95: =IF('III Tool Overview'!$H$7="Orkney Health Board",0,IF('III Tool Overview'!$H$7="Shetland Health Board",0,IF('III Tool Overview'!$H$7="Western Isles Health Board",0,IF('III Tool Overview'!$H$7="Orkney Islands Local Authority",0,IF('III Tool Overview'!$H$7="Shetland Islands Local Authority",0,IF('III Tool Overview'!$H$7="Eilean Siar Local Authority",0,new_yll(20,B95,C95,D95,$C$1,G95,1,F95,E95*F95))))))) -> 139748.375 | AA95: =IF('III Tool Overview'!$H$7="Orkney Health Board",0,IF('III Tool Overview'!$H$7="Shetland Health Board",0,IF('III Tool Overview'!$H$7="Western Isles Health Board",0,IF('III Tool Overview'!$H$7="Orkney Islands Local Authority",0,IF('III Tool Overview'!$H$7="Shetland Islands Local Authority",0,IF('III Tool Overview'!$H$7="Eilean Siar Local Authority",0,new_yll(20,B95,C95,D95,$C$1,G95+H95,1,F95,E95*F95))))))) -> 139738.6922 | AB95: 9.682736965 | AC95: =IF('III Tool Overview'!$H$7="Orkney Health Board",0,IF('III Tool Overview'!$H$7="Shetland Health Board",0,IF('III Tool Overview'!$H$7="Western Isles Health Board",0,IF('III Tool Overview'!$H$7="Orkney Islands Local Authority",0,IF('III Tool Overview'!$H$7="Shetland Islands Local Authority",0,IF('III Tool Overview'!$H$7="Eilean Siar Local Authority",0,hosp_count(2,B95,C95,D95,$C$1,G95,1,F95,E95*F95))))))) -> 8611.512211 | AD95: =IF('III Tool Overview'!$H$7="Orkney Health Board",0,IF('III Tool Overview'!$H$7="Shetland Health Board",0,IF('III Tool Overview'!$H$7="Western Isles Health Board",0,IF('III Tool Overview'!$H$7="Orkney Islands Local Authority",0,IF('III Tool Overview'!$H$7="Shetland Islands Local Authority",0,IF('III Tool Overview'!$H$7="Eilean Siar Local Authority",0,hosp_count(2,B95,C95,D95,$C$1,G95+H95,1,F95,E95*F95))))))) -> 8603.096203 | AE95: 8.416007257 | AF95: =IF('III Tool Overview'!$H$7="Orkney Health Board",0,IF('III Tool Overview'!$H$7="Shetland Health Board",0,IF('III Tool Overview'!$H$7="Western Isles Health Board",0,IF('III Tool Overview'!$H$7="Orkney Islands Local Authority",0,IF('III Tool Overview'!$H$7="Shetland Islands Local Authority",0,IF('III Tool Overview'!$H$7="Eilean Siar Local Authority",0,hosp_count(5,B95,C95,D95,$C$1,G95,1,F95,E95*F95))))))) -> 35725.93065 | AG95: =IF('III Tool Overview'!$H$7="Orkney Health Board",0,IF('III Tool Overview'!$H$7="Shetland Health Board",0,IF('III Tool Overview'!$H$7="Western Isles Health Board",0,IF('III Tool Overview'!$H$7="Orkney Islands Local Authority",0,IF('III Tool Overview'!$H$7="Shetland Islands Local Authority",0,IF('III Tool Overview'!$H$7="Eilean Siar Local Authority",0,hosp_count(5,B95,C95,D95,$C$1,G95+H95,1,F95,E95*F95))))))) -> 35703.58767 | AH95: 22.34297148 | AI95: =IF('III Tool Overview'!$H$7="Orkney Health Board",0,IF('III Tool Overview'!$H$7="Shetland Health Board",0,IF('III Tool Overview'!$H$7="Western Isles Health Board",0,IF('III Tool Overview'!$H$7="Orkney Islands Local Authority",0,IF('III Tool Overview'!$H$7="Shetland Islands Local Authority",0,IF('III Tool Overview'!$H$7="Eilean Siar Local Authority",0,hosp_count(10,B95,C95,D95,$C$1,G95,1,F95,E95*F95))))))) -> 85401.80475 | AJ95: =IF('III Tool Overview'!$H$7="Orkney Health Board",0,IF('III Tool Overview'!$H$7="Shetland Health Board",0,IF('III Tool Overview'!$H$7="Western Isles Health Board",0,IF('III Tool Overview'!$H$7="Orkney Islands Local Authority",0,IF('III Tool Overview'!$H$7="Shetland Islands Local Authority",0,IF('III Tool Overview'!$H$7="Eilean Siar Local Authority",0,hosp_count(10,B95,C95,D95,$C$1,G95+H95,1,F95,E95*F95))))))) -> 85372.64819 | AK95: 29.15656309 | AL95: =IF('III Tool Overview'!$H$7="Orkney Health Board",0,IF('III Tool Overview'!$H$7="Shetland Health Board",0,IF('III Tool Overview'!$H$7="Western Isles Health Board",0,IF('III Tool Overview'!$H$7="Orkney Islands Local Authority",0,IF('III Tool Overview'!$H$7="Shetland Islands Local Authority",0,IF('III Tool Overview'!$H$7="Eilean Siar Local Authority",0,hosp_count(20,B95,C95,D95,$C$1,G95,1,F95,E95*F95))))))) -> 202848.8853 | AM95: =IF('III Tool Overview'!$H$7="Orkney Health Board",0,IF('III Tool Overview'!$H$7="Shetland Health Board",0,IF('III Tool Overview'!$H$7="Western Isles Health Board",0,IF('III Tool Overview'!$H$7="Orkney Islands Local Authority",0,IF('III Tool Overview'!$H$7="Shetland Islands Local Authority",0,IF('III Tool Overview'!$H$7="Eilean Siar Local Authority",0,hosp_count(20,B95,C95,D95,$C$1,G95+H95,1,F95,E95*F95))))))) -> 202818.6262 | AN95: 30.25908496 | AP95: 0.5 | AQ95: 5
